Workbook

Sheet Main
B10: 2023-01-09
B12: Sheet No. | C12: Template Name | D12: Summary
B13: 1 | C13: Future Intra | D13: For Intraday trading in F&O segment
B14: 2 | C14: Cash Intra | D14: For Intraday trading in cash market segment
B15: 3 | C15: Mid-cap Intra | D15: For Intraday trading in Mid-cap stocks
B16: 4 | C16: Bulk Deals | D16: Reveals Bulk Deals carried on NSE & BSE
B17: 5 | C17: Call Tracker
K27: `

Sheet Future Intra
M5: Back to Main Page
A6: FOR INTRA DAY TRADING | L6: =Main!B10 -> 2023-01-09
A9: Sr.no | B9: Sector | C9: Scrip | D9: Expiry Date | E9: CLOSE RATE | F9: Pivot Point | G9: Supports | J9: Resistances
E10: Point | F10: Point | G10: S1 | H10: S2 | I10: S3 | J10: R1 | K10: R2 | L10: R3 | M10: HIGH | N10: LOW | O10: OI | P10: % Change in OI
A11: 1 | B11: Index | C11: NIFTY | D11: 2023-01-25 | E11: 17943.20 | F11: 17982.42 | G11: 17832.83 | H11: 17722.47 | I11: 17572.88 | J11: 18092.78 | K11: 18242.37 | L11: 18352.73 | M11: 18132 | N11: 17872.05 | O11: 12961700 | P11: 2.95%
A12: 2 | B12: Index | C12: BANKNIFTY | D12: 2023-01-25 | E12: 42358.50 | F12: 42416.77 | G12: 41993.73 | H12: 41628.97 | I12: 41205.93 | J12: 42781.53 | K12: 43204.57 | L12: 43569.33 | M12: 42839.8 | N12: 42052 | O12: 2642575 | P12: -0.37%
A13: 3 | B13: Index | C13: FINNIFTY | D13: 2023-01-31 | E13: 18704.85 | F13: 18735.23 | G13: 18573.72 | H13: 18442.58 | I13: 18281.07 | J13: 18866.37 | K13: 19027.88 | L13: 19159.02 | M13: 18896.75 | N13: 18604.1 | O13: 18760 | P13: 9.58%
A14: 4 | B14: Index | C14: MIDCPNIFTY | D14: 2023-01-31 | E14: 7178.80 | F14: 2392.93 | G14: 4785.87 | H14: 2392.93 | I14: 4785.87 | J14: 4785.87 | K14: 2392.93 | L14: 4785.87 | M14: 0 | N14: 0 | O14: 375 | P14: 25.00%
A15: 5 | B15: Chemical | C15: AARTIIND | D15: 2023-01-25 | E15: 598.95 | F15: 601.52 | G15: 592.03 | H15: 585.12 | I15: 575.63 | J15: 608.43 | K15: 617.92 | L15: 624.83 | M15: 611 | N15: 594.6 | O15: 3265700 | P15: 1.61%
A16: 6 | B16: Capital_Goods | C16: ABB | D16: 2023-01-25 | E16: 2852.00 | F16: 2845.03 | G16: 2818.12 | H16: 2784.23 | I16: 2757.32 | J16: 2878.92 | K16: 2905.83 | L16: 2939.72 | M16: 2871.95 | N16: 2811.15 | O16: 1745500 | P16: -4.26%
A17: 7 | B17: Pharma | C17: ABBOTINDIA | D17: 2023-01-25 | E17: 22379.20 | F17: 22307.03 | G17: 22166.47 | H17: 21953.73 | I17: 21813.17 | J17: 22519.77 | K17: 22660.33 | L17: 22873.07 | M17: 22447.6 | N17: 22094.3 | O17: 48400 | P17: -1.06%
A18: 8 | B18: Others | C18: ABCAPITAL | D18: 2023-01-25 | E18: 145.75 | F18: 146.98 | G18: 143.27 | H18: 140.78 | I18: 137.07 | J18: 149.47 | K18: 153.18 | L18: 155.67 | M18: 150.7 | N18: 144.5 | O18: 36714600 | P18: 0.68%
A19: 9 | B19: Textile | C19: ABFRL | D19: 2023-01-25 | E19: 278.85 | F19: 279.87 | G19: 276.23 | H19: 273.62 | I19: 269.98 | J19: 282.48 | K19: 286.12 | L19: 288.73 | M19: 283.5 | N19: 277.25 | O19: 13824200 | P19: 3.02%
A20: 10 | B20: Cement | C20: ACC | D20: 2023-01-25 | E20: 2426.60 | F20: 2432.67 | G20: 2400.68 | H20: 2374.77 | I20: 2342.78 | J20: 2458.58 | K20: 2490.57 | L20: 2516.48 | M20: 2464.65 | N20: 2406.75 | O20: 2629500 | P20: -1.21%
A21: 11 | B21: Others | C21: ADANIENT | D21: 2023-01-25 | E21: 3837.95 | F21: 3842.23 | G21: 3800.72 | H21: 3763.48 | I21: 3721.97 | J21: 3879.47 | K21: 3920.98 | L21: 3958.22 | M21: 3883.75 | N21: 3805 | O21: 13335000 | P21: 1.17%
A22: 12 | B22: Others | C22: ADANIPORTS | D22: 2023-01-25 | E22: 810.10 | F22: 814.07 | G22: 801.13 | H22: 792.17 | I22: 779.23 | J22: 823.03 | K22: 835.97 | L22: 844.93 | M22: 827 | N22: 805.1 | O22: 62730625 | P22: 0.10%
A23: 13 | B23: Pharma | C23: ALKEM | D23: 2023-01-25 | E23: 3005.30 | F23: 3030.73 | G23: 2971.42 | H23: 2937.53 | I23: 2878.22 | J23: 3064.62 | K23: 3123.93 | L23: 3157.82 | M23: 3090.05 | N23: 2996.85 | O23: 317200 | P23: 3.05%
A24: 14 | B24: Cement | C24: AMBUJACEM | D24: 2023-01-25 | E24: 523.10 | F24: 523.85 | G24: 516.45 | H24: 509.80 | I24: 502.40 | J24: 530.50 | K24: 537.90 | L24: 544.55 | M24: 531.25 | N24: 517.2 | O24: 84758400 | P24: 0.65%
A25: 15 | B25: Others | C25: APOLLOHOSP | D25: 2023-01-25 | E25: 4403.25 | F25: 4427.62 | G25: 4366.23 | H25: 4329.22 | I25: 4267.83 | J25: 4464.63 | K25: 4526.02 | L25: 4563.03 | M25: 4489 | N25: 4390.6 | O25: 1782250 | P25: 0.30%
A26: 16 | B26: Automobile | C26: APOLLOTYRE | D26: 2023-01-25 | E26: 329.20 | F26: 332.22 | G26: 324.38 | H26: 319.57 | I26: 311.73 | J26: 337.03 | K26: 344.87 | L26: 349.68 | M26: 340.05 | N26: 327.4 | O26: 14210000 | P26: -8.68%
A27: 17 | B27: Automobile | C27: ASHOKLEY | D27: 2023-01-25 | E27: 148.60 | F27: 149.08 | G27: 147.37 | H27: 146.13 | I27: 144.42 | J27: 150.32 | K27: 152.03 | L27: 153.27 | M27: 150.8 | N27: 147.85 | O27: 67905000 | P27: 0.73%
A28: 18 | B28: FMCG | C28: ASIANPAINT | D28: 2023-01-25 | E28: 2987.55 | F28: 2993.32 | G28: 2951.63 | H28: 2915.72 | I28: 2874.03 | J28: 3029.23 | K28: 3070.92 | L28: 3106.83 | M28: 3035 | N28: 2957.4 | O28: 5974400 | P28: 2.50%
A29: 19 | B29: Others | C29: ASTRAL | D29: 2023-01-25 | E29: 2070.85 | F29: 2063.68 | G29: 2025.02 | H29: 1979.18 | I29: 1940.52 | J29: 2109.52 | K29: 2148.18 | L29: 2194.02 | M29: 2102.35 | N29: 2017.85 | O29: 1703075 | P29: -1.67%
A30: 20 | B30: Others | C30: ATUL | D30: 2023-01-25 | E30: 7802.00 | F30: 7821.98 | G30: 7707.27 | H30: 7612.53 | I30: 7497.82 | J30: 7916.72 | K30: 8031.43 | L30: 8126.17 | M30: 7936.7 | N30: 7727.25 | O30: 121275 | P30: 7.94%
A31: 21 | B31: Banking | C31: AUBANK | D31: 2023-01-25 | E31: 619.45 | F31: 622.42 | G31: 610.03 | H31: 600.62 | I31: 588.23 | J31: 631.83 | K31: 644.22 | L31: 653.63 | M31: 634.8 | N31: 613 | O31: 9777000 | P31: 7.07%
A32: 22 | B32: Pharma | C32: AUROPHARMA | D32: 2023-01-25 | E32: 444.20 | F32: 447.82 | G32: 437.83 | H32: 431.47 | I32: 421.48 | J32: 454.18 | K32: 464.17 | L32: 470.53 | M32: 457.8 | N32: 441.45 | O32: 14906000 | P32: 1.50%
A33: 23 | B33: Banking | C33: AXISBANK | D33: 2023-01-25 | E33: 945.35 | F33: 946.60 | G33: 937.80 | H33: 930.25 | I33: 921.45 | J33: 954.15 | K33: 962.95 | L33: 970.50 | M33: 955.4 | N33: 939.05 | O33: 44743200 | P33: 2.70%
A34: 24 | B34: Automobile | C34: BAJAJ-AUTO | D34: 2023-01-25 | E34: 3655.35 | F34: 3643.65 | G34: 3624.85 | H34: 3594.35 | I34: 3575.55 | J34: 3674.15 | K34: 3692.95 | L34: 3723.45 | M34: 3662.45 | N34: 3613.15 | O34: 1212750 | P34: 3.81%
A35: 25 | B35: Finance | C35: BAJAJFINSV | D35: 2023-01-25 | E35: 1438.25 | F35: 1447.92 | G35: 1420.83 | H35: 1403.42 | I35: 1376.33 | J35: 1465.33 | K35: 1492.42 | L35: 1509.83 | M35: 1475 | N35: 1430.5 | O35: 9382000 | P35: 8.47%
A36: 26 | B36: Finance | C36: BAJFINANCE | D36: 2023-01-25 | E36: 6014.25 | F36: 6049.15 | G36: 5940.60 | H36: 5866.95 | I36: 5758.40 | J36: 6122.80 | K36: 6231.35 | L36: 6305.00 | M36: 6157.7 | N36: 5975.5 | O36: 7129125 | P36: 6.44%
A37: 27 | B37: Automobile | C37: BALKRISIND | D37: 2023-01-25 | E37: 2210.15 | F37: 2202.67 | G37: 2177.48 | H37: 2144.82 | I37: 2119.63 | J37: 2235.33 | K37: 2260.52 | L37: 2293.18 | M37: 2227.85 | N37: 2170 | O37: 1957800 | P37: 1.65%
A38: 28 | B38: Others | C38: BALRAMCHIN | D38: 2023-01-25 | E38: 385.55 | F38: 386.75 | G38: 380.55 | H38: 375.55 | I38: 369.35 | J38: 391.75 | K38: 397.95 | L38: 402.95 | M38: 392.95 | N38: 381.75 | O38: 8241600 | P38: -0.87%
A39: 29 | B39: Banking | C39: BANDHANBNK | D39: 2023-01-25 | E39: 243.90 | F39: 245.43 | G39: 239.97 | H39: 236.03 | I39: 230.57 | J39: 249.37 | K39: 254.83 | L39: 258.77 | M39: 250.9 | N39: 241.5 | O39: 50758200 | P39: 1.33%
A40: 30 | B40: Banking | C40: BANKBARODA | D40: 2023-01-25 | E40: 184.20 | F40: 184.07 | G40: 181.93 | H40: 179.67 | I40: 177.53 | J40: 186.33 | K40: 188.47 | L40: 190.73 | M40: 186.2 | N40: 181.8 | O40: 85059000 | P40: -2.21%
A41: 31 | B41: FMCG | C41: BATAINDIA | D41: 2023-01-25 | E41: 1629.30 | F41: 1633.30 | G41: 1617.60 | H41: 1605.90 | I41: 1590.20 | J41: 1645.00 | K41: 1660.70 | L41: 1672.40 | M41: 1649 | N41: 1621.6 | O41: 2466475 | P41: -0.49%
A42: 32 | B42: Capital_Goods | C42: BEL | D42: 2023-01-25 | E42: 99.55 | F42: 99.90 | G42: 98.75 | H42: 97.95 | I42: 96.80 | J42: 100.70 | K42: 101.85 | L42: 102.65 | M42: 101.05 | N42: 99.1 | O42: 105581100 | P42: 0.50%
A43: 33 | B43: FMCG | C43: BERGEPAINT | D43: 2023-01-25 | E43: 569.35 | F43: 570.68 | G43: 563.67 | H43: 557.98 | I43: 550.97 | J43: 576.37 | K43: 583.38 | L43: 589.07 | M43: 577.7 | N43: 565 | O43: 6112700 | P43: -0.14%
A44: 34 | B44: Automobile | C44: BHARATFORG | D44: 2023-01-25 | E44: 873.40 | F44: 877.47 | G44: 866.13 | H44: 858.87 | I44: 847.53 | J44: 884.73 | K44: 896.07 | L44: 903.33 | M44: 888.8 | N44: 870.2 | O44: 6585000 | P44: -0.23%
A45: 35 | B45: Telecom | C45: BHARTIARTL | D45: 2023-01-25 | E45: 799.90 | F45: 803.68 | G45: 792.32 | H45: 784.73 | I45: 773.37 | J45: 811.27 | K45: 822.63 | L45: 830.22 | M45: 815.05 | N45: 796.1 | O45: 40044400 | P45: 2.01%
A46: 36 | B46: Capital_Goods | C46: BHEL | D46: 2023-01-25 | E46: 82.00 | F46: 82.35 | G46: 80.85 | H46: 79.70 | I46: 78.20 | J46: 83.50 | K46: 85.00 | L46: 86.15 | M46: 83.85 | N46: 81.2 | O46: 91402500 | P46: 0.37%
A47: 37 | B47: Pharma | C47: BIOCON | D47: 2023-01-25 | E47: 257.35 | F47: 258.27 | G47: 254.28 | H47: 251.22 | I47: 247.23 | J47: 261.33 | K47: 265.32 | L47: 268.38 | M47: 262.25 | N47: 255.2 | O47: 25594400 | P47: 3.97%
A48: 38 | B48: Automobile | C48: BOSCHLTD | D48: 2023-01-25 | E48: 17060.15 | F48: 17078.47 | G48: 16961.83 | H48: 16863.52 | I48: 16746.88 | J48: 17176.78 | K48: 17293.42 | L48: 17391.73 | M48: 17195.1 | N48: 16980.15 | O48: 134100 | P48: -1.22%
A49: 39 | B49: Oil_Gas | C49: BPCL | D49: 2023-01-25 | E49: 346.25 | F49: 345.13 | G49: 342.17 | H49: 338.08 | I49: 335.12 | J49: 349.22 | K49: 352.18 | L49: 356.27 | M49: 348.1 | N49: 341.05 | O49: 14788800 | P49: -1.39%
A50: 40 | B50: FMCG | C50: BRITANNIA | D50: 2023-01-25 | E50: 4370.30 | F50: 4358.58 | G50: 4338.12 | H50: 4305.93 | I50: 4285.47 | J50: 4390.77 | K50: 4411.23 | L50: 4443.42 | M50: 4379.05 | N50: 4326.4 | O50: 1155000 | P50: 4.54%
A51: 41 | B51: Technology | C51: BSOFT | D51: 2023-01-25 | E51: 284.75 | F51: 287.23 | G51: 281.42 | H51: 278.08 | I51: 272.27 | J51: 290.57 | K51: 296.38 | L51: 299.72 | M51: 293.05 | N51: 283.9 | O51: 9170000 | P51: 2.48%
A52: 42 | B52: Banking | C52: CANBK | D52: 2023-01-25 | E52: 322.30 | F52: 323.70 | G52: 317.60 | H52: 312.90 | I52: 306.80 | J52: 328.40 | K52: 334.50 | L52: 339.20 | M52: 329.8 | N52: 319 | O52: 43545600 | P52: 1.82%
A53: 43 | B53: Finance | C53: CANFINHOME | D53: 2023-01-25 | E53: 545.25 | F53: 544.75 | G53: 537.50 | H53: 529.75 | I53: 522.50 | J53: 552.50 | K53: 559.75 | L53: 567.50 | M53: 552 | N53: 537 | O53: 4318275 | P53: 2.69%
A54: 44 | B54: Others | C54: CHAMBLFERT | D54: 2023-01-25 | E54: 315.00 | F54: 316.58 | G54: 310.77 | H54: 306.53 | I54: 300.72 | J54: 320.82 | K54: 326.63 | L54: 330.87 | M54: 322.4 | N54: 312.35 | O54: 7696500 | P54: 1.36%
A55: 45 | B55: Finance | C55: CHOLAFIN | D55: 2023-01-25 | E55: 669.70 | F55: 675.30 | G55: 655.60 | H55: 641.50 | I55: 621.80 | J55: 689.40 | K55: 709.10 | L55: 723.20 | M55: 695 | N55: 661.2 | O55: 8022500 | P55: 18.30%
A56: 46 | B56: Pharma | C56: CIPLA | D56: 2023-01-25 | E56: 1081.80 | F56: 1086.40 | G56: 1074.25 | H56: 1066.70 | I56: 1054.55 | J56: 1093.95 | K56: 1106.10 | L56: 1113.65 | M56: 1098.55 | N56: 1078.85 | O56: 8345350 | P56: 0.64%
A57: 47 | B57: Others | C57: COALINDIA | D57: 2023-01-25 | E57: 214.05 | F57: 215.15 | G57: 210.60 | H57: 207.15 | I57: 202.60 | J57: 218.60 | K57: 223.15 | L57: 226.60 | M57: 219.7 | N57: 211.7 | O57: 30353400 | P57: 14.57%
A58: 48 | B58: Technology | C58: COFORGE | D58: 2023-01-25 | E58: 3861.60 | F58: 3881.13 | G58: 3828.42 | H58: 3795.23 | I58: 3742.52 | J58: 3914.32 | K58: 3967.03 | L58: 4000.22 | M58: 3933.85 | N58: 3847.95 | O58: 563850 | P58: 0.94%
A59: 49 | B59: FMCG | C59: COLPAL | D59: 2023-01-25 | E59: 1524.10 | F59: 1528.10 | G59: 1517.20 | H59: 1510.30 | I59: 1499.40 | J59: 1535.00 | K59: 1545.90 | L59: 1552.80 | M59: 1539 | N59: 1521.2 | O59: 2204300 | P59: -1.52%
A60: 50 | B60: Others | C60: CONCOR | D60: 2023-01-25 | E60: 739.35 | F60: 739.78 | G60: 730.62 | H60: 721.88 | I60: 712.72 | J60: 748.52 | K60: 757.68 | L60: 766.42 | M60: 748.95 | N60: 731.05 | O60: 6142000 | P60: -1.19%
A61: 51 | B61: Others | C61: COROMANDEL | D61: 2023-01-25 | E61: 904.10 | F61: 904.15 | G61: 896.40 | H61: 888.70 | I61: 880.95 | J61: 911.85 | K61: 919.60 | L61: 927.30 | M61: 911.9 | N61: 896.45 | O61: 3066700 | P61: -0.32%
A62: 52 | B62: Capital_Goods | C62: CROMPTON | D62: 2023-01-25 | E62: 339.65 | F62: 339.87 | G62: 336.03 | H62: 332.42 | I62: 328.58 | J62: 343.48 | K62: 347.32 | L62: 350.93 | M62: 343.7 | N62: 336.25 | O62: 4936500 | P62: 6.06%
A63: 53 | B63: Banking | C63: CUB | D63: 2023-01-25 | E63: 175.50 | F63: 176.32 | G63: 172.73 | H63: 169.97 | I63: 166.38 | J63: 179.08 | K63: 182.67 | L63: 185.43 | M63: 179.9 | N63: 173.55 | O63: 9730000 | P63: 4.96%
A64: 54 | B64: Capital_Goods | C64: CUMMINSIND | D64: 2023-01-25 | E64: 1426.10 | F64: 1421.25 | G64: 1412.85 | H64: 1399.60 | I64: 1391.20 | J64: 1434.50 | K64: 1442.90 | L64: 1456.15 | M64: 1429.65 | N64: 1408 | O64: 1575600 | P64: -1.68%
A65: 55 | B65: FMCG | C65: DABUR | D65: 2023-01-25 | E65: 554.30 | F65: 559.58 | G65: 544.52 | H65: 534.73 | I65: 519.67 | J65: 569.37 | K65: 584.43 | L65: 594.22 | M65: 574.65 | N65: 549.8 | O65: 12367500 | P65: 3.06%
A66: 56 | B66: Cement | C66: DALBHARAT | D66: 2023-01-25 | E66: 1883.40 | F66: 1894.88 | G66: 1858.52 | H66: 1833.63 | I66: 1797.27 | J66: 1919.77 | K66: 1956.13 | L66: 1981.02 | M66: 1931.25 | N66: 1870 | O66: 1139500 | P66: -0.13%
A67: 57 | B67: Chemical | C67: DEEPAKNTR | D67: 2023-01-25 | E67: 1942.65 | F67: 1949.68 | G67: 1924.77 | H67: 1906.88 | I67: 1881.97 | J67: 1967.57 | K67: 1992.48 | L67: 2010.37 | M67: 1974.6 | N67: 1931.8 | O67: 1459000 | P67: -1.02%
A68: 58 | B68: Others | C68: DELTACORP | D68: 2023-01-25 | E68: 211.00 | F68: 211.98 | G68: 207.97 | H68: 204.93 | I68: 200.92 | J68: 215.02 | K68: 219.03 | L68: 222.07 | M68: 216 | N68: 208.95 | O68: 16343600 | P68: 2.05%
A69: 59 | B69: Pharma | C69: DIVISLAB | D69: 2023-01-25 | E69: 3439.15 | F69: 3452.05 | G69: 3409.15 | H69: 3379.15 | I69: 3336.25 | J69: 3482.05 | K69: 3524.95 | L69: 3554.95 | M69: 3494.95 | N69: 3422.05 | O69: 2612550 | P69: 1.06%
A70: 60 | B70: Others | C70: DIXON | D70: 2023-01-25 | E70: 3820.85 | F70: 3812.45 | G70: 3774.95 | H70: 3729.05 | I70: 3691.55 | J70: 3858.35 | K70: 3895.85 | L70: 3941.75 | M70: 3849.95 | N70: 3766.55 | O70: 462125 | P70: 1.59%
A71: 61 | B71: Realty | C71: DLF | D71: 2023-01-25 | E71: 371.00 | F71: 371.90 | G71: 367.60 | H71: 364.20 | I71: 359.90 | J71: 375.30 | K71: 379.60 | L71: 383.00 | M71: 376.2 | N71: 368.5 | O71: 44277750 | P71: 1.31%
A72: 62 | B72: Pharma | C72: DRREDDY | D72: 2023-01-25 | E72: 4282.75 | F72: 4295.60 | G72: 4259.55 | H72: 4236.35 | I72: 4200.30 | J72: 4318.80 | K72: 4354.85 | L72: 4378.05 | M72: 4331.65 | N72: 4272.4 | O72: 2207750 | P72: -0.58%
A73: 63 | B73: Automobile | C73: EICHERMOT | D73: 2023-01-25 | E73: 3268.75 | F73: 3270.68 | G73: 3247.42 | H73: 3226.08 | I73: 3202.82 | J73: 3292.02 | K73: 3315.28 | L73: 3336.62 | M73: 3293.95 | N73: 3249.35 | O73: 2688700 | P73: 0.45%
A74: 64 | B74: Automobile | C74: ESCORTS | D74: 2023-01-25 | E74: 2169.35 | F74: 2161.53 | G74: 2144.17 | H74: 2118.98 | I74: 2101.62 | J74: 2186.72 | K74: 2204.08 | L74: 2229.27 | M74: 2178.9 | N74: 2136.35 | O74: 731500 | P74: -2.53%
A75: 65 | B75: Automobile | C75: EXIDEIND | D75: 2023-01-25 | E75: 179.40 | F75: 180.17 | G75: 177.78 | H75: 176.17 | I75: 173.78 | J75: 181.78 | K75: 184.17 | L75: 185.78 | M75: 182.55 | N75: 178.55 | O75: 28674000 | P75: 0.28%
A76: 66 | B76: Banking | C76: FEDERALBNK | D76: 2023-01-25 | E76: 135.15 | F76: 135.65 | G76: 133.25 | H76: 131.35 | I76: 128.95 | J76: 137.55 | K76: 139.95 | L76: 141.85 | M76: 138.05 | N76: 133.75 | O76: 77115000 | P76: 1.61%
A77: 67 | B77: Technology | C77: FSL | D77: 2023-01-25 | E77: 101.50 | F77: 101.90 | G77: 100.60 | H77: 99.70 | I77: 98.40 | J77: 102.80 | K77: 104.10 | L77: 105.00 | M77: 103.2 | N77: 101 | O77: 16780400 | P77: 2.09%
A78: 68 | B78: Oil_Gas | C78: GAIL | D78: 2023-01-25 | E78: 97.75 | F78: 97.98 | G78: 96.97 | H78: 96.18 | I78: 95.17 | J78: 98.77 | K78: 99.78 | L78: 100.57 | M78: 99 | N78: 97.2 | O78: 49236150 | P78: 1.34%
A79: 69 | B79: Pharma | C79: GLENMARK | D79: 2023-01-25 | E79: 424.00 | F79: 428.50 | G79: 415.05 | H79: 406.10 | I79: 392.65 | J79: 437.45 | K79: 450.90 | L79: 459.85 | M79: 441.95 | N79: 419.55 | O79: 5311350 | P79: 5.02%
A80: 70 | B80: Infrastructure | C80: GMRINFRA | D80: 2023-01-25 | E80: 40.30 | F80: 40.33 | G80: 39.97 | H80: 39.63 | I80: 39.27 | J80: 40.67 | K80: 41.03 | L80: 41.37 | M80: 40.7 | N80: 40 | O80: 141840000 | P80: 0.67%
A81: 71 | B81: Others | C81: GNFC | D81: 2023-01-25 | E81: 591.20 | F81: 585.43 | G81: 577.17 | H81: 563.13 | I81: 554.87 | J81: 599.47 | K81: 607.73 | L81: 621.77 | M81: 593.7 | N81: 571.4 | O81: 8416200 | P81: 8.39%
A82: 72 | B82: FMCG | C82: GODREJCP | D82: 2023-01-25 | E82: 920.30 | F82: 924.52 | G82: 912.88 | H82: 905.47 | I82: 893.83 | J82: 931.93 | K82: 943.57 | L82: 950.98 | M82: 936.15 | N82: 917.1 | O82: 5851000 | P82: 0.46%
A83: 73 | B83: Realty | C83: GODREJPROP | D83: 2023-01-25 | E83: 1202.65 | F83: 1207.15 | G83: 1188.50 | H83: 1174.35 | I83: 1155.70 | J83: 1221.30 | K83: 1239.95 | L83: 1254.10 | M83: 1225.8 | N83: 1193 | O83: 4254250 | P83: 0.93%
A84: 74 | B84: Pharma | C84: GRANULES | D84: 2023-01-25 | E84: 321.35 | F84: 322.88 | G84: 316.72 | H84: 312.08 | I84: 305.92 | J84: 327.52 | K84: 333.68 | L84: 338.32 | M84: 329.05 | N84: 318.25 | O84: 8068000 | P84: 4.56%
A85: 75 | B85: Cement | C85: GRASIM | D85: 2023-01-25 | E85: 1686.00 | F85: 1688.77 | G85: 1669.68 | H85: 1653.37 | I85: 1634.28 | J85: 1705.08 | K85: 1724.17 | L85: 1740.48 | M85: 1707.85 | N85: 1672.45 | O85: 7883575 | P85: 1.32%
A86: 76 | B86: Oil_Gas | C86: GUJGASLTD | D86: 2023-01-25 | E86: 483.20 | F86: 484.92 | G86: 476.33 | H86: 469.47 | I86: 460.88 | J86: 491.78 | K86: 500.37 | L86: 507.23 | M86: 493.5 | N86: 478.05 | O86: 4523750 | P86: 7.71%
A87: 77 | B87: Others | C87: HAL | D87: 2023-01-25 | E87: 2511.30 | F87: 2518.77 | G87: 2484.53 | H87: 2457.77 | I87: 2423.53 | J87: 2545.53 | K87: 2579.77 | L87: 2606.53 | M87: 2553 | N87: 2492 | O87: 3336000 | P87: -1.56%
A88: 78 | B88: Capital_Goods | C88: HAVELLS | D88: 2023-01-25 | E88: 1194.85 | F88: 1188.62 | G88: 1179.73 | H88: 1164.62 | I88: 1155.73 | J88: 1203.73 | K88: 1212.62 | L88: 1227.73 | M88: 1197.5 | N88: 1173.5 | O88: 4914000 | P88: -0.24%
A89: 79 | B89: Technology | C89: HCLTECH | D89: 2023-01-25 | E89: 1026.40 | F89: 1029.15 | G89: 1016.05 | H89: 1005.70 | I89: 992.60 | J89: 1039.50 | K89: 1052.60 | L89: 1062.95 | M89: 1042.25 | N89: 1018.8 | O89: 9224600 | P89: -1.55%
A90: 80 | B90: Finance | C90: HDFC | D90: 2023-01-25 | E90: 2610.80 | F90: 2617.55 | G90: 2591.70 | H90: 2572.60 | I90: 2546.75 | J90: 2636.65 | K90: 2662.50 | L90: 2681.60 | M90: 2643.4 | N90: 2598.45 | O90: 19151400 | P90: 1.11%
A91: 81 | B91: Finance | C91: HDFCAMC | D91: 2023-01-25 | E91: 2138.40 | F91: 2165.47 | G91: 2102.98 | H91: 2067.57 | I91: 2005.08 | J91: 2200.88 | K91: 2263.37 | L91: 2298.78 | M91: 2227.95 | N91: 2130.05 | O91: 1853400 | P91: 3.95%
A92: 82 | B92: Banking | C92: HDFCBANK | D92: 2023-01-25 | E92: 1598.55 | F92: 1599.48 | G92: 1585.17 | H92: 1571.78 | I92: 1557.47 | J92: 1612.87 | K92: 1627.18 | L92: 1640.57 | M92: 1613.8 | N92: 1586.1 | O92: 58698200 | P92: 0.71%
A93: 83 | B93: Finance | C93: HDFCLIFE | D93: 2023-01-25 | E93: 614.05 | F93: 614.95 | G93: 607.60 | H93: 601.15 | I93: 593.80 | J93: 621.40 | K93: 628.75 | L93: 635.20 | M93: 622.3 | N93: 608.5 | O93: 13811600 | P93: -0.50%
A94: 84 | B94: Automobile | C94: HEROMOTOCO | D94: 2023-01-25 | E94: 2754.80 | F94: 2759.02 | G94: 2741.03 | H94: 2727.27 | I94: 2709.28 | J94: 2772.78 | K94: 2790.77 | L94: 2804.53 | M94: 2777 | N94: 2745.25 | O94: 2496300 | P94: 1.31%
A95: 85 | B95: Metals | C95: HINDALCO | D95: 2023-01-25 | E95: 462.65 | F95: 465.72 | G95: 457.73 | H95: 452.82 | I95: 444.83 | J95: 470.63 | K95: 478.62 | L95: 483.53 | M95: 473.7 | N95: 460.8 | O95: 22862000 | P95: -1.23%
A96: 86 | B96: Metals | C96: HINDCOPPER | D96: 2023-01-25 | E96: 116.40 | F96: 117.25 | G96: 114.80 | H96: 113.20 | I96: 110.75 | J96: 118.85 | K96: 121.30 | L96: 122.90 | M96: 119.7 | N96: 115.65 | O96: 19752000 | P96: 2.90%
A97: 87 | B97: Oil_Gas | C97: HINDPETRO | D97: 2023-01-25 | E97: 250.80 | F97: 249.70 | G97: 246.95 | H97: 243.10 | I97: 240.35 | J97: 253.55 | K97: 256.30 | L97: 260.15 | M97: 252.45 | N97: 245.85 | O97: 20579400 | P97: 0.29%
A98: 88 | B98: FMCG | C98: HINDUNILVR | D98: 2023-01-25 | E98: 2590.10 | F98: 2597.05 | G98: 2573.10 | H98: 2556.10 | I98: 2532.15 | J98: 2614.05 | K98: 2638.00 | L98: 2655.00 | M98: 2621 | N98: 2580.05 | O98: 8239200 | P98: -0.30%
A99: 89 | B99: Others | C99: HONAUT | D99: 2023-01-25 | E99: 39932.90 | F99: 39815.25 | G99: 39517.65 | H99: 39102.40 | I99: 38804.80 | J99: 40230.50 | K99: 40528.10 | L99: 40943.35 | M99: 40112.85 | N99: 39400 | O99: 37185 | P99: 0.77%
A100: 90 | B100: Finance | C100: IBULHSGFIN | D100: 2023-01-25 | E100: 140.55 | F100: 141.42 | G100: 138.73 | H100: 136.92 | I100: 134.23 | J100: 143.23 | K100: 145.92 | L100: 147.73 | M100: 144.1 | N100: 139.6 | O100: 46844000 | P100: -4.88%
A101: 91 | B101: Banking | C101: ICICIBANK | D101: 2023-01-25 | E101: 875.15 | F101: 874.30 | G101: 866.10 | H101: 857.05 | I101: 848.85 | J101: 883.35 | K101: 891.55 | L101: 900.60 | M101: 882.5 | N101: 865.25 | O101: 79013200 | P101: 5.45%
A102: 92 | B102: Finance | C102: ICICIGI | D102: 2023-01-25 | E102: 1273.80 | F102: 1278.53 | G102: 1265.07 | H102: 1256.33 | I102: 1242.87 | J102: 1287.27 | K102: 1300.73 | L102: 1309.47 | M102: 1292 | N102: 1269.8 | O102: 3338375 | P102: -0.95%
A103: 93 | B103: Finance | C103: ICICIPRULI | D103: 2023-01-25 | E103: 474.00 | F103: 474.82 | G103: 470.53 | H103: 467.07 | I103: 462.78 | J103: 478.28 | K103: 482.57 | L103: 486.03 | M103: 479.1 | N103: 471.35 | O103: 16768500 | P103: -3.95%
A104: 94 | B104: Telecom | C104: IDEA | D104: 2023-01-25 | E104: 7.80 | F104: 7.80 | G104: 7.70 | H104: 7.60 | I104: 7.50 | J104: 7.90 | K104: 8.00 | L104: 8.10 | M104: 7.9 | N104: 7.7 | O104: 621180000 | P104: -1.06%
A105: 95 | B105: Finance | C105: IDFC | D105: 2023-01-25 | E105: 83.50 | F105: 83.50 | G105: 82.45 | H105: 81.40 | I105: 80.35 | J105: 84.55 | K105: 85.60 | L105: 86.65 | M105: 84.55 | N105: 82.45 | O105: 112670000 | P105: 0.99%
A106: 96 | B106: Banking | C106: IDFCFIRSTB | D106: 2023-01-25 | E106: 59.70 | F106: 59.97 | G106: 58.88 | H106: 58.07 | I106: 56.98 | J106: 60.78 | K106: 61.87 | L106: 62.68 | M106: 61.05 | N106: 59.15 | O106: 164685000 | P106: -0.93%
A107: 97 | B107: Others | C107: IEX | D107: 2023-01-25 | E107: 139.50 | F107: 140.23 | G107: 138.17 | H107: 136.83 | I107: 134.77 | J107: 141.57 | K107: 143.63 | L107: 144.97 | M107: 142.3 | N107: 138.9 | O107: 44797500 | P107: 1.08%
A108: 98 | B108: Oil_Gas | C108: IGL | D108: 2023-01-25 | E108: 418.45 | F108: 420.45 | G108: 411.60 | H108: 404.75 | I108: 395.90 | J108: 427.30 | K108: 436.15 | L108: 443.00 | M108: 429.3 | N108: 413.6 | O108: 8443875 | P108: 1.24%
A109: 99 | B109: Infrastructure | C109: INDHOTEL | D109: 2023-01-25 | E109: 312.05 | F109: 312.18 | G109: 307.87 | H109: 303.68 | I109: 299.37 | J109: 316.37 | K109: 320.68 | L109: 324.87 | M109: 316.5 | N109: 308 | O109: 26430000 | P109: 2.11%
A110: 100 | B110: Cement | C110: INDIACEM | D110: 2023-01-25 | E110: 218.60 | F110: 218.53 | G110: 214.37 | H110: 210.13 | I110: 205.97 | J110: 222.77 | K110: 226.93 | L110: 231.17 | M110: 222.7 | N110: 214.3 | O110: 14958200 | P110: -0.12%
A111: 101 | B111: Others | C111: INDIAMART | D111: 2023-01-25 | E111: 4260.50 | F111: 4280.27 | G111: 4213.18 | H111: 4165.87 | I111: 4098.78 | J111: 4327.58 | K111: 4394.67 | L111: 4441.98 | M111: 4347.35 | N111: 4232.95 | O111: 296550 | P111: 4.44%
A112: 102 | B112: Others | C112: INDIGO | D112: 2023-01-25 | E112: 2024.75 | F112: 2029.17 | G112: 2001.78 | H112: 1978.82 | I112: 1951.43 | J112: 2052.13 | K112: 2079.52 | L112: 2102.48 | M112: 2056.55 | N112: 2006.2 | O112: 3061500 | P112: -2.54%
A113: 103 | B113: Banking | C113: INDUSINDBK | D113: 2023-01-25 | E113: 1188.50 | F113: 1196.47 | G113: 1172.03 | H113: 1155.57 | I113: 1131.13 | J113: 1212.93 | K113: 1237.37 | L113: 1253.83 | M113: 1220.9 | N113: 1180 | O113: 23801850 | P113: -1.52%
A114: 104 | B114: Telecom | C114: INDUSTOWER | D114: 2023-01-25 | E114: 187.60 | F114: 187.52 | G114: 186.03 | H114: 184.47 | I114: 182.98 | J114: 189.08 | K114: 190.57 | L114: 192.13 | M114: 189 | N114: 185.95 | O114: 14968800 | P114: -1.09%
A115: 105 | B115: Technology | C115: INFY | D115: 2023-01-25 | E115: 1455.55 | F115: 1463.53 | G115: 1445.82 | H115: 1436.08 | I115: 1418.37 | J115: 1473.27 | K115: 1490.98 | L115: 1500.72 | M115: 1481.25 | N115: 1453.8 | O115: 36590800 | P115: 3.81%
A116: 106 | B116: Technology | C116: INTELLECT | D116: 2023-01-25 | E116: 423.80 | F116: 426.22 | G116: 419.23 | H116: 414.67 | I116: 407.68 | J116: 430.78 | K116: 437.77 | L116: 442.33 | M116: 433.2 | N116: 421.65 | O116: 4678000 | P116: 1.19%
A117: 107 | B117: Oil_Gas | C117: IOC | D117: 2023-01-25 | E117: 80.50 | F117: 80.38 | G117: 79.52 | H117: 78.53 | I117: 77.67 | J117: 81.37 | K117: 82.23 | L117: 83.22 | M117: 81.25 | N117: 79.4 | O117: 85946250 | P117: -0.98%
A118: 108 | B118: Pharma | C118: IPCALAB | D118: 2023-01-25 | E118: 858.10 | F118: 858.25 | G118: 849.45 | H118: 840.80 | I118: 832.00 | J118: 866.90 | K118: 875.70 | L118: 884.35 | M118: 867.05 | N118: 849.6 | O118: 1626300 | P118: 1.25%
A119: 109 | B119: Others | C119: IRCTC | D119: 2023-01-25 | E119: 637.30 | F119: 636.83 | G119: 631.47 | H119: 625.63 | I119: 620.27 | J119: 642.67 | K119: 648.03 | L119: 653.87 | M119: 642.2 | N119: 631 | O119: 15150625 | P119: 0.52%
A120: 110 | B120: FMCG | C120: ITC | D120: 2023-01-25 | E120: 336.10 | F120: 336.22 | G120: 334.18 | H120: 332.27 | I120: 330.23 | J120: 338.13 | K120: 340.17 | L120: 342.08 | M120: 338.25 | N120: 334.3 | O120: 69364800 | P120: -2.12%
A121: 111 | B121: Metals | C121: JINDALSTEL | D121: 2023-01-25 | E121: 593.60 | F121: 595.27 | G121: 588.83 | H121: 584.07 | I121: 577.63 | J121: 600.03 | K121: 606.47 | L121: 611.23 | M121: 601.7 | N121: 590.5 | O121: 20185000 | P121: -3.16%
A122: 112 | B122: Cement | C122: JKCEMENT | D122: 2023-01-25 | E122: 2880.90 | F122: 2885.13 | G122: 2860.27 | H122: 2839.63 | I122: 2814.77 | J122: 2905.77 | K122: 2930.63 | L122: 2951.27 | M122: 2910 | N122: 2864.5 | O122: 480000 | P122: -1.79%
A123: 113 | B123: Metals | C123: JSWSTEEL | D123: 2023-01-25 | E123: 732.00 | F123: 739.00 | G123: 722.60 | H123: 713.20 | I123: 696.80 | J123: 748.40 | K123: 764.80 | L123: 774.20 | M123: 755.4 | N123: 729.6 | O123: 23927400 | P123: 3.85%
A124: 114 | B124: Others | C124: JUBLFOOD | D124: 2023-01-25 | E124: 500.45 | F124: 502.30 | G124: 493.85 | H124: 487.25 | I124: 478.80 | J124: 508.90 | K124: 517.35 | L124: 523.95 | M124: 510.75 | N124: 495.7 | O124: 15851250 | P124: 1.57%
A125: 115 | B125: Banking | C125: KOTAKBANK | D125: 2023-01-25 | E125: 1794.65 | F125: 1803.30 | G125: 1772.35 | H125: 1750.05 | I125: 1719.10 | J125: 1825.60 | K125: 1856.55 | L125: 1878.85 | M125: 1834.25 | N125: 1781 | O125: 33064400 | P125: 1.60%
A126: 116 | B126: Finance | C126: L&TFH | D126: 2023-01-25 | E126: 87.25 | F126: 87.55 | G126: 85.75 | H126: 84.25 | I126: 82.45 | J126: 89.05 | K126: 90.85 | L126: 92.35 | M126: 89.35 | N126: 86.05 | O126: 62940972 | P126: -1.47%
A127: 117 | B127: Others | C127: LALPATHLAB | D127: 2023-01-25 | E127: 2193.10 | F127: 2205.45 | G127: 2170.50 | H127: 2147.90 | I127: 2112.95 | J127: 2228.05 | K127: 2263.00 | L127: 2285.60 | M127: 2240.4 | N127: 2182.85 | O127: 1295000 | P127: 2.33%
A128: 118 | B128: Pharma | C128: LAURUSLABS | D128: 2023-01-25 | E128: 374.70 | F128: 376.80 | G128: 370.60 | H128: 366.50 | I128: 360.30 | J128: 380.90 | K128: 387.10 | L128: 391.20 | M128: 383 | N128: 372.7 | O128: 10098000 | P128: -0.51%
A129: 119 | B129: Finance | C129: LICHSGFIN | D129: 2023-01-25 | E129: 405.60 | F129: 410.97 | G129: 397.43 | H129: 389.27 | I129: 375.73 | J129: 419.13 | K129: 432.67 | L129: 440.83 | M129: 424.5 | N129: 402.8 | O129: 13346000 | P129: 1.65%
A130: 120 | B130: Capital_Goods | C130: LT | D130: 2023-01-25 | E130: 2098.30 | F130: 2103.27 | G130: 2078.08 | H130: 2057.87 | I130: 2032.68 | J130: 2123.48 | K130: 2148.67 | L130: 2168.88 | M130: 2128.45 | N130: 2083.05 | O130: 8358000 | P130: 1.17%
A131: 121 | B131: Technology | C131: LTIM | D131: 2023-01-25 | E131: 4210.50 | F131: 4231.53 | G131: 4167.07 | H131: 4123.63 | I131: 4059.17 | J131: 4274.97 | K131: 4339.43 | L131: 4382.87 | M131: 4296 | N131: 4188.1 | O131: 1905750 | P131: -1.40%
A132: 122 | B132: Technology | C132: LTTS | D132: 2023-01-25 | E132: 3593.00 | F132: 3603.60 | G132: 3559.55 | H132: 3526.10 | I132: 3482.05 | J132: 3637.05 | K132: 3681.10 | L132: 3714.55 | M132: 3647.65 | N132: 3570.15 | O132: 1113000 | P132: 2.24%
A133: 123 | B133: Pharma | C133: LUPIN | D133: 2023-01-25 | E133: 741.05 | F133: 742.73 | G133: 734.97 | H133: 728.88 | I133: 721.12 | J133: 748.82 | K133: 756.58 | L133: 762.67 | M133: 750.5 | N133: 736.65 | O133: 6152300 | P133: -1.13%
A134: 124 | B134: Automobile | C134: M&M | D134: 2023-01-25 | E134: 1271.20 | F134: 1268.58 | G134: 1257.32 | H134: 1243.43 | I134: 1232.17 | J134: 1282.47 | K134: 1293.73 | L134: 1307.62 | M134: 1279.85 | N134: 1254.7 | O134: 12726700 | P134: 6.57%
A135: 125 | B135: Finance | C135: M&MFIN | D135: 2023-01-25 | E135: 233.85 | F135: 233.87 | G135: 230.53 | H135: 227.22 | I135: 223.88 | J135: 237.18 | K135: 240.52 | L135: 243.83 | M135: 237.2 | N135: 230.55 | O135: 23732000 | P135: -2.47%
A136: 126 | B136: Finance | C136: MANAPPURAM | D136: 2023-01-25 | E136: 119.15 | F136: 119.78 | G136: 117.37 | H136: 115.58 | I136: 113.17 | J136: 121.57 | K136: 123.98 | L136: 125.77 | M136: 122.2 | N136: 118 | O136: 48048000 | P136: -0.78%
A137: 127 | B137: FMCG | C137: MARICO | D137: 2023-01-25 | E137: 515.15 | F137: 515.00 | G137: 510.75 | H137: 506.35 | I137: 502.10 | J137: 519.40 | K137: 523.65 | L137: 528.05 | M137: 519.25 | N137: 510.6 | O137: 8563200 | P137: -0.81%
A138: 128 | B138: Automobile | C138: MARUTI | D138: 2023-01-25 | E138: 8427.90 | F138: 8448.75 | G138: 8370.50 | H138: 8313.10 | I138: 8234.85 | J138: 8506.15 | K138: 8584.40 | L138: 8641.80 | M138: 8527 | N138: 8391.35 | O138: 2776300 | P138: 0.02%
A139: 129 | B139: FMCG | C139: MCDOWELL-N | D139: 2023-01-25 | E139: 858.75 | F139: 858.58 | G139: 851.97 | H139: 845.18 | I139: 838.57 | J139: 865.37 | K139: 871.98 | L139: 878.77 | M139: 865.2 | N139: 851.8 | O139: 14876250 | P139: 0.23%
A140: 130 | B140: Others | C140: MCX | D140: 2023-01-25 | E140: 1447.35 | F140: 1456.32 | G140: 1429.63 | H140: 1411.92 | I140: 1385.23 | J140: 1474.03 | K140: 1500.72 | L140: 1518.43 | M140: 1483 | N140: 1438.6 | O140: 1403200 | P140: 1.53%
A141: 131 | B141: Pharma | C141: METROPOLIS | D141: 2023-01-25 | E141: 1337.55 | F141: 1349.92 | G141: 1321.88 | H141: 1306.22 | I141: 1278.18 | J141: 1365.58 | K141: 1393.62 | L141: 1409.28 | M141: 1377.95 | N141: 1334.25 | O141: 1426800 | P141: 1.74%
A142: 132 | B142: Finance | C142: MFSL | D142: 2023-01-25 | E142: 745.50 | F142: 747.95 | G142: 734.90 | H142: 724.30 | I142: 711.25 | J142: 758.55 | K142: 771.60 | L142: 782.20 | M142: 761 | N142: 737.35 | O142: 5538000 | P142: -5.13%
A143: 133 | B143: Oil_Gas | C143: MGL | D143: 2023-01-25 | E143: 864.30 | F143: 866.18 | G143: 854.42 | H143: 844.53 | I143: 832.77 | J143: 876.07 | K143: 887.83 | L143: 897.72 | M143: 877.95 | N143: 856.3 | O143: 2408800 | P143: -1.18%
A144: 134 | B144: Automobile | C144: MOTHERSON | D144: 2023-01-25 | E144: 75.55 | F144: 75.67 | G144: 75.03 | H144: 74.52 | I144: 73.88 | J144: 76.18 | K144: 76.82 | L144: 77.33 | M144: 76.3 | N144: 75.15 | O144: 75350250 | P144: -1.11%
A145: 135 | B145: Technology | C145: MPHASIS | D145: 2023-01-25 | E145: 1981.95 | F145: 1996.18 | G145: 1957.37 | H145: 1932.78 | I145: 1893.97 | J145: 2020.77 | K145: 2059.58 | L145: 2084.17 | M145: 2035 | N145: 1971.6 | O145: 1644225 | P145: -4.49%
A146: 136 | B146: Automobile | C146: MRF | D146: 2023-01-25 | E146: 92869.95 | F146: 92194.38 | G146: 91175.57 | H146: 89481.18 | I146: 88462.37 | J146: 93888.77 | K146: 94907.58 | L146: 96601.97 | M146: 93213.2 | N146: 90500 | O146: 55420 | P146: 5.40%
A147: 137 | B147: Finance | C147: MUTHOOTFIN | D147: 2023-01-25 | E147: 1064.55 | F147: 1066.25 | G147: 1054.00 | H147: 1043.45 | I147: 1031.20 | J147: 1076.80 | K147: 1089.05 | L147: 1099.60 | M147: 1078.5 | N147: 1055.7 | O147: 7212150 | P147: 0.57%
A148: 138 | B148: Metals | C148: NATIONALUM | D148: 2023-01-25 | E148: 81.35 | F148: 81.73 | G148: 80.67 | H148: 79.98 | I148: 78.92 | J148: 82.42 | K148: 83.48 | L148: 84.17 | M148: 82.8 | N148: 81.05 | O148: 69780000 | P148: 0.03%
A149: 139 | B149: Others | C149: NAUKRI | D149: 2023-01-25 | E149: 3685.40 | F149: 3691.90 | G149: 3651.00 | H149: 3616.60 | I149: 3575.70 | J149: 3726.30 | K149: 3767.20 | L149: 3801.60 | M149: 3732.8 | N149: 3657.5 | O149: 1429000 | P149: 3.80%
A150: 140 | B150: Chemical | C150: NAVINFLUOR | D150: 2023-01-25 | E150: 3882.00 | F150: 3913.40 | G150: 3832.45 | H150: 3782.90 | I150: 3701.95 | J150: 3962.95 | K150: 4043.90 | L150: 4093.45 | M150: 3994.35 | N150: 3863.85 | O150: 398700 | P150: 0.87%
A151: 141 | B151: FMCG | C151: NESTLEIND | D151: 2023-01-25 | E151: 19931.85 | F151: 19921.67 | G151: 19852.78 | H151: 19773.72 | I151: 19704.83 | J151: 20000.73 | K151: 20069.62 | L151: 20148.68 | M151: 19990.55 | N151: 19842.6 | O151: 244760 | P151: -1.66%
A152: 142 | B152: Metals | C152: NMDC | D152: 2023-01-25 | E152: 122.55 | F152: 123.18 | G152: 121.37 | H152: 120.18 | I152: 118.37 | J152: 124.37 | K152: 126.18 | L152: 127.37 | M152: 125 | N152: 122 | O152: 37926000 | P152: 2.81%
A153: 143 | B153: Power | C153: NTPC | D153: 2023-01-25 | E153: 169.95 | F153: 170.72 | G153: 168.93 | H153: 167.92 | I153: 166.13 | J153: 171.73 | K153: 173.52 | L153: 174.53 | M153: 172.5 | N153: 169.7 | O153: 56675100 | P153: 0.11%
A154: 144 | B154: Realty | C154: OBEROIRLTY | D154: 2023-01-25 | E154: 857.00 | F154: 856.95 | G154: 847.90 | H154: 838.80 | I154: 829.75 | J154: 866.05 | K154: 875.10 | L154: 884.20 | M154: 866 | N154: 847.85 | O154: 6239800 | P154: 2.14%
A155: 145 | B155: Technology | C155: OFSS | D155: 2023-01-25 | E155: 3004.45 | F155: 3006.32 | G155: 2988.13 | H155: 2971.82 | I155: 2953.63 | J155: 3022.63 | K155: 3040.82 | L155: 3057.13 | M155: 3024.5 | N155: 2990 | O155: 515800 | P155: -0.92%
A156: 146 | B156: Oil_Gas | C156: ONGC | D156: 2023-01-25 | E156: 147.80 | F156: 147.73 | G156: 146.87 | H156: 145.93 | I156: 145.07 | J156: 148.67 | K156: 149.53 | L156: 150.47 | M156: 148.6 | N156: 146.8 | O156: 34923350 | P156: 9.04%
A157: 147 | B157: Textile | C157: PAGEIND | D157: 2023-01-25 | E157: 41869.85 | F157: 41923.27 | G157: 41446.58 | H157: 41023.32 | I157: 40546.63 | J157: 42346.53 | K157: 42823.22 | L157: 43246.48 | M157: 42399.95 | N157: 41500 | O157: 104880 | P157: 2.60%
A158: 148 | B158: Pharma | C158: PEL | D158: 2023-01-25 | E158: 801.40 | F158: 804.48 | G158: 792.37 | H158: 783.33 | I158: 771.22 | J158: 813.52 | K158: 825.63 | L158: 834.67 | M158: 816.6 | N158: 795.45 | O158: 5939450 | P158: -0.21%
A159: 149 | B159: Technology | C159: PERSISTENT | D159: 2023-01-25 | E159: 3831.05 | F159: 3861.35 | G159: 3783.15 | H159: 3735.25 | I159: 3657.05 | J159: 3909.25 | K159: 3987.45 | L159: 4035.35 | M159: 3939.55 | N159: 3813.45 | O159: 488425 | P159: 5.44%
A160: 150 | B160: Oil_Gas | C160: PETRONET | D160: 2023-01-25 | E160: 218.45 | F160: 220.42 | G160: 215.08 | H160: 211.72 | I160: 206.38 | J160: 223.78 | K160: 229.12 | L160: 232.48 | M160: 225.75 | N160: 217.05 | O160: 12909000 | P160: -0.46%
A161: 151 | B161: Finance | C161: PFC | D161: 2023-01-25 | E161: 157.65 | F161: 157.87 | G161: 154.38 | H161: 151.12 | I161: 147.63 | J161: 161.13 | K161: 164.62 | L161: 167.88 | M161: 161.35 | N161: 154.6 | O161: 66457800 | P161: 0.14%
A162: 152 | B162: FMCG | C162: PIDILITIND | D162: 2023-01-25 | E162: 2532.70 | F162: 2532.23 | G162: 2520.47 | H162: 2508.23 | I162: 2496.47 | J162: 2544.47 | K162: 2556.23 | L162: 2568.47 | M162: 2544 | N162: 2520 | O162: 2604500 | P162: -0.68%
A163: 153 | B163: Chemical | C163: PIIND | D163: 2023-01-25 | E163: 3306.70 | F163: 3322.87 | G163: 3273.83 | H163: 3240.97 | I163: 3191.93 | J163: 3355.73 | K163: 3404.77 | L163: 3437.63 | M163: 3371.9 | N163: 3290 | O163: 1559500 | P163: 1.25%
A164: 154 | B164: Banking | C164: PNB | D164: 2023-01-25 | E164: 56.65 | F164: 56.87 | G164: 55.88 | H164: 55.12 | I164: 54.13 | J164: 57.63 | K164: 58.62 | L164: 59.38 | M164: 57.85 | N164: 56.1 | O164: 226480000 | P164: -0.41%
A165: 155 | B165: Others | C165: POLYCAB | D165: 2023-01-25 | E165: 2627.35 | F165: 2637.40 | G165: 2599.85 | H165: 2572.35 | I165: 2534.80 | J165: 2664.90 | K165: 2702.45 | L165: 2729.95 | M165: 2674.95 | N165: 2609.9 | O165: 793500 | P165: 1.34%
A166: 156 | B166: Power | C166: POWERGRID | D166: 2023-01-25 | E166: 209.20 | F166: 209.78 | G166: 208.17 | H166: 207.13 | I166: 205.52 | J166: 210.82 | K166: 212.43 | L166: 213.47 | M166: 211.4 | N166: 208.75 | O166: 38685600 | P166: 4.81%
A167: 157 | B167: Media | C167: PVR | D167: 2023-01-25 | E167: 1636.95 | F167: 1648.28 | G167: 1611.57 | H167: 1586.18 | I167: 1549.47 | J167: 1673.67 | K167: 1710.38 | L167: 1735.77 | M167: 1685 | N167: 1622.9 | O167: 3084653 | P167: 3.85%
A168: 158 | B168: Others | C168: RAIN | D168: 2023-01-25 | E168: 174.20 | F168: 175.55 | G168: 171.75 | H168: 169.30 | I168: 165.50 | J168: 178.00 | K168: 181.80 | L168: 184.25 | M168: 179.35 | N168: 173.1 | O168: 10871000 | P168: 3.19%
A169: 159 | B169: Cement | C169: RAMCOCEM | D169: 2023-01-25 | E169: 710.70 | F169: 710.30 | G169: 703.40 | H169: 696.10 | I169: 689.20 | J169: 717.60 | K169: 724.50 | L169: 731.80 | M169: 717.2 | N169: 703 | O169: 3627800 | P169: -1.84%
A170: 160 | B170: Banking | C170: RBLBANK | D170: 2023-01-25 | E170: 184.80 | F170: 185.88 | G170: 181.57 | H170: 178.33 | I170: 174.02 | J170: 189.12 | K170: 193.43 | L170: 196.67 | M170: 190.2 | N170: 182.65 | O170: 33985000 | P170: -0.34%
A171: 161 | B171: Power | C171: RECLTD | D171: 2023-01-25 | E171: 124.25 | F171: 124.55 | G171: 122.70 | H171: 121.15 | I171: 119.30 | J171: 126.10 | K171: 127.95 | L171: 129.50 | M171: 126.4 | N171: 123 | O171: 77120000 | P171: -1.74%
A172: 162 | B172: Oil_Gas | C172: RELIANCE | D172: 2023-01-25 | E172: 2551.15 | F172: 2548.23 | G172: 2534.67 | H172: 2518.18 | I172: 2504.62 | J172: 2564.72 | K172: 2578.28 | L172: 2594.77 | M172: 2561.8 | N172: 2531.75 | O172: 34514750 | P172: -1.23%
A173: 163 | B173: Metals | C173: SAIL | D173: 2023-01-25 | E173: 86.40 | F173: 86.85 | G173: 85.35 | H173: 84.30 | I173: 82.80 | J173: 87.90 | K173: 89.40 | L173: 90.45 | M173: 88.35 | N173: 85.8 | O173: 127520000 | P173: 1.87%
A174: 164 | B174: Banking | C174: SBICARD | D174: 2023-01-25 | E174: 774.95 | F174: 777.23 | G174: 770.92 | H174: 766.88 | I174: 760.57 | J174: 781.27 | K174: 787.58 | L174: 791.62 | M174: 783.55 | N174: 773.2 | O174: 7592800 | P174: 0.60%
A175: 165 | B175: Finance | C175: SBILIFE | D175: 2023-01-25 | E175: 1276.55 | F175: 1281.28 | G175: 1268.37 | H175: 1260.18 | I175: 1247.27 | J175: 1289.47 | K175: 1302.38 | L175: 1310.57 | M175: 1294.2 | N175: 1273.1 | O175: 6834000 | P175: 2.59%
A176: 166 | B176: Banking | C176: SBIN | D176: 2023-01-25 | E176: 603.95 | F176: 604.77 | G176: 599.18 | H176: 594.42 | I176: 588.83 | J176: 609.53 | K176: 615.12 | L176: 619.88 | M176: 610.35 | N176: 600 | O176: 57612000 | P176: 3.17%
A177: 167 | B177: Cement | C177: SHREECEM | D177: 2023-01-25 | E177: 23669.20 | F177: 23738.07 | G177: 23306.18 | H177: 22943.17 | I177: 22511.28 | J177: 24101.08 | K177: 24532.97 | L177: 24895.98 | M177: 24169.95 | N177: 23375.05 | O177: 267575 | P177: 0.84%
A178: 168 | B178: Capital_Goods | C178: SIEMENS | D178: 2023-01-25 | E178: 2898.05 | F178: 2905.68 | G178: 2872.62 | H178: 2847.18 | I178: 2814.12 | J178: 2931.12 | K178: 2964.18 | L178: 2989.62 | M178: 2938.75 | N178: 2880.25 | O178: 1615625 | P178: -1.41%
A179: 169 | B179: Textile | C179: SRF | D179: 2023-01-25 | E179: 2250.90 | F179: 2255.67 | G179: 2229.33 | H179: 2207.77 | I179: 2181.43 | J179: 2277.23 | K179: 2303.57 | L179: 2325.13 | M179: 2282 | N179: 2234.1 | O179: 4617375 | P179: 0.60%
A180: 170 | B180: Finance | C180: SHRIRAMFIN | D180: 2023-01-25 | E180: 1289.50 | F180: 1295.05 | G180: 1275.45 | H180: 1261.40 | I180: 1241.80 | J180: 1309.10 | K180: 1328.70 | L180: 1342.75 | M180: 1314.65 | N180: 1281 | O180: 4971600 | P180: 1.14%
A181: 171 | B181: Pharma | C181: SUNPHARMA | D181: 2023-01-25 | E181: 1012.85 | F181: 1015.62 | G181: 1006.73 | H181: 1000.62 | I181: 991.73 | J181: 1021.73 | K181: 1030.62 | L181: 1036.73 | M181: 1024.5 | N181: 1009.5 | O181: 15327900 | P181: 1.34%
A182: 172 | B182: Media | C182: SUNTV | D182: 2023-01-25 | E182: 480.55 | F182: 480.82 | G182: 476.73 | H182: 472.92 | I182: 468.83 | J182: 484.63 | K182: 488.72 | L182: 492.53 | M182: 484.9 | N182: 477 | O182: 9621000 | P182: -0.40%
A183: 173 | B183: Pharma | C183: SYNGENE | D183: 2023-01-25 | E183: 598.40 | F183: 598.57 | G183: 594.13 | H183: 589.87 | I183: 585.43 | J183: 602.83 | K183: 607.27 | L183: 611.53 | M183: 603 | N183: 594.3 | O183: 1345000 | P183: -1.39%
A184: 174 | B184: Chemical | C184: TATACHEM | D184: 2023-01-25 | E184: 952.25 | F184: 951.23 | G184: 942.47 | H184: 932.68 | I184: 923.92 | J184: 961.02 | K184: 969.78 | L184: 979.57 | M184: 960 | N184: 941.45 | O184: 7239000 | P184: -0.62%
A185: 175 | B185: Telecom | C185: TATACOMM | D185: 2023-01-25 | E185: 1331.00 | F185: 1333.88 | G185: 1317.77 | H185: 1304.53 | I185: 1288.42 | J185: 1347.12 | K185: 1363.23 | L185: 1376.47 | M185: 1350 | N185: 1320.65 | O185: 2029000 | P185: -0.56%
A186: 176 | B186: FMCG | C186: TATACONSUM | D186: 2023-01-25 | E186: 763.50 | F186: 766.15 | G186: 759.10 | H186: 754.70 | I186: 747.65 | J186: 770.55 | K186: 777.60 | L186: 782.00 | M186: 773.2 | N186: 761.75 | O186: 9023400 | P186: 0.49%
A187: 177 | B187: Automobile | C187: TATAMOTORS | D187: 2023-01-25 | E187: 384.10 | F187: 385.88 | G187: 381.37 | H187: 378.63 | I187: 374.12 | J187: 388.62 | K187: 393.13 | L187: 395.87 | M187: 390.4 | N187: 383.15 | O187: 80543850 | P187: 1.54%
A188: 178 | B188: Power | C188: TATAPOWER | D188: 2023-01-25 | E188: 206.05 | F188: 206.78 | G188: 203.92 | H188: 201.78 | I188: 198.92 | J188: 208.92 | K188: 211.78 | L188: 213.92 | M188: 209.65 | N188: 204.65 | O188: 109636875 | P188: 1.63%
A189: 179 | B189: Metals | C189: TATASTEEL | D189: 2023-01-25 | E189: 116.20 | F189: 116.68 | G189: 115.22 | H189: 114.23 | I189: 112.77 | J189: 117.67 | K189: 119.13 | L189: 120.12 | M189: 118.15 | N189: 115.7 | O189: 190201000 | P189: -2.25%
A190: 180 | B190: Technology | C190: TCS | D190: 2023-01-25 | E190: 3211.50 | F190: 3237.35 | G190: 3172.15 | H190: 3132.80 | I190: 3067.60 | J190: 3276.70 | K190: 3341.90 | L190: 3381.25 | M190: 3302.55 | N190: 3198 | O190: 10247475 | P190: 4.26%
A191: 181 | B191: Technology | C191: TECHM | D191: 2023-01-25 | E191: 989.45 | F191: 996.88 | G191: 979.77 | H191: 970.08 | I191: 952.97 | J191: 1006.57 | K191: 1023.68 | L191: 1033.37 | M191: 1014 | N191: 987.2 | O191: 13248000 | P191: 3.58%
A192: 182 | B192: FMCG | C192: TITAN | D192: 2023-01-25 | E192: 2551.95 | F192: 2559.10 | G192: 2521.25 | H192: 2490.55 | I192: 2452.70 | J192: 2589.80 | K192: 2627.65 | L192: 2658.35 | M192: 2596.95 | N192: 2528.4 | O192: 7260000 | P192: 1.37%
A193: 183 | B193: Pharma | C193: TORNTPHARM | D193: 2023-01-25 | E193: 1552.20 | F193: 1557.65 | G193: 1544.55 | H193: 1536.90 | I193: 1523.80 | J193: 1565.30 | K193: 1578.40 | L193: 1586.05 | M193: 1570.75 | N193: 1550 | O193: 1690500 | P193: -1.49%
A194: 184 | B194: Power | C194: TORNTPOWER | D194: 2023-01-25 | E194: 481.85 | F194: 483.78 | G194: 478.27 | H194: 474.68 | I194: 469.17 | J194: 487.37 | K194: 492.88 | L194: 496.47 | M194: 489.3 | N194: 480.2 | O194: 3400500 | P194: 2.35%
A195: 185 | B195: Others | C195: TRENT | D195: 2023-01-25 | E195: 1254.30 | F195: 1261.18 | G195: 1235.12 | H195: 1215.93 | I195: 1189.87 | J195: 1280.37 | K195: 1306.43 | L195: 1325.62 | M195: 1287.25 | N195: 1242 | O195: 4530000 | P195: 2.57%
A196: 186 | B196: Automobile | C196: TVSMOTOR | D196: 2023-01-25 | E196: 1028.20 | F196: 1028.73 | G196: 1018.67 | H196: 1009.13 | I196: 999.07 | J196: 1038.27 | K196: 1048.33 | L196: 1057.87 | M196: 1038.8 | N196: 1019.2 | O196: 7598500 | P196: 1.14%
A197: 187 | B197: FMCG | C197: UBL | D197: 2023-01-25 | E197: 1660.95 | F197: 1664.57 | G197: 1646.38 | H197: 1631.82 | I197: 1613.63 | J197: 1679.13 | K197: 1697.32 | L197: 1711.88 | M197: 1682.75 | N197: 1650 | O197: 1060800 | P197: 1.22%
A198: 188 | B198: Cement | C198: ULTRACEMCO | D198: 2023-01-25 | E198: 7005.65 | F198: 7014.97 | G198: 6964.13 | H198: 6922.62 | I198: 6871.78 | J198: 7056.48 | K198: 7107.32 | L198: 7148.83 | M198: 7065.8 | N198: 6973.45 | O198: 2211200 | P198: -0.21%
A199: 189 | B199: Chemical | C199: UPL | D199: 2023-01-25 | E199: 721.05 | F199: 724.08 | G199: 715.17 | H199: 709.28 | I199: 700.37 | J199: 729.97 | K199: 738.88 | L199: 744.77 | M199: 733 | N199: 718.2 | O199: 19995300 | P199: 0.27%
A200: 190 | B200: Metals | C200: VEDL | D200: 2023-01-25 | E200: 311.40 | F200: 312.43 | G200: 308.77 | H200: 306.13 | I200: 302.47 | J200: 315.07 | K200: 318.73 | L200: 321.37 | M200: 316.1 | N200: 309.8 | O200: 33580000 | P200: -1.58%
A201: 191 | B201: Capital_Goods | C201: VOLTAS | D201: 2023-01-25 | E201: 818.10 | F201: 818.27 | G201: 809.83 | H201: 801.57 | I201: 793.13 | J201: 826.53 | K201: 834.97 | L201: 843.23 | M201: 826.7 | N201: 810 | O201: 6723000 | P201: 0.39%
A202: 192 | B202: Capital_Goods | C202: WHIRLPOOL | D202: 2023-01-25 | E202: 1508.30 | F202: 1515.23 | G202: 1497.07 | H202: 1485.83 | I202: 1467.67 | J202: 1526.47 | K202: 1544.63 | L202: 1555.87 | M202: 1533.4 | N202: 1504 | O202: 710500 | P202: 2.01%
A203: 193 | B203: Technology | C203: WIPRO | D203: 2023-01-25 | E203: 381.80 | F203: 384.13 | G203: 378.82 | H203: 375.83 | I203: 370.52 | J203: 387.12 | K203: 392.43 | L203: 395.42 | M203: 389.45 | N203: 381.15 | O203: 45966000 | P203: 2.37%
A204: 194 | B204: Media | C204: ZEEL | D204: 2023-01-25 | E204: 238.45 | F204: 238.72 | G204: 236.48 | H204: 234.52 | I204: 232.28 | J204: 240.68 | K204: 242.92 | L204: 244.88 | M204: 240.95 | N204: 236.75 | O204: 81951000 | P204: -0.48%
A205: 195 | B205: Pharma | C205: ZYDUSLIFE | D205: 2023-01-25 | E205: 432.55 | F205: 432.70 | G205: 428.35 | H205: 424.15 | I205: 419.80 | J205: 436.90 | K205: 441.25 | L205: 445.45 | M205: 437.05 | N205: 428.5 | O205: 9621000 | P205: -2.92%
A222: Pivot Point: This is trigger point for intra day buy/sell based on the price range of the previous day
... 14 more rows

Sheet Cash Intra
M5: Back to Main Page
A6: FOR INTRA DAY TRADING | K6: =Main!B10 -> 2023-01-09
A8: Sr.no | C8: CLOSE RATE | D8: Pivot Point | E8: Supports | H8: Resistances
E9: S1 | F9: S2 | G9: S3 | H9: R1 | I9: R2 | J9: R3 | K9: HIGH | L9: LOW | M9: Total Trade Quanity in Lakhs
A10: 1 | B10: Nifty 50 | C10: 17859.45 | D10: 17900.80 | E10: 17754.20 | F10: 17648.95 | G10: 17502.35 | H10: 18006.05 | I10: 18152.65 | J10: 18257.90 | K10: 18047.40 | L10: 17795.55
A11: 2 | B11: Nifty Bank | C11: 42188.80 | D11: 42250.57 | E11: 41815.23 | F11: 41441.67 | G11: 41006.33 | H11: 42624.13 | I11: 43059.47 | J11: 43433.03 | K11: 42685.90 | L11: 41877.00
A12: 3 | B12: Nifty CPSE | C12: 2765.35 | D12: 2771.77 | E12: 2753.23 | F12: 2741.12 | G12: 2722.58 | H12: 2783.88 | I12: 2802.42 | J12: 2814.53 | K12: 2790.30 | L12: 2759.65
A13: 4 | B13: Nifty Infra | C13: 5245.15 | D13: 5253.80 | E13: 5214.95 | F13: 5184.75 | G13: 5145.90 | H13: 5284.00 | I13: 5322.85 | J13: 5353.05 | K13: 5292.65 | L13: 5223.60
A14: 5 | B14: Nifty IT | C14: 27956.45 | D14: 28124.12 | E14: 27741.08 | F14: 27525.72 | G14: 27142.68 | H14: 28339.48 | I14: 28722.52 | J14: 28937.88 | K14: 28507.15 | L14: 27908.75
A15: 6 | B15: Nifty PSE | C15: 4404.05 | D15: 4412.65 | E15: 4384.55 | F15: 4365.05 | G15: 4336.95 | H15: 4432.15 | I15: 4460.25 | J15: 4479.75 | K15: 4440.75 | L15: 4393.15
A16: 7 | B16: Nifty Midcap 50 | C16: 8752.30 | D16: 8765.48 | E16: 8703.92 | F16: 8655.53 | G16: 8593.97 | H16: 8813.87 | I16: 8875.43 | J16: 8923.82 | K16: 8827.05 | L16: 8717.10
A17: 8 | B17: ABB | C17: 2843.6 | D17: 2837.30 | E17: 2816.60 | F17: 2789.60 | G17: 2768.90 | H17: 2864.30 | I17: 2885.00 | J17: 2912.00 | K17: 2858 | L17: 2810.3 | M17: 6.30345
A18: 9 | B18: ACC | C18: 2415.95 | D18: 2424.33 | E18: 2391.62 | F18: 2367.28 | G18: 2334.57 | H18: 2448.67 | I18: 2481.38 | J18: 2505.72 | K18: 2457.05 | L18: 2400 | M18: 2.0388
A19: 10 | B19: AUBANK | C19: 625.8 | D19: 628.20 | E19: 617.05 | F19: 608.30 | G19: 597.15 | H19: 636.95 | I19: 648.10 | J19: 656.85 | K19: 639.35 | L19: 619.45 | M19: 16.34322
A20: 11 | B20: ABBOTINDIA | C20: 22328.05 | D20: 22236.10 | E20: 22112.20 | F20: 21896.35 | G20: 21772.45 | H20: 22451.95 | I20: 22575.85 | J20: 22791.70 | K20: 22360 | L20: 22020.25 | M20: 0.17576
A21: 12 | B21: ADANIENT | C21: 3824.25 | D21: 3829.85 | E21: 3791.45 | F21: 3758.65 | G21: 3720.25 | H21: 3862.65 | I21: 3901.05 | J21: 3933.85 | K21: 3868.25 | L21: 3797.05 | M21: 9.12159
A22: 13 | B22: ADANIGREEN | C22: 1838.25 | D22: 1845.72 | E22: 1822.53 | F22: 1806.82 | G22: 1783.63 | H22: 1861.43 | I22: 1884.62 | J22: 1900.33 | K22: 1868.9 | L22: 1830 | M22: 4.55101
A23: 14 | B23: ADANIPORTS | C23: 806.1 | D23: 811.33 | E23: 798.27 | F23: 790.43 | G23: 777.37 | H23: 819.17 | I23: 832.23 | J23: 840.07 | K23: 824.4 | L23: 803.5 | M23: 28.92006
A24: 15 | B24: ATGL | C24: 3555.4 | D24: 3568.78 | E24: 3507.62 | F24: 3459.83 | G24: 3398.67 | H24: 3616.57 | I24: 3677.73 | J24: 3725.52 | K24: 3629.95 | L24: 3521 | M24: 2.83873
A25: 16 | B25: ADANITRANS | C25: 2523.35 | D25: 2527.35 | E25: 2493.25 | F25: 2463.15 | G25: 2429.05 | H25: 2557.45 | I25: 2591.55 | J25: 2621.65 | K25: 2561.45 | L25: 2497.25 | M25: 3.9851
A26: 17 | B26: AWL | C26: 568.35 | D26: 568.33 | E26: 562.82 | F26: 557.28 | G26: 551.77 | H26: 573.87 | I26: 579.38 | J26: 584.92 | K26: 573.85 | L26: 562.8 | M26: 13.85827
A27: 18 | B27: ABCAPITAL | C27: 145.3 | D27: 146.48 | E27: 142.87 | F27: 140.43 | G27: 136.82 | H27: 148.92 | I27: 152.53 | J27: 154.97 | K27: 150.1 | L27: 144.05 | M27: 24.79526
A28: 19 | B28: ABFRL | C28: 277.55 | D28: 278.58 | E28: 274.67 | F28: 271.78 | G28: 267.87 | H28: 281.47 | I28: 285.38 | J28: 288.27 | K28: 282.5 | L28: 275.7 | M28: 25.23914
A29: 20 | B29: ALKEM | C29: 3031.35 | D29: 3040.60 | E29: 2993.75 | F29: 2956.15 | G29: 2909.30 | H29: 3078.20 | I29: 3125.05 | J29: 3162.65 | K29: 3087.45 | L29: 3003 | M29: 1.25959
A30: 21 | B30: AMBUJACEM | C30: 519.8 | D30: 520.87 | E30: 513.28 | F30: 506.77 | G30: 499.18 | H30: 527.38 | I30: 534.97 | J30: 541.48 | K30: 528.45 | L30: 514.35 | M30: 34.54408
A31: 22 | B31: APOLLOHOSP | C31: 4387.45 | D31: 4410.25 | E31: 4346.20 | F31: 4304.95 | G31: 4240.90 | H31: 4451.50 | I31: 4515.55 | J31: 4556.80 | K31: 4474.3 | L31: 4369 | M31: 2.9964
A32: 23 | B32: ASHOKLEY | C32: 147.75 | D32: 148.45 | E32: 146.65 | F32: 145.55 | G32: 143.75 | H32: 149.55 | I32: 151.35 | J32: 152.45 | K32: 150.25 | L32: 147.35 | M32: 99.04195
A33: 24 | B33: ASIANPAINT | C33: 2978.4 | D33: 2984.63 | E33: 2945.77 | F33: 2913.13 | G33: 2874.27 | H33: 3017.27 | I33: 3056.13 | J33: 3088.77 | K33: 3023.5 | L33: 2952 | M33: 10.45526
A34: 25 | B34: ASTRAL | C34: 2060.25 | D34: 2050.42 | E34: 2010.83 | F34: 1961.42 | G34: 1921.83 | H34: 2099.83 | I34: 2139.42 | J34: 2188.83 | K34: 2090 | L34: 2001 | M34: 9.54468
A35: 26 | B35: AUROPHARMA | C35: 442.05 | D35: 446.03 | E35: 436.42 | F35: 430.78 | G35: 421.17 | H35: 451.67 | I35: 461.28 | J35: 466.92 | K35: 455.65 | L35: 440.4 | M35: 19.29565
A36: 27 | B36: DMART | C36: 3842.5 | D36: 3869.17 | E36: 3808.33 | F36: 3774.17 | G36: 3713.33 | H36: 3903.33 | I36: 3964.17 | J36: 3998.33 | K36: 3930 | L36: 3835 | M36: 3.45746
A37: 28 | B37: AXISBANK | C37: 939.9 | D37: 941.72 | E37: 932.48 | F37: 925.07 | G37: 915.83 | H37: 949.13 | I37: 958.37 | J37: 965.78 | K37: 950.95 | L37: 934.3 | M37: 57.87783
A38: 29 | B38: BAJAJ-AUTO | C38: 3642.25 | D38: 3629.42 | E38: 3610.83 | F38: 3579.42 | G38: 3560.83 | H38: 3660.83 | I38: 3679.42 | J38: 3710.83 | K38: 3648 | L38: 3598 | M38: 1.73591
A39: 30 | B39: BAJFINANCE | C39: 5980.4 | D39: 6020.65 | E39: 5901.35 | F39: 5822.30 | G39: 5703.00 | H39: 6099.70 | I39: 6219.00 | J39: 6298.05 | K39: 6139.95 | L39: 5941.6 | M39: 29.31922
A40: 31 | B40: BAJAJFINSV | C40: 1430.35 | D40: 1442.30 | E40: 1411.05 | F40: 1391.75 | G40: 1360.50 | H40: 1461.60 | I40: 1492.85 | J40: 1512.15 | K40: 1473.55 | L40: 1423 | M40: 52.07616
A41: 32 | B41: BAJAJHLDNG | C41: 5680.25 | D41: 5678.65 | E41: 5652.70 | F41: 5625.15 | G41: 5599.20 | H41: 5706.20 | I41: 5732.15 | J41: 5759.70 | K41: 5704.6 | L41: 5651.1 | M41: 0.20655
A42: 33 | B42: BALKRISIND | C42: 2211.4 | D42: 2201.43 | E42: 2181.27 | F42: 2151.13 | G42: 2130.97 | H42: 2231.57 | I42: 2251.73 | J42: 2281.87 | K42: 2221.6 | L42: 2171.3 | M42: 3.11477
A43: 34 | B43: BANDHANBNK | C43: 242.35 | D43: 244.07 | E43: 238.68 | F43: 235.02 | G43: 229.63 | H43: 247.73 | I43: 253.12 | J43: 256.78 | K43: 249.45 | L43: 240.4 | M43: 143.06941
A44: 35 | B44: BANKBARODA | C44: 183.25 | D44: 183.25 | E44: 181.20 | F44: 179.15 | G44: 177.10 | H44: 185.30 | I44: 187.35 | J44: 189.40 | K44: 185.3 | L44: 181.2 | M44: 162.29775
A45: 36 | B45: BANKINDIA | C45: 93.45 | D45: 93.73 | E45: 92.27 | F45: 91.08 | G45: 89.62 | H45: 94.92 | I45: 96.38 | J45: 97.57 | K45: 95.2 | L45: 92.55 | M45: 145.08676
A46: 37 | B46: BATAINDIA | C46: 1624.85 | D46: 1628.62 | E46: 1614.33 | F46: 1603.82 | G46: 1589.53 | H46: 1639.13 | I46: 1653.42 | J46: 1663.93 | K46: 1642.9 | L46: 1618.1 | M46: 2.15943
A47: 38 | B47: BERGEPAINT | C47: 568.4 | D47: 569.12 | E47: 563.78 | F47: 559.17 | G47: 553.83 | H47: 573.73 | I47: 579.07 | J47: 583.68 | K47: 574.45 | L47: 564.5 | M47: 4.33455
A48: 39 | B48: BEL | C48: 98.95 | D48: 99.38 | E48: 98.27 | F48: 97.58 | G48: 96.47 | H48: 100.07 | I48: 101.18 | J48: 101.87 | K48: 100.5 | L48: 98.7 | M48: 72.1594
A49: 40 | B49: BHARATFORG | C49: 869.5 | D49: 872.95 | E49: 861.90 | F49: 854.30 | G49: 843.25 | H49: 880.55 | I49: 891.60 | J49: 899.20 | K49: 884 | L49: 865.35 | M49: 4.7777
A50: 41 | B50: BHEL | C50: 81.75 | D50: 82.12 | E50: 80.73 | F50: 79.72 | G50: 78.33 | H50: 83.13 | I50: 84.52 | J50: 85.53 | K50: 83.5 | L50: 81.1 | M50: 254.18809
A51: 42 | B51: BPCL | C51: 344.7 | D51: 343.83 | E51: 341.12 | F51: 337.53 | G51: 334.82 | H51: 347.42 | I51: 350.13 | J51: 353.72 | K51: 346.55 | L51: 340.25 | M51: 36.82205
A52: 43 | B52: BHARTIARTL | C52: 796 | D52: 800.08 | E52: 787.92 | F52: 779.83 | G52: 767.67 | H52: 808.17 | I52: 820.33 | J52: 828.42 | K52: 812.25 | L52: 792 | M52: 31.99618
A53: 44 | B53: BIOCON | C53: 256.35 | D53: 257.45 | E53: 253.45 | F53: 250.55 | G53: 246.55 | H53: 260.35 | I53: 264.35 | J53: 267.25 | K53: 261.45 | L53: 254.55 | M53: 23.52217
A54: 45 | B54: BOSCHLTD | C54: 17065.7 | D54: 17077.40 | E54: 16955.80 | F54: 16845.90 | G54: 16724.30 | H54: 17187.30 | I54: 17308.90 | J54: 17418.80 | K54: 17199 | L54: 16967.5 | M54: 0.21331
A55: 46 | B55: BRITANNIA | C55: 4359.05 | D55: 4346.02 | E55: 4323.03 | F55: 4287.02 | G55: 4264.03 | H55: 4382.03 | I55: 4405.02 | J55: 4441.03 | K55: 4369 | L55: 4310 | M55: 2.97438
A56: 47 | B56: CANBK | C56: 320.45 | D56: 322.20 | E56: 315.75 | F56: 311.05 | G56: 304.60 | H56: 326.90 | I56: 333.35 | J56: 338.05 | K56: 328.65 | L56: 317.5 | M56: 88.93004
A57: 48 | B57: CHOLAFIN | C57: 667.9 | D57: 673.25 | E57: 652.65 | F57: 637.40 | G57: 616.80 | H57: 688.50 | I57: 709.10 | J57: 724.35 | K57: 693.85 | L57: 658 | M57: 42.78558
A58: 49 | B58: CIPLA | C58: 1076.35 | D58: 1080.98 | E58: 1068.87 | F58: 1061.38 | G58: 1049.27 | H58: 1088.47 | I58: 1100.58 | J58: 1108.07 | K58: 1093.1 | L58: 1073.5 | M58: 8.24772
A59: 50 | B59: CLEAN | C59: 1458.2 | D59: 1462.38 | E59: 1446.32 | F59: 1434.43 | G59: 1418.37 | H59: 1474.27 | I59: 1490.33 | J59: 1502.22 | K59: 1478.45 | L59: 1450.5 | M59: 0.20738
A60: 51 | B60: COALINDIA | C60: 214.25 | D60: 215.38 | E60: 210.87 | F60: 207.48 | G60: 202.97 | H60: 218.77 | I60: 223.28 | J60: 226.67 | K60: 219.9 | L60: 212 | M60: 122.37065
A61: 52 | B61: COFORGE | C61: 3901 | D61: 3910.02 | E61: 3871.03 | F61: 3841.07 | G61: 3802.08 | H61: 3939.98 | I61: 3978.97 | J61: 4008.93 | K61: 3949 | L61: 3880.05 | M61: 1.63783
A62: 53 | B62: COLPAL | C62: 1516.7 | D62: 1521.58 | E62: 1508.12 | F62: 1499.53 | G62: 1486.07 | H62: 1530.17 | I62: 1543.63 | J62: 1552.22 | K62: 1535.05 | L62: 1513 | M62: 1.74194
A63: 54 | B63: CONCOR | C63: 736.45 | D63: 737.58 | E63: 728.17 | F63: 719.88 | G63: 710.47 | H63: 745.87 | I63: 755.28 | J63: 763.57 | K63: 747 | L63: 729.3 | M63: 9.61838
A64: 55 | B64: COROMANDEL | C64: 901.75 | D64: 901.85 | E64: 894.70 | F64: 887.65 | G64: 880.50 | H64: 908.90 | I64: 916.05 | J64: 923.10 | K64: 909 | L64: 894.8 | M64: 3.95416
A65: 56 | B65: CROMPTON | C65: 337.65 | D65: 338.07 | E65: 333.88 | F65: 330.12 | G65: 325.93 | H65: 341.83 | I65: 346.02 | J65: 349.78 | K65: 342.25 | L65: 334.3 | M65: 11.42463
A66: 57 | B66: CUMMINSIND | C66: 1431.35 | D66: 1425.87 | E66: 1417.33 | F66: 1403.32 | G66: 1394.78 | H66: 1439.88 | I66: 1448.42 | J66: 1462.43 | K66: 1434.4 | L66: 1411.85 | M66: 3.92767
A67: 58 | B67: DLF | C67: 369.75 | D67: 370.53 | E67: 366.77 | F67: 363.78 | G67: 360.02 | H67: 373.52 | I67: 377.28 | J67: 380.27 | K67: 374.3 | L67: 367.55 | M67: 26.03968
A68: 59 | B68: DABUR | C68: 552.85 | D68: 558.43 | E68: 542.92 | F68: 532.98 | G68: 517.47 | H68: 568.37 | I68: 583.88 | J68: 593.82 | K68: 573.95 | L68: 548.5 | M68: 27.89534
A69: 60 | B69: DALBHARAT | C69: 1875.45 | D69: 1886.33 | E69: 1855.12 | F69: 1834.78 | G69: 1803.57 | H69: 1906.67 | I69: 1937.88 | J69: 1958.22 | K69: 1917.55 | L69: 1866 | M69: 2.14277
A70: 61 | B70: DEEPAKNTR | C70: 1936.55 | D70: 1945.12 | E70: 1921.43 | F70: 1906.32 | G70: 1882.63 | H70: 1960.23 | I70: 1983.92 | J70: 1999.03 | K70: 1968.8 | L70: 1930 | M70: 1.83624
A71: 62 | B71: DELHIVERY | C71: 320.8 | D71: 321.93 | E71: 317.87 | F71: 314.93 | G71: 310.87 | H71: 324.87 | I71: 328.93 | J71: 331.87 | K71: 326 | L71: 319 | M71: 12.76326
A72: 63 | B72: DIVISLAB | C72: 3434.9 | D72: 3445.03 | E72: 3404.87 | F72: 3374.83 | G72: 3334.67 | H72: 3475.07 | I72: 3515.23 | J72: 3545.27 | K72: 3485.2 | L72: 3415 | M72: 3.53616
A73: 64 | B73: DIXON | C73: 3817.45 | D73: 3815.35 | E73: 3787.15 | F73: 3756.85 | G73: 3728.65 | H73: 3845.65 | I73: 3873.85 | J73: 3904.15 | K73: 3843.55 | L73: 3785.05 | M73: 0.90644
A74: 65 | B74: LALPATHLAB | C74: 2225 | D74: 2239.72 | E74: 2205.18 | F74: 2185.37 | G74: 2150.83 | H74: 2259.53 | I74: 2294.07 | J74: 2313.88 | K74: 2274.25 | L74: 2219.9 | M74: 1.56273
A75: 66 | B75: DRREDDY | C75: 4271.75 | D75: 4283.38 | E75: 4247.47 | F75: 4223.18 | G75: 4187.27 | H75: 4307.67 | I75: 4343.58 | J75: 4367.87 | K75: 4319.3 | L75: 4259.1 | M75: 1.26136
A76: 67 | B76: EICHERMOT | C76: 3250.6 | D76: 3255.50 | E76: 3232.15 | F76: 3213.70 | G76: 3190.35 | H76: 3273.95 | I76: 3297.30 | J76: 3315.75 | K76: 3278.85 | L76: 3237.05 | M76: 2.42107
A77: 68 | B77: EMAMILTD | C77: 420.35 | D77: 421.08 | E77: 417.27 | F77: 414.18 | G77: 410.37 | H77: 424.17 | I77: 427.98 | J77: 431.07 | K77: 424.9 | L77: 418 | M77: 0.70383
A78: 69 | B78: ESCORTS | C78: 2164.9 | D78: 2158.62 | E78: 2141.28 | F78: 2117.67 | G78: 2100.33 | H78: 2182.23 | I78: 2199.57 | J78: 2223.18 | K78: 2175.95 | L78: 2135 | M78: 1.3413
A79: 70 | B79: NYKAA | C79: 153.25 | D79: 153.42 | E79: 152.33 | F79: 151.42 | G79: 150.33 | H79: 154.33 | I79: 155.42 | J79: 156.33 | K79: 154.5 | L79: 152.5 | M79: 28.96094
A80: 71 | B80: FEDERALBNK | C80: 134.6 | D80: 135.13 | E80: 132.82 | F80: 131.03 | G80: 128.72 | H80: 136.92 | I80: 139.23 | J80: 141.02 | K80: 137.45 | L80: 133.35 | M80: 113.98532
A81: 72 | B81: FORTIS | C81: 284.85 | D81: 285.18 | E81: 282.37 | F81: 279.88 | G81: 277.07 | H81: 287.67 | I81: 290.48 | J81: 292.97 | K81: 288 | L81: 282.7 | M81: 11.42991
A82: 73 | B82: GAIL | C82: 97.25 | D82: 97.62 | E82: 96.48 | F82: 95.72 | G82: 94.58 | H82: 98.38 | I82: 99.52 | J82: 100.28 | K82: 98.75 | L82: 96.85 | M82: 140.32853
A83: 74 | B83: GLAND | C83: 1565.15 | D83: 1570.18 | E83: 1556.42 | F83: 1547.68 | G83: 1533.92 | H83: 1578.92 | I83: 1592.68 | J83: 1601.42 | K83: 1583.95 | L83: 1561.45 | M83: 1.99299
A84: 75 | B84: GODREJCP | C84: 917.45 | D84: 920.73 | E84: 910.47 | F84: 903.48 | G84: 893.22 | H84: 927.72 | I84: 937.98 | J84: 944.97 | K84: 931 | L84: 913.75 | M84: 23.10792
A85: 76 | B85: GODREJPROP | C85: 1199.85 | D85: 1203.90 | E85: 1186.10 | F85: 1172.35 | G85: 1154.55 | H85: 1217.65 | I85: 1235.45 | J85: 1249.20 | K85: 1221.7 | L85: 1190.15 | M85: 3.02266
A86: 77 | B86: GRASIM | C86: 1680.6 | D86: 1681.75 | E86: 1663.85 | F86: 1647.10 | G86: 1629.20 | H86: 1698.50 | I86: 1716.40 | J86: 1733.15 | K86: 1699.65 | L86: 1665 | M86: 5.84894
A87: 78 | B87: GUJGASLTD | C87: 481.05 | D87: 483.88 | E87: 475.17 | F87: 469.28 | G87: 460.57 | H87: 489.77 | I87: 498.48 | J87: 504.37 | K87: 492.6 | L87: 478 | M87: 7.76107
A88: 79 | B88: GSPL | C88: 275.55 | D88: 274.98 | E88: 272.97 | F88: 270.38 | G88: 268.37 | H88: 277.57 | I88: 279.58 | J88: 282.17 | K88: 277 | L88: 272.4 | M88: 4.14509
A89: 80 | B89: HCLTECH | C89: 1032.8 | D89: 1035.32 | E89: 1022.73 | F89: 1012.67 | G89: 1000.08 | H89: 1045.38 | I89: 1057.97 | J89: 1068.03 | K89: 1047.9 | L89: 1025.25 | M89: 18.87689
A90: 81 | B90: HDFCAMC | C90: 2135.4 | D90: 2166.05 | E90: 2097.10 | F90: 2058.80 | G90: 1989.85 | H90: 2204.35 | I90: 2273.30 | J90: 2311.60 | K90: 2235 | L90: 2127.75 | M90: 2.77442
A91: 82 | B91: HDFCBANK | C91: 1594.4 | D91: 1593.90 | E91: 1578.70 | F91: 1563.00 | G91: 1547.80 | H91: 1609.60 | I91: 1624.80 | J91: 1640.50 | K91: 1609.1 | L91: 1578.2 | M91: 45.46231
A92: 83 | B92: HDFCLIFE | C92: 611.65 | D92: 612.63 | E92: 604.67 | F92: 597.68 | G92: 589.72 | H92: 619.62 | I92: 627.58 | J92: 634.57 | K92: 620.6 | L92: 605.65 | M92: 54.15866
A93: 84 | B93: HAVELLS | C93: 1192.5 | D93: 1185.82 | E93: 1173.78 | F93: 1155.07 | G93: 1143.03 | H93: 1204.53 | I93: 1216.57 | J93: 1235.28 | K93: 1197.85 | L93: 1167.1 | M93: 11.98621
A94: 85 | B94: HEROMOTOCO | C94: 2742.55 | D94: 2750.55 | E94: 2725.75 | F94: 2708.95 | G94: 2684.15 | H94: 2767.35 | I94: 2792.15 | J94: 2808.95 | K94: 2775.35 | L94: 2733.75 | M94: 1.62618
A95: 86 | B95: HINDALCO | C95: 462.65 | D95: 465.92 | E95: 457.83 | F95: 453.02 | G95: 444.93 | H95: 470.73 | I95: 478.82 | J95: 483.63 | K95: 474 | L95: 461.1 | M95: 60.04013
A96: 87 | B96: HAL | C96: 2500.4 | D96: 2507.67 | E96: 2474.78 | F96: 2449.17 | G96: 2416.28 | H96: 2533.28 | I96: 2566.17 | J96: 2591.78 | K96: 2540.55 | L96: 2482.05 | M96: 5.03302
A97: 88 | B97: HINDPETRO | C97: 249.9 | D97: 248.43 | E97: 245.87 | F97: 241.83 | G97: 239.27 | H97: 252.47 | I97: 255.03 | J97: 259.07 | K97: 251 | L97: 244.4 | M97: 39.66434
A98: 89 | B98: HINDUNILVR | C98: 2576.45 | D98: 2587.75 | E98: 2563.60 | F98: 2550.75 | G98: 2526.60 | H98: 2600.60 | I98: 2624.75 | J98: 2637.60 | K98: 2611.9 | L98: 2574.9 | M98: 9.91782
A99: 90 | B99: HINDZINC | C99: 332.8 | D99: 333.85 | E99: 329.25 | F99: 325.70 | G99: 321.10 | H99: 337.40 | I99: 342.00 | J99: 345.55 | K99: 338.45 | L99: 330.3 | M99: 3.30906
A100: 91 | B100: HONAUT | C100: 39846.4 | D100: 39765.47 | E100: 39330.93 | F100: 38815.47 | G100: 38380.93 | H100: 40280.93 | I100: 40715.47 | J100: 41230.93 | K100: 40200 | L100: 39250 | M100: 0.04564
A101: 92 | B101: HDFC | C101: 2596 | D101: 2607.00 | E101: 2579.00 | F101: 2562.00 | G101: 2534.00 | H101: 2624.00 | I101: 2652.00 | J101: 2669.00 | K101: 2635 | L101: 2590 | M101: 18.13292
A102: 93 | B102: ICICIBANK | C102: 870.1 | D102: 869.85 | E102: 860.75 | F102: 851.40 | G102: 842.30 | H102: 879.20 | I102: 888.30 | J102: 897.65 | K102: 878.95 | L102: 860.5 | M102: 148.04613
A103: 94 | B103: ICICIGI | C103: 1271.7 | D103: 1275.25 | E103: 1261.50 | F103: 1251.30 | G103: 1237.55 | H103: 1285.45 | I103: 1299.20 | J103: 1309.40 | K103: 1289 | L103: 1265.05 | M103: 4.42656
A104: 95 | B104: ICICIPRULI | C104: 473 | D104: 473.38 | E104: 468.97 | F104: 464.93 | G104: 460.52 | H104: 477.42 | I104: 481.83 | J104: 485.87 | K104: 477.8 | L104: 469.35 | M104: 21.55725
A105: 96 | B105: ISEC | C105: 496.3 | D105: 497.30 | E105: 491.95 | F105: 487.60 | G105: 482.25 | H105: 501.65 | I105: 507.00 | J105: 511.35 | K105: 502.65 | L105: 492.95 | M105: 1.33516
A106: 97 | B106: IDFCFIRSTB | C106: 59.5 | D106: 59.78 | E106: 58.77 | F106: 58.03 | G106: 57.02 | H106: 60.52 | I106: 61.53 | J106: 62.27 | K106: 60.8 | L106: 59.05 | M106: 233.8976
A107: 98 | B107: ITC | C107: 335.05 | D107: 335.23 | E107: 332.92 | F107: 330.78 | G107: 328.47 | H107: 337.37 | I107: 339.68 | J107: 341.82 | K107: 337.55 | L107: 333.1 | M107: 82.84135
A108: 99 | B108: INDIAMART | C108: 4339.55 | D108: 4335.40 | E108: 4295.80 | F108: 4252.05 | G108: 4212.45 | H108: 4379.15 | I108: 4418.75 | J108: 4462.50 | K108: 4375 | L108: 4291.65 | M108: 0.35726
A109: 100 | B109: INDIANB | C109: 293.45 | D109: 293.00 | E109: 289.80 | F109: 286.15 | G109: 282.95 | H109: 296.65 | I109: 299.85 | J109: 303.50 | K109: 296.2 | L109: 289.35 | M109: 13.11018
A110: 101 | B110: IEX | C110: 139.15 | D110: 139.78 | E110: 137.97 | F110: 136.78 | G110: 134.97 | H110: 140.97 | I110: 142.78 | J110: 143.97 | K110: 141.6 | L110: 138.6 | M110: 20.59984
A111: 102 | B111: INDHOTEL | C111: 310.3 | D111: 310.80 | E111: 306.20 | F111: 302.10 | G111: 297.50 | H111: 314.90 | I111: 319.50 | J111: 323.60 | K111: 315.4 | L111: 306.7 | M111: 19.70194
A112: 103 | B112: IOC | C112: 80.05 | D112: 79.95 | E112: 79.10 | F112: 78.15 | G112: 77.30 | H112: 80.90 | I112: 81.75 | J112: 82.70 | K112: 80.8 | L112: 79 | M112: 190.75518
A113: 104 | B113: IRCTC | C113: 636.25 | D113: 635.73 | E113: 631.52 | F113: 626.78 | G113: 622.57 | H113: 640.47 | I113: 644.68 | J113: 649.42 | K113: 639.95 | L113: 631 | M113: 7.3088
A114: 105 | B114: IGL | C114: 416.85 | D114: 419.23 | E114: 410.07 | F114: 403.28 | G114: 394.12 | H114: 426.02 | I114: 435.18 | J114: 441.97 | K114: 428.4 | L114: 412.45 | M114: 15.0715
A115: 106 | B115: INDUSTOWER | C115: 187.35 | D115: 187.30 | E115: 185.80 | F115: 184.25 | G115: 182.75 | H115: 188.85 | I115: 190.35 | J115: 191.90 | K115: 188.8 | L115: 185.75 | M115: 11.16983
A116: 107 | B116: INDUSINDBK | C116: 1181.9 | D116: 1191.90 | E116: 1166.10 | F116: 1150.30 | G116: 1124.50 | H116: 1207.70 | I116: 1233.50 | J116: 1249.30 | K116: 1217.7 | L116: 1176.1 | M116: 30.29739
A117: 108 | B117: NAUKRI | C117: 3687.05 | D117: 3693.37 | E117: 3658.73 | F117: 3630.42 | G117: 3595.78 | H117: 3721.68 | I117: 3756.32 | J117: 3784.63 | K117: 3728 | L117: 3665.05 | M117: 2.21464
A118: 109 | B118: INFY | C118: 1448.5 | D118: 1456.67 | E118: 1438.33 | F118: 1428.17 | G118: 1409.83 | H118: 1466.83 | I118: 1485.17 | J118: 1495.33 | K118: 1475 | L118: 1446.5 | M118: 64.43714
A119: 110 | B119: INDIGO | C119: 2020 | D119: 2023.33 | E119: 1998.67 | F119: 1977.33 | G119: 1952.67 | H119: 2044.67 | I119: 2069.33 | J119: 2090.67 | K119: 2048 | L119: 2002 | M119: 3.61483
A120: 111 | B120: IPCALAB | C120: 854.4 | D120: 854.25 | E120: 844.55 | F120: 834.70 | G120: 825.00 | H120: 864.10 | I120: 873.80 | J120: 883.65 | K120: 863.95 | L120: 844.4 | M120: 0.81757
A121: 112 | B121: JSWENERGY | C121: 278.8 | D121: 279.20 | E121: 276.00 | F121: 273.20 | G121: 270.00 | H121: 282.00 | I121: 285.20 | J121: 288.00 | K121: 282.4 | L121: 276.4 | M121: 2.40805
A122: 113 | B122: JSWSTEEL | C122: 728.35 | D122: 736.23 | E122: 718.07 | F122: 707.78 | G122: 689.62 | H122: 746.52 | I122: 764.68 | J122: 774.97 | K122: 754.4 | L122: 725.95 | M122: 35.36096
A123: 114 | B123: JINDALSTEL | C123: 591.1 | D123: 593.27 | E123: 586.83 | F123: 582.57 | G123: 576.13 | H123: 597.53 | I123: 603.97 | J123: 608.23 | K123: 599.7 | L123: 589 | M123: 25.29412
A124: 115 | B124: JUBLFOOD | C124: 498 | D124: 500.50 | E124: 492.10 | F124: 486.20 | G124: 477.80 | H124: 506.40 | I124: 514.80 | J124: 520.70 | K124: 508.9 | L124: 494.6 | M124: 19.87283
A125: 116 | B125: KOTAKBANK | C125: 1786.8 | D125: 1794.48 | E125: 1762.97 | F125: 1739.13 | G125: 1707.62 | H125: 1818.32 | I125: 1849.83 | J125: 1873.67 | K125: 1826 | L125: 1770.65 | M125: 37.99655
A126: 117 | B126: L&TFH | C126: 86.9 | D126: 87.23 | E126: 85.47 | F126: 84.03 | G126: 82.27 | H126: 88.67 | I126: 90.43 | J126: 91.87 | K126: 89 | L126: 85.8 | M126: 52.42985
A127: 118 | B127: LTTS | C127: 3624.6 | D127: 3635.35 | E127: 3595.80 | F127: 3567.00 | G127: 3527.45 | H127: 3664.15 | I127: 3703.70 | J127: 3732.50 | K127: 3674.9 | L127: 3606.55 | M127: 1.61385
A128: 119 | B128: LICHSGFIN | C128: 404.95 | D128: 410.15 | E128: 397.30 | F128: 389.65 | G128: 376.80 | H128: 417.80 | I128: 430.65 | J128: 438.30 | K128: 423 | L128: 402.5 | M128: 39.05957
A129: 120 | B129: LTIM | C129: 4197.6 | D129: 4219.02 | E129: 4158.58 | F129: 4119.57 | G129: 4059.13 | H129: 4258.03 | I129: 4318.47 | J129: 4357.48 | K129: 4279.45 | L129: 4180 | M129: 2.64197
A130: 121 | B130: LT | C130: 2086.55 | D130: 2093.37 | E130: 2065.03 | F130: 2043.52 | G130: 2015.18 | H130: 2114.88 | I130: 2143.22 | J130: 2164.73 | K130: 2121.7 | L130: 2071.85 | M130: 18.77917
A131: 122 | B131: LAURUSLABS | C131: 373.85 | D131: 375.50 | E131: 370.10 | F131: 366.35 | G131: 360.95 | H131: 379.25 | I131: 384.65 | J131: 388.40 | K131: 380.9 | L131: 371.75 | M131: 5.65954
A132: 123 | B132: LICI | C132: 707.3 | D132: 713.97 | E132: 698.53 | F132: 689.77 | G132: 674.33 | H132: 722.73 | I132: 738.17 | J132: 746.93 | K132: 729.4 | L132: 705.2 | M132: 16.25158
A133: 124 | B133: LINDEINDIA | C133: 3364.15 | D133: 3389.13 | E133: 3330.57 | F133: 3296.98 | G133: 3238.42 | H133: 3422.72 | I133: 3481.28 | J133: 3514.87 | K133: 3447.7 | L133: 3355.55 | M133: 0.27039
A134: 125 | B134: LUPIN | C134: 738.1 | D134: 739.62 | E134: 732.28 | F134: 726.47 | G134: 719.13 | H134: 745.43 | I134: 752.77 | J134: 758.58 | K134: 746.95 | L134: 733.8 | M134: 6.08556
A135: 126 | B135: MRF | C135: 93141.5 | D135: 92366.43 | E135: 91332.87 | F135: 89524.23 | G135: 88490.67 | H135: 94175.07 | I135: 95208.63 | J135: 97017.27 | K135: 93400 | L135: 90557.8 | M135: 0.2871
A136: 127 | B136: M&MFIN | C136: 233.8 | D136: 233.70 | E136: 230.40 | F136: 227.00 | G136: 223.70 | H136: 237.10 | I136: 240.40 | J136: 243.80 | K136: 237 | L136: 230.3 | M136: 39.99203
A137: 128 | B137: M&M | C137: 1264.9 | D137: 1262.67 | E137: 1250.38 | F137: 1235.87 | G137: 1223.58 | H137: 1277.18 | I137: 1289.47 | J137: 1303.98 | K137: 1274.95 | L137: 1248.15 | M137: 22.14972
A138: 129 | B138: MARICO | C138: 513.05 | D138: 512.70 | E138: 508.00 | F138: 502.95 | G138: 498.25 | H138: 517.75 | I138: 522.45 | J138: 527.50 | K138: 517.4 | L138: 507.65 | M138: 8.96307
A139: 130 | B139: MARUTI | C139: 8383.05 | D139: 8405.67 | E139: 8327.38 | F139: 8271.72 | G139: 8193.43 | H139: 8461.33 | I139: 8539.62 | J139: 8595.28 | K139: 8483.95 | L139: 8350 | M139: 3.68978
A140: 131 | B140: MFSL | C140: 741.55 | D140: 744.95 | E140: 730.50 | F140: 719.45 | G140: 705.00 | H140: 756.00 | I140: 770.45 | J140: 781.50 | K140: 759.4 | L140: 733.9 | M140: 23.42833
A141: 132 | B141: MAXHEALTH | C141: 433.35 | D141: 434.33 | E141: 428.27 | F141: 423.18 | G141: 417.12 | H141: 439.42 | I141: 445.48 | J141: 450.57 | K141: 440.4 | L141: 429.25 | M141: 11.67423
A142: 133 | B142: MSUMI | C142: 55.1 | D142: 55.62 | E142: 54.18 | F142: 53.27 | G142: 51.83 | H142: 56.53 | I142: 57.97 | J142: 58.88 | K142: 57.05 | L142: 54.7 | M142: 37.19971
A143: 134 | B143: MPHASIS | C143: 1977.7 | D143: 1991.75 | E143: 1953.50 | F143: 1929.30 | G143: 1891.05 | H143: 2015.95 | I143: 2054.20 | J143: 2078.40 | K143: 2030 | L143: 1967.55 | M143: 5.96221
A144: 135 | B144: MUTHOOTFIN | C144: 1072.25 | D144: 1074.40 | E144: 1061.80 | F144: 1051.35 | G144: 1038.75 | H144: 1084.85 | I144: 1097.45 | J144: 1107.90 | K144: 1087 | L144: 1063.95 | M144: 3.23351
A145: 136 | B145: NTPC | C145: 169 | D145: 169.90 | E145: 167.65 | F145: 166.30 | G145: 164.05 | H145: 171.25 | I145: 173.50 | J145: 174.85 | K145: 172.15 | L145: 168.55 | M145: 132.16749
A146: 137 | B146: NATIONALUM | C146: 81.3 | D146: 81.55 | E146: 80.65 | F146: 80.00 | G146: 79.10 | H146: 82.20 | I146: 83.10 | J146: 83.75 | K146: 82.45 | L146: 80.9 | M146: 84.28579
A147: 138 | B147: NAVINFLUOR | C147: 3862.9 | D147: 3896.73 | E147: 3813.52 | F147: 3764.13 | G147: 3680.92 | H147: 3946.12 | I147: 4029.33 | J147: 4078.72 | K147: 3979.95 | L147: 3847.35 | M147: 1.04555
A148: 139 | B148: NESTLEIND | C148: 19885.25 | D148: 19862.75 | E148: 19799.05 | F148: 19712.85 | G148: 19649.15 | H148: 19948.95 | I148: 20012.65 | J148: 20098.85 | K148: 19926.45 | L148: 19776.55 | M148: 0.39386
A149: 140 | B149: NAM-INDIA | C149: 250.3 | D149: 250.82 | E149: 248.68 | F149: 247.07 | G149: 244.93 | H149: 252.43 | I149: 254.57 | J149: 256.18 | K149: 252.95 | L149: 249.2 | M149: 1.8237
A150: 141 | B150: OBEROIRLTY | C150: 853.65 | D150: 853.22 | E150: 844.73 | F150: 835.82 | G150: 827.33 | H150: 862.13 | I150: 870.62 | J150: 879.53 | K150: 861.7 | L150: 844.3 | M150: 3.86125
A151: 142 | B151: ONGC | C151: 147.35 | D151: 147.25 | E151: 146.40 | F151: 145.45 | G151: 144.60 | H151: 148.20 | I151: 149.05 | J151: 150.00 | K151: 148.1 | L151: 146.3 | M151: 168.04116
A152: 143 | B152: OIL | C152: 208.8 | D152: 209.45 | E152: 207.40 | F152: 206.00 | G152: 203.95 | H152: 210.85 | I152: 212.90 | J152: 214.30 | K152: 211.5 | L152: 208.05 | M152: 4.37045
A153: 144 | B153: PAYTM | C153: 551.35 | D153: 551.67 | E153: 539.68 | F153: 528.02 | G153: 516.03 | H153: 563.33 | I153: 575.32 | J153: 586.98 | K153: 563.65 | L153: 540 | M153: 69.79771
A154: 145 | B154: OFSS | C154: 2996.3 | D154: 2998.20 | E154: 2982.35 | F154: 2968.40 | G154: 2952.55 | H154: 3012.15 | I154: 3028.00 | J154: 3041.95 | K154: 3014.05 | L154: 2984.25 | M154: 0.67998
A155: 146 | B155: POLICYBZR | C155: 460.6 | D155: 460.78 | E155: 455.87 | F155: 451.13 | G155: 446.22 | H155: 465.52 | I155: 470.43 | J155: 475.17 | K155: 465.7 | L155: 456.05 | M155: 8.29112
A156: 147 | B156: PIIND | C156: 3288.15 | D156: 3304.02 | E156: 3257.43 | F156: 3226.72 | G156: 3180.13 | H156: 3334.73 | I156: 3381.32 | J156: 3412.03 | K156: 3350.6 | L156: 3273.3 | M156: 1.4903
A157: 148 | B157: PAGEIND | C157: 41710.15 | D157: 41807.68 | E157: 41312.47 | F157: 40914.78 | G157: 40419.57 | H157: 42205.37 | I157: 42700.58 | J157: 43098.27 | K157: 42302.9 | L157: 41410 | M157: 0.16269
A158: 149 | B158: PATANJALI | C158: 1173.95 | D158: 1178.98 | E158: 1158.97 | F158: 1143.98 | G158: 1123.97 | H158: 1193.97 | I158: 1213.98 | J158: 1228.97 | K158: 1199 | L158: 1164 | M158: 0.86995
A159: 150 | B159: PERSISTENT | C159: 3851.9 | D159: 3877.28 | E159: 3814.62 | F159: 3777.33 | G159: 3714.67 | H159: 3914.57 | I159: 3977.23 | J159: 4014.52 | K159: 3939.95 | L159: 3840 | M159: 3.01637
A160: 151 | B160: PETRONET | C160: 217.9 | D160: 218.68 | E160: 215.62 | F160: 213.33 | G160: 210.27 | H160: 220.97 | I160: 224.03 | J160: 226.32 | K160: 221.75 | L160: 216.4 | M160: 15.92524
A161: 152 | B161: PIDILITIND | C161: 2522.3 | D161: 2523.83 | E161: 2509.57 | F161: 2496.83 | G161: 2482.57 | H161: 2536.57 | I161: 2550.83 | J161: 2563.57 | K161: 2538.1 | L161: 2511.1 | M161: 1.59896
A162: 153 | B162: POLYCAB | C162: 2620.35 | D162: 2632.55 | E162: 2595.80 | F162: 2571.25 | G162: 2534.50 | H162: 2657.10 | I162: 2693.85 | J162: 2718.40 | K162: 2669.3 | L162: 2608 | M162: 2.00467
A163: 154 | B163: POONAWALLA | C163: 289.25 | D163: 289.77 | E163: 284.68 | F163: 280.12 | G163: 275.03 | H163: 294.33 | I163: 299.42 | J163: 303.98 | K163: 294.85 | L163: 285.2 | M163: 16.6884
A164: 155 | B164: PFC | C164: 157.15 | D164: 157.38 | E164: 153.97 | F164: 150.78 | G164: 147.37 | H164: 160.57 | I164: 163.98 | J164: 167.17 | K164: 160.8 | L164: 154.2 | M164: 213.14945
A165: 156 | B165: POWERGRID | C165: 208.1 | D165: 208.65 | E165: 207.00 | F165: 205.90 | G165: 204.25 | H165: 209.75 | I165: 211.40 | J165: 212.50 | K165: 210.3 | L165: 207.55 | M165: 86.32854
A166: 157 | B166: PRESTIGE | C166: 466.55 | D166: 468.58 | E166: 462.37 | F166: 458.18 | G166: 451.97 | H166: 472.77 | I166: 478.98 | J166: 483.17 | K166: 474.8 | L166: 464.4 | M166: 1.91634
A167: 158 | B167: PGHH | C167: 14020.05 | D167: 14035.07 | E167: 13977.18 | F167: 13934.32 | G167: 13876.43 | H167: 14077.93 | I167: 14135.82 | J167: 14178.68 | K167: 14092.95 | L167: 13992.2 | M167: 0.00983
A168: 159 | B168: PNB | C168: 56.4 | D168: 56.67 | E168: 55.73 | F168: 55.07 | G168: 54.13 | H168: 57.33 | I168: 58.27 | J168: 58.93 | K168: 57.6 | L168: 56 | M168: 882.23106
A169: 160 | B169: RECLTD | C169: 123.7 | D169: 124.13 | E169: 122.17 | F169: 120.63 | G169: 118.67 | H169: 125.67 | I169: 127.63 | J169: 129.17 | K169: 126.1 | L169: 122.6 | M169: 155.75269
A170: 161 | B170: RELIANCE | C170: 2536.9 | D170: 2534.38 | E170: 2520.82 | F170: 2504.73 | G170: 2491.17 | H170: 2550.47 | I170: 2564.03 | J170: 2580.12 | K170: 2547.95 | L170: 2518.3 | M170: 29.30338
A171: 162 | B171: SBICARD | C171: 774.2 | D171: 776.38 | E171: 770.32 | F171: 766.43 | G171: 760.37 | H171: 780.27 | I171: 786.33 | J171: 790.22 | K171: 782.45 | L171: 772.5 | M171: 6.23547
A172: 163 | B172: SBILIFE | C172: 1269.05 | D172: 1274.30 | E172: 1261.25 | F172: 1253.45 | G172: 1240.40 | H172: 1282.10 | I172: 1295.15 | J172: 1302.95 | K172: 1287.35 | L172: 1266.5 | M172: 16.75874
A173: 164 | B173: SRF | C173: 2238.65 | D173: 2246.67 | E173: 2219.33 | F173: 2200.02 | G173: 2172.68 | H173: 2265.98 | I173: 2293.32 | J173: 2312.63 | K173: 2274 | L173: 2227.35 | M173: 3.28799
A174: 165 | B174: MOTHERSON | C174: 75.3 | D174: 75.17 | E174: 74.43 | F174: 73.57 | G174: 72.83 | H174: 76.03 | I174: 76.77 | J174: 77.63 | K174: 75.9 | L174: 74.3 | M174: 53.84253
A175: 166 | B175: SHREECEM | C175: 23853.05 | D175: 23923.93 | E175: 23481.22 | F175: 23109.38 | G175: 22666.67 | H175: 24295.77 | I175: 24738.48 | J175: 25110.32 | K175: 24366.65 | L175: 23552.1 | M175: 0.28542
A176: 167 | B176: SHRIRAMFIN | C176: =VLOOKUP($B176,[1]EQ!$A$2:$F$3000,6,0) -> 1294.65 | D176: =(C176+K176+L176)/3 -> 1302.47 | E176: =+(D176*2)-K176 -> 1279.18 | F176: =+D176-K176+L176 -> 1263.72 | G176: =L176-2*(K176-D176) -> 1240.43 | H176: =(D176*2)-L176 -> 1317.93 | I176: =+D176+K176-L176 -> 1341.22 | J176: =K176+2*(D176-L176) -> 1356.68 | K176: =VLOOKUP($B176,[1]EQ!$A$2:$D$3000,4,0) -> 1325.75 | L176: =VLOOKUP($B176,[1]EQ!$A$2:$E$3000,5,0) -> 1287 | M176: =(VLOOKUP($B176,[1]EQ!$A$2:$I$3000,9,0)/100000) -> 3.19983
A177: 168 | B177: SIEMENS | C177: 2891.7 | D177: 2895.32 | E177: 2869.88 | F177: 2848.07 | G177: 2822.63 | H177: 2917.13 | I177: 2942.57 | J177: 2964.38 | K177: 2920.75 | L177: 2873.5 | M177: 2.28429
A178: 169 | B178: SONACOMS | C178: 417.5 | D178: 419.18 | E178: 409.12 | F178: 400.73 | G178: 390.67 | H178: 427.57 | I178: 437.63 | J178: 446.02 | K178: 429.25 | L178: 410.8 | M178: 15.44225
A179: 170 | B179: SBIN | C179: 600.65 | D179: 601.70 | E179: 595.95 | F179: 591.25 | G179: 585.50 | H179: 606.40 | I179: 612.15 | J179: 616.85 | K179: 607.45 | L179: 597 | M179: 79.72036
A180: 171 | B180: SAIL | C180: 85.9 | D180: 86.47 | E180: 84.88 | F180: 83.87 | G180: 82.28 | H180: 87.48 | I180: 89.07 | J180: 90.08 | K180: 88.05 | L180: 85.45 | M180: 196.27104
A181: 172 | B181: SUNPHARMA | C181: 1008.7 | D181: 1011.53 | E181: 1001.27 | F181: 993.83 | G181: 983.57 | H181: 1018.97 | I181: 1029.23 | J181: 1036.67 | K181: 1021.8 | L181: 1004.1 | M181: 17.73153
A182: 173 | B182: SUNTV | C182: 479.95 | D182: 480.12 | E182: 476.83 | F182: 473.72 | G182: 470.43 | H182: 483.23 | I182: 486.52 | J182: 489.63 | K182: 483.4 | L182: 477 | M182: 2.12778
A183: 174 | B183: SYNGENE | C183: 596.1 | D183: 597.18 | E183: 591.12 | F183: 586.13 | G183: 580.07 | H183: 602.17 | I183: 608.23 | J183: 613.22 | K183: 603.25 | L183: 592.2 | M183: 3.84412
A184: 175 | B184: TVSMOTOR | C184: 1024.5 | D184: 1027.33 | E184: 1015.72 | F184: 1006.93 | G184: 995.32 | H184: 1036.12 | I184: 1047.73 | J184: 1056.52 | K184: 1038.95 | L184: 1018.55 | M184: 8.73454
A185: 176 | B185: TATACHEM | C185: 948.3 | D185: 947.60 | E185: 939.20 | F185: 930.10 | G185: 921.70 | H185: 956.70 | I185: 965.10 | J185: 974.20 | K185: 956 | L185: 938.5 | M185: 11.00983
A186: 177 | B186: TATACOMM | C186: 1326.6 | D186: 1329.83 | E186: 1315.67 | F186: 1304.73 | G186: 1290.57 | H186: 1340.77 | I186: 1354.93 | J186: 1365.87 | K186: 1344 | L186: 1318.9 | M186: 4.95657
A187: 178 | B187: TCS | C187: 3211.55 | D187: 3237.70 | E187: 3173.85 | F187: 3136.15 | G187: 3072.30 | H187: 3275.40 | I187: 3339.25 | J187: 3376.95 | K187: 3301.55 | L187: 3200 | M187: 24.88376
A188: 179 | B188: TATACONSUM | C188: 761.35 | D188: 763.75 | E188: 756.65 | F188: 751.95 | G188: 744.85 | H188: 768.45 | I188: 775.55 | J188: 780.25 | K188: 770.85 | L188: 759.05 | M188: 6.0305
A189: 180 | B189: TATAELXSI | C189: 6193.9 | D189: 6231.30 | E189: 6147.60 | F189: 6101.30 | G189: 6017.60 | H189: 6277.60 | I189: 6361.30 | J189: 6407.60 | K189: 6315 | L189: 6185 | M189: 1.17274
A190: 181 | B190: TATAMOTORS | C190: 382 | D190: 383.80 | E190: 379.20 | F190: 376.40 | G190: 371.80 | H190: 386.60 | I190: 391.20 | J190: 394.00 | K190: 388.4 | L190: 381 | M190: 87.15469
A191: 182 | B191: TATAPOWER | C191: 205.4 | D191: 206.08 | E191: 203.42 | F191: 201.43 | G191: 198.77 | H191: 208.07 | I191: 210.73 | J191: 212.72 | K191: 208.75 | L191: 204.1 | M191: 96.03038
A192: 183 | B192: TATASTEEL | C192: 115.65 | D192: 116.25 | E192: 114.65 | F192: 113.65 | G192: 112.05 | H192: 117.25 | I192: 118.85 | J192: 119.85 | K192: 117.85 | L192: 115.25 | M192: 585.51863
A193: 184 | B193: TTML | C193: 87.3 | D193: 87.75 | E193: 86.05 | F193: 84.80 | G193: 83.10 | H193: 89.00 | I193: 90.70 | J193: 91.95 | K193: 89.45 | L193: 86.5 | M193: 13.20023
A194: 185 | B194: TECHM | C194: 986.15 | D194: 994.27 | E194: 976.88 | F194: 967.62 | G194: 950.23 | H194: 1003.53 | I194: 1020.92 | J194: 1030.18 | K194: 1011.65 | L194: 985 | M194: 23.46808
A195: 186 | B195: RAMCOCEM | C195: 713.85 | D195: 713.65 | E195: 707.30 | F195: 700.75 | G195: 694.40 | H195: 720.20 | I195: 726.55 | J195: 733.10 | K195: 720 | L195: 707.1 | M195: 4.3311
A196: 187 | B196: TITAN | C196: 2538.1 | D196: 2546.50 | E196: 2508.60 | F196: 2479.10 | G196: 2441.20 | H196: 2576.00 | I196: 2613.90 | J196: 2643.40 | K196: 2584.4 | L196: 2517 | M196: 8.79019
A197: 188 | B197: TORNTPHARM | C197: 1546.5 | D197: 1551.98 | E197: 1536.37 | F197: 1526.23 | G197: 1510.62 | H197: 1562.12 | I197: 1577.73 | J197: 1587.87 | K197: 1567.6 | L197: 1541.85 | M197: 1.30207
A198: 189 | B198: TORNTPOWER | C198: 480.95 | D198: 481.90 | E198: 477.05 | F198: 473.15 | G198: 468.30 | H198: 485.80 | I198: 490.65 | J198: 494.55 | K198: 486.75 | L198: 478 | M198: 1.1722
A199: 190 | B199: TRENT | C199: 1248.15 | D199: 1257.90 | E199: 1226.25 | F199: 1204.35 | G199: 1172.70 | H199: 1279.80 | I199: 1311.45 | J199: 1333.35 | K199: 1289.55 | L199: 1236 | M199: 10.46858
A200: 191 | B200: TRIDENT | C200: 33.7 | D200: 33.77 | E200: 33.53 | F200: 33.37 | G200: 33.13 | H200: 33.93 | I200: 34.17 | J200: 34.33 | K200: 34 | L200: 33.6 | M200: 27.98924
A201: 192 | B201: TIINDIA | C201: 2705.4 | D201: 2725.45 | E201: 2661.00 | F201: 2616.60 | G201: 2552.15 | H201: 2769.85 | I201: 2834.30 | J201: 2878.70 | K201: 2789.9 | L201: 2681.05 | M201: 0.83515
A202: 193 | B202: UPL | C202: 718.15 | D202: 720.95 | E202: 712.55 | F202: 706.95 | G202: 698.55 | H202: 726.55 | I202: 734.95 | J202: 740.55 | K202: 729.35 | L202: 715.35 | M202: 12.09522
A203: 194 | B203: ULTRACEMCO | C203: 6982.2 | D203: 6987.70 | E203: 6945.50 | F203: 6908.80 | G203: 6866.60 | H203: 7024.40 | I203: 7066.60 | J203: 7103.30 | K203: 7029.9 | L203: 6951 | M203: 1.60184
A204: 195 | B204: UNIONBANK | C204: 80.8 | D204: 80.62 | E204: 79.83 | F204: 78.87 | G204: 78.08 | H204: 81.58 | I204: 82.37 | J204: 83.33 | K204: 81.4 | L204: 79.65 | M204: 198.09952
A205: 196 | B205: UBL | C205: 1657.55 | D205: 1664.90 | E205: 1643.65 | F205: 1629.75 | G205: 1608.50 | H205: 1678.80 | I205: 1700.05 | J205: 1713.95 | K205: 1686.15 | L205: 1651 | M205: 0.54852
... 29 more rows

Sheet MidCap Intra
L5: Back To Main Page
A6: FOR INTRA DAY TRADING | K6: =Main!B10 -> 2023-01-09
A9: Sr.no | B9: Scrip | C9: CLOSE RATE | D9: Pivot Point | E9: Supports | H9: Resistances
E10: S1 | F10: S2 | G10: S3 | H10: R1 | I10: R2 | J10: R3 | K10: HIGH | L10: LOW | M10: Total Trade Quanity in Lakhs
A11: 1 | B11: 3MINDIA | C11: 22294.4 | D11: 22349.13 | E11: 22109.27 | F11: 21924.13 | G11: 21684.27 | H11: 22534.27 | I11: 22774.13 | J11: 22959.27 | K11: 22589 | L11: 22164 | M11: 0.01598
A12: 2 | B12: ABB | C12: 2843.6 | D12: 2837.30 | E12: 2816.60 | F12: 2789.60 | G12: 2768.90 | H12: 2864.30 | I12: 2885.00 | J12: 2912.00 | K12: 2858 | L12: 2810.3 | M12: 6.30345
A13: 3 | B13: ACC | C13: 2415.95 | D13: 2424.33 | E13: 2391.62 | F13: 2367.28 | G13: 2334.57 | H13: 2448.67 | I13: 2481.38 | J13: 2505.72 | K13: 2457.05 | L13: 2400 | M13: 2.0388
A14: 4 | B14: AIAENG | C14: 2510.3 | D14: 2537.42 | E14: 2475.88 | F14: 2441.47 | G14: 2379.93 | H14: 2571.83 | I14: 2633.37 | J14: 2667.78 | K14: 2598.95 | L14: 2503 | M14: 1.82681
A15: 5 | B15: APLAPOLLO | C15: 1119.6 | D15: 1123.53 | E15: 1107.27 | F15: 1094.93 | G15: 1078.67 | H15: 1135.87 | I15: 1152.13 | J15: 1164.47 | K15: 1139.8 | L15: 1111.2 | M15: 2.83868
A16: 6 | B16: AUBANK | C16: 625.8 | D16: 628.20 | E16: 617.05 | F16: 608.30 | G16: 597.15 | H16: 636.95 | I16: 648.10 | J16: 656.85 | K16: 639.35 | L16: 619.45 | M16: 16.34322
A17: 7 | B17: AARTIDRUGS | C17: 446.05 | D17: 447.98 | E17: 443.07 | F17: 440.08 | G17: 435.17 | H17: 450.97 | I17: 455.88 | J17: 458.87 | K17: 452.9 | L17: 445 | M17: 0.38907
A18: 8 | B18: AAVAS | C18: 1746.8 | D18: 1737.72 | E18: 1707.58 | F18: 1668.37 | G18: 1638.23 | H18: 1776.93 | I18: 1807.07 | J18: 1846.28 | K18: 1767.85 | L18: 1698.5 | M18: 1.88596
A19: 9 | B19: ABBOTINDIA | C19: 22328.05 | D19: 22236.10 | E19: 22112.20 | F19: 21896.35 | G19: 21772.45 | H19: 22451.95 | I19: 22575.85 | J19: 22791.70 | K19: 22360 | L19: 22020.25 | M19: 0.17576
A20: 10 | B20: ADANIENT | C20: 3824.25 | D20: 3829.85 | E20: 3791.45 | F20: 3758.65 | G20: 3720.25 | H20: 3862.65 | I20: 3901.05 | J20: 3933.85 | K20: 3868.25 | L20: 3797.05 | M20: 9.12159
A21: 11 | B21: ADANIGREEN | C21: 1838.25 | D21: 1845.72 | E21: 1822.53 | F21: 1806.82 | G21: 1783.63 | H21: 1861.43 | I21: 1884.62 | J21: 1900.33 | K21: 1868.9 | L21: 1830 | M21: 4.55101
A22: 12 | B22: ADANIPORTS | C22: 806.1 | D22: 811.33 | E22: 798.27 | F22: 790.43 | G22: 777.37 | H22: 819.17 | I22: 832.23 | J22: 840.07 | K22: 824.4 | L22: 803.5 | M22: 28.92006
A23: 13 | B23: ATGL | C23: 3555.4 | D23: 3568.78 | E23: 3507.62 | F23: 3459.83 | G23: 3398.67 | H23: 3616.57 | I23: 3677.73 | J23: 3725.52 | K23: 3629.95 | L23: 3521 | M23: 2.83873
A24: 14 | B24: ADANITRANS | C24: 2523.35 | D24: 2527.35 | E24: 2493.25 | F24: 2463.15 | G24: 2429.05 | H24: 2557.45 | I24: 2591.55 | J24: 2621.65 | K24: 2561.45 | L24: 2497.25 | M24: 3.9851
A25: 15 | B25: AWL | C25: 568.35 | D25: 568.33 | E25: 562.82 | F25: 557.28 | G25: 551.77 | H25: 573.87 | I25: 579.38 | J25: 584.92 | K25: 573.85 | L25: 562.8 | M25: 13.85827
A26: 16 | B26: ABCAPITAL | C26: 145.3 | D26: 146.48 | E26: 142.87 | F26: 140.43 | G26: 136.82 | H26: 148.92 | I26: 152.53 | J26: 154.97 | K26: 150.1 | L26: 144.05 | M26: 24.79526
A27: 17 | B27: ABFRL | C27: 277.55 | D27: 278.58 | E27: 274.67 | F27: 271.78 | G27: 267.87 | H27: 281.47 | I27: 285.38 | J27: 288.27 | K27: 282.5 | L27: 275.7 | M27: 25.23914
A28: 18 | B28: ABSLAMC | C28: 448.6 | D28: 449.22 | E28: 445.98 | F28: 443.37 | G28: 440.13 | H28: 451.83 | I28: 455.07 | J28: 457.68 | K28: 452.45 | L28: 446.6 | M28: 0.40547
A29: 19 | B29: AEGISCHEM | C29: 341.85 | D29: 341.17 | E29: 337.93 | F29: 334.02 | G29: 330.78 | H29: 345.08 | I29: 348.32 | J29: 352.23 | K29: 344.4 | L29: 337.25 | M29: 6.44985
A30: 20 | B30: AETHER | C30: 842.25 | D30: 845.45 | E30: 836.90 | F30: 831.55 | G30: 823.00 | H30: 850.80 | I30: 859.35 | J30: 864.70 | K30: 854 | L30: 840.1 | M30: 5.83622
A31: 21 | B31: AFFLE | C31: 1055.3 | D31: 1046.85 | E31: 1033.70 | F31: 1012.10 | G31: 998.95 | H31: 1068.45 | I31: 1081.60 | J31: 1103.20 | K31: 1060 | L31: 1025.25 | M31: 2.57874
A32: 22 | B32: AJANTPHARM | C32: 1187.2 | D32: 1185.07 | E32: 1172.53 | F32: 1157.87 | G32: 1145.33 | H32: 1199.73 | I32: 1212.27 | J32: 1226.93 | K32: 1197.6 | L32: 1170.4 | M32: 0.51425
A33: 23 | B33: APLLTD | C33: 561.3 | D33: 563.83 | E33: 558.47 | F33: 555.63 | G33: 550.27 | H33: 566.67 | I33: 572.03 | J33: 574.87 | K33: 569.2 | L33: 561 | M33: 0.89746
A34: 24 | B34: ALKEM | C34: 3031.35 | D34: 3040.60 | E34: 2993.75 | F34: 2956.15 | G34: 2909.30 | H34: 3078.20 | I34: 3125.05 | J34: 3162.65 | K34: 3087.45 | L34: 3003 | M34: 1.25959
A35: 25 | B35: ALKYLAMINE | C35: 2718.45 | D35: 2713.07 | E35: 2689.13 | F35: 2659.82 | G35: 2635.88 | H35: 2742.38 | I35: 2766.32 | J35: 2795.63 | K35: 2737 | L35: 2683.75 | M35: 0.21589
A36: 26 | B36: ALLCARGO | C36: 400.65 | D36: 403.95 | E36: 394.00 | F36: 387.35 | G36: 377.40 | H36: 410.60 | I36: 420.55 | J36: 427.20 | K36: 413.9 | L36: 397.3 | M36: 2.96761
A37: 27 | B37: ALOKINDS | C37: 15.4 | D37: 15.45 | E37: 15.25 | F37: 15.10 | G37: 14.90 | H37: 15.60 | I37: 15.80 | J37: 15.95 | K37: 15.65 | L37: 15.3 | M37: 7.25217
A38: 28 | B38: AMARAJABAT | C38: 585.9 | D38: 583.47 | E38: 577.93 | F38: 569.97 | G38: 564.43 | H38: 591.43 | I38: 596.97 | J38: 604.93 | K38: 589 | L38: 575.5 | M38: 13.72158
A39: 29 | B39: AMBER | C39: 1904.45 | D39: 1916.03 | E39: 1883.27 | F39: 1862.08 | G39: 1829.32 | H39: 1937.22 | I39: 1969.98 | J39: 1991.17 | K39: 1948.8 | L39: 1894.85 | M39: 0.26405
A40: 30 | B40: AMBUJACEM | C40: 519.8 | D40: 520.87 | E40: 513.28 | F40: 506.77 | G40: 499.18 | H40: 527.38 | I40: 534.97 | J40: 541.48 | K40: 528.45 | L40: 514.35 | M40: 34.54408
A41: 31 | B41: ANGELONE | C41: 1280.7 | D41: 1293.47 | E41: 1262.23 | F41: 1243.77 | G41: 1212.53 | H41: 1311.93 | I41: 1343.17 | J41: 1361.63 | K41: 1324.7 | L41: 1275 | M41: 3.29259
A42: 32 | B42: ANURAS | C42: 689.45 | D42: 687.82 | E42: 681.63 | F42: 673.82 | G42: 667.63 | H42: 695.63 | I42: 701.82 | J42: 709.63 | K42: 694 | L42: 680 | M42: 0.221
A43: 33 | B43: APOLLOHOSP | C43: 4387.45 | D43: 4410.25 | E43: 4346.20 | F43: 4304.95 | G43: 4240.90 | H43: 4451.50 | I43: 4515.55 | J43: 4556.80 | K43: 4474.3 | L43: 4369 | M43: 2.9964
A44: 34 | B44: APOLLOTYRE | C44: 327.75 | D44: 331.38 | E44: 322.82 | F44: 317.88 | G44: 309.32 | H44: 336.32 | I44: 344.88 | J44: 349.82 | K44: 339.95 | L44: 326.45 | M44: 62.18095
A45: 35 | B45: APTUS | C45: 301.8 | D45: 302.33 | E45: 300.17 | F45: 298.53 | G45: 296.37 | H45: 303.97 | I45: 306.13 | J45: 307.77 | K45: 304.5 | L45: 300.7 | M45: 0.3032
A46: 36 | B46: ASAHIINDIA | C46: 504.7 | D46: 506.45 | E46: 501.25 | F46: 497.80 | G46: 492.60 | H46: 509.90 | I46: 515.10 | J46: 518.55 | K46: 511.65 | L46: 503 | M46: 0.36096
A47: 37 | B47: ASHOKLEY | C47: 147.75 | D47: 148.45 | E47: 146.65 | F47: 145.55 | G47: 143.75 | H47: 149.55 | I47: 151.35 | J47: 152.45 | K47: 150.25 | L47: 147.35 | M47: 99.04195
A48: 38 | B48: ASIANPAINT | C48: 2978.4 | D48: 2984.63 | E48: 2945.77 | F48: 2913.13 | G48: 2874.27 | H48: 3017.27 | I48: 3056.13 | J48: 3088.77 | K48: 3023.5 | L48: 2952 | M48: 10.45526
A49: 39 | B49: ASTERDM | C49: 227.6 | D49: 227.50 | E49: 225.10 | F49: 222.60 | G49: 220.20 | H49: 230.00 | I49: 232.40 | J49: 234.90 | K49: 229.9 | L49: 225 | M49: 2.79252
A50: 40 | B50: ASTRAZEN | C50: 3353.05 | D50: 3353.13 | E50: 3324.07 | F50: 3295.08 | G50: 3266.02 | H50: 3382.12 | I50: 3411.18 | J50: 3440.17 | K50: 3382.2 | L50: 3324.15 | M50: 0.10464
A51: 41 | B51: ASTRAL | C51: 2060.25 | D51: 2050.42 | E51: 2010.83 | F51: 1961.42 | G51: 1921.83 | H51: 2099.83 | I51: 2139.42 | J51: 2188.83 | K51: 2090 | L51: 2001 | M51: 9.54468
A52: 42 | B52: ATUL | C52: 7829.05 | D52: 7853.33 | E52: 7731.72 | F52: 7634.38 | G52: 7512.77 | H52: 7950.67 | I52: 8072.28 | J52: 8169.62 | K52: 7974.95 | L52: 7756 | M52: 0.38411
A53: 43 | B53: AUROPHARMA | C53: 442.05 | D53: 446.03 | E53: 436.42 | F53: 430.78 | G53: 421.17 | H53: 451.67 | I53: 461.28 | J53: 466.92 | K53: 455.65 | L53: 440.4 | M53: 19.29565
A54: 44 | B54: AVANTIFEED | C54: 383.15 | D54: 385.58 | E54: 379.37 | F54: 375.58 | G54: 369.37 | H54: 389.37 | I54: 395.58 | J54: 399.37 | K54: 391.8 | L54: 381.8 | M54: 0.75944
A55: 45 | B55: DMART | C55: 3842.5 | D55: 3869.17 | E55: 3808.33 | F55: 3774.17 | G55: 3713.33 | H55: 3903.33 | I55: 3964.17 | J55: 3998.33 | K55: 3930 | L55: 3835 | M55: 3.45746
A56: 46 | B56: AXISBANK | C56: 939.9 | D56: 941.72 | E56: 932.48 | F56: 925.07 | G56: 915.83 | H56: 949.13 | I56: 958.37 | J56: 965.78 | K56: 950.95 | L56: 934.3 | M56: 57.87783
A57: 47 | B57: BASF | C57: 2743.1 | D57: 2754.38 | E57: 2715.72 | F57: 2688.33 | G57: 2649.67 | H57: 2781.77 | I57: 2820.43 | J57: 2847.82 | K57: 2793.05 | L57: 2727 | M57: 0.12699
A58: 48 | B58: BSE | C58: 542 | D58: 543.68 | E58: 538.52 | F58: 535.03 | G58: 529.87 | H58: 547.17 | I58: 552.33 | J58: 555.82 | K58: 548.85 | L58: 540.2 | M58: 2.63709
A59: 49 | B59: BAJAJ-AUTO | C59: 3642.25 | D59: 3629.42 | E59: 3610.83 | F59: 3579.42 | G59: 3560.83 | H59: 3660.83 | I59: 3679.42 | J59: 3710.83 | K59: 3648 | L59: 3598 | M59: 1.73591
A60: 50 | B60: BAJAJELEC | C60: 1196.3 | D60: 1181.18 | E60: 1159.52 | F60: 1122.73 | G60: 1101.07 | H60: 1217.97 | I60: 1239.63 | J60: 1276.42 | K60: 1202.85 | L60: 1144.4 | M60: 1.04723
A61: 51 | B61: BAJFINANCE | C61: 5980.4 | D61: 6020.65 | E61: 5901.35 | F61: 5822.30 | G61: 5703.00 | H61: 6099.70 | I61: 6219.00 | J61: 6298.05 | K61: 6139.95 | L61: 5941.6 | M61: 29.31922
A62: 52 | B62: BAJAJFINSV | C62: 1430.35 | D62: 1442.30 | E62: 1411.05 | F62: 1391.75 | G62: 1360.50 | H62: 1461.60 | I62: 1492.85 | J62: 1512.15 | K62: 1473.55 | L62: 1423 | M62: 52.07616
A63: 53 | B63: BAJAJHLDNG | C63: 5680.25 | D63: 5678.65 | E63: 5652.70 | F63: 5625.15 | G63: 5599.20 | H63: 5706.20 | I63: 5732.15 | J63: 5759.70 | K63: 5704.6 | L63: 5651.1 | M63: 0.20655
A64: 54 | B64: BALAMINES | C64: 2550.6 | D64: 2546.87 | E64: 2515.73 | F64: 2480.87 | G64: 2449.73 | H64: 2581.73 | I64: 2612.87 | J64: 2647.73 | K64: 2578 | L64: 2512 | M64: 0.37246
A65: 55 | B65: BALKRISIND | C65: 2211.4 | D65: 2201.43 | E65: 2181.27 | F65: 2151.13 | G65: 2130.97 | H65: 2231.57 | I65: 2251.73 | J65: 2281.87 | K65: 2221.6 | L65: 2171.3 | M65: 3.11477
A66: 56 | B66: BALRAMCHIN | C66: 384.65 | D66: 385.47 | E66: 379.58 | F66: 374.52 | G66: 368.63 | H66: 390.53 | I66: 396.42 | J66: 401.48 | K66: 391.35 | L66: 380.4 | M66: 11.39529
A67: 57 | B67: BANDHANBNK | C67: 242.35 | D67: 244.07 | E67: 238.68 | F67: 235.02 | G67: 229.63 | H67: 247.73 | I67: 253.12 | J67: 256.78 | K67: 249.45 | L67: 240.4 | M67: 143.06941
A68: 58 | B68: BANKBARODA | C68: 183.25 | D68: 183.25 | E68: 181.20 | F68: 179.15 | G68: 177.10 | H68: 185.30 | I68: 187.35 | J68: 189.40 | K68: 185.3 | L68: 181.2 | M68: 162.29775
A69: 59 | B69: BANKINDIA | C69: 93.45 | D69: 93.73 | E69: 92.27 | F69: 91.08 | G69: 89.62 | H69: 94.92 | I69: 96.38 | J69: 97.57 | K69: 95.2 | L69: 92.55 | M69: 145.08676
A70: 60 | B70: MAHABANK | C70: 30.7 | D70: 30.83 | E70: 30.17 | F70: 29.63 | G70: 28.97 | H70: 31.37 | I70: 32.03 | J70: 32.57 | K70: 31.5 | L70: 30.3 | M70: 259.38883
A71: 61 | B71: BATAINDIA | C71: 1624.85 | D71: 1628.62 | E71: 1614.33 | F71: 1603.82 | G71: 1589.53 | H71: 1639.13 | I71: 1653.42 | J71: 1663.93 | K71: 1642.9 | L71: 1618.1 | M71: 2.15943
A72: 62 | B72: BAYERCROP | C72: 4732.9 | D72: 4756.17 | E72: 4697.73 | F72: 4662.57 | G72: 4604.13 | H72: 4791.33 | I72: 4849.77 | J72: 4884.93 | K72: 4814.6 | L72: 4721 | M72: 0.06458
A73: 63 | B73: BERGEPAINT | C73: 568.4 | D73: 569.12 | E73: 563.78 | F73: 559.17 | G73: 553.83 | H73: 573.73 | I73: 579.07 | J73: 583.68 | K73: 574.45 | L73: 564.5 | M73: 4.33455
A74: 64 | B74: BDL | C74: 937.1 | D74: 940.57 | E74: 926.58 | F74: 916.07 | G74: 902.08 | H74: 951.08 | I74: 965.07 | J74: 975.58 | K74: 954.55 | L74: 930.05 | M74: 4.37274
A75: 65 | B75: BEL | C75: 98.95 | D75: 99.38 | E75: 98.27 | F75: 97.58 | G75: 96.47 | H75: 100.07 | I75: 101.18 | J75: 101.87 | K75: 100.5 | L75: 98.7 | M75: 72.1594
A76: 66 | B76: BHARATFORG | C76: 869.5 | D76: 872.95 | E76: 861.90 | F76: 854.30 | G76: 843.25 | H76: 880.55 | I76: 891.60 | J76: 899.20 | K76: 884 | L76: 865.35 | M76: 4.7777
A77: 67 | B77: BHEL | C77: 81.75 | D77: 82.12 | E77: 80.73 | F77: 79.72 | G77: 78.33 | H77: 83.13 | I77: 84.52 | J77: 85.53 | K77: 83.5 | L77: 81.1 | M77: 254.18809
A78: 68 | B78: BPCL | C78: 344.7 | D78: 343.83 | E78: 341.12 | F78: 337.53 | G78: 334.82 | H78: 347.42 | I78: 350.13 | J78: 353.72 | K78: 346.55 | L78: 340.25 | M78: 36.82205
A79: 69 | B79: BHARATRAS | C79: 9521.75 | D79: 9575.55 | E79: 9426.20 | F79: 9330.65 | G79: 9181.30 | H79: 9671.10 | I79: 9820.45 | J79: 9916.00 | K79: 9724.9 | L79: 9480 | M79: 0.01254
A80: 70 | B80: BHARTIARTL | C80: 796 | D80: 800.08 | E80: 787.92 | F80: 779.83 | G80: 767.67 | H80: 808.17 | I80: 820.33 | J80: 828.42 | K80: 812.25 | L80: 792 | M80: 31.99618
A81: 71 | B81: BIOCON | C81: 256.35 | D81: 257.45 | E81: 253.45 | F81: 250.55 | G81: 246.55 | H81: 260.35 | I81: 264.35 | J81: 267.25 | K81: 261.45 | L81: 254.55 | M81: 23.52217
A82: 72 | B82: BIRLACORPN | C82: 950.55 | D82: 958.57 | E82: 927.18 | F82: 903.82 | G82: 872.43 | H82: 981.93 | I82: 1013.32 | J82: 1036.68 | K82: 989.95 | L82: 935.2 | M82: 2.09005
A83: 73 | B83: BSOFT | C83: 283.65 | D83: 285.97 | E83: 280.43 | F83: 277.22 | G83: 271.68 | H83: 289.18 | I83: 294.72 | J83: 297.93 | K83: 291.5 | L83: 282.75 | M83: 22.95178
A84: 74 | B84: BLUEDART | C84: 7675.45 | D84: 7671.48 | E84: 7635.97 | F84: 7596.48 | G84: 7560.97 | H84: 7710.97 | I84: 7746.48 | J84: 7785.97 | K84: 7707 | L84: 7632 | M84: 0.0942
A85: 75 | B85: BLUESTARCO | C85: 1202.65 | D85: 1199.88 | E85: 1192.77 | F85: 1182.88 | G85: 1175.77 | H85: 1209.77 | I85: 1216.88 | J85: 1226.77 | K85: 1207 | L85: 1190 | M85: 0.26313
A86: 76 | B86: BBTC | C86: 955.15 | D86: 950.92 | E86: 926.88 | F86: 898.62 | G86: 874.58 | H86: 979.18 | I86: 1003.22 | J86: 1031.48 | K86: 974.95 | L86: 922.65 | M86: 1.05523
A87: 77 | B87: BORORENEW | C87: 503.65 | D87: 505.70 | E87: 499.40 | F87: 495.15 | G87: 488.85 | H87: 509.95 | I87: 516.25 | J87: 520.50 | K87: 512 | L87: 501.45 | M87: 1.093
A88: 78 | B88: BOSCHLTD | C88: 17065.7 | D88: 17077.40 | E88: 16955.80 | F88: 16845.90 | G88: 16724.30 | H88: 17187.30 | I88: 17308.90 | J88: 17418.80 | K88: 17199 | L88: 16967.5 | M88: 0.21331
A89: 79 | B89: BRIGADE | C89: 460.7 | D89: 459.23 | E89: 453.47 | F89: 446.23 | G89: 440.47 | H89: 466.47 | I89: 472.23 | J89: 479.47 | K89: 465 | L89: 452 | M89: 1.14667
A90: 80 | B90: BCG | C90: 28.5 | D90: 28.53 | E90: 28.12 | F90: 27.73 | G90: 27.32 | H90: 28.92 | I90: 29.33 | J90: 29.72 | K90: 28.95 | L90: 28.15 | M90: 111.86121
A91: 81 | B91: BRITANNIA | C91: 4359.05 | D91: 4346.02 | E91: 4323.03 | F91: 4287.02 | G91: 4264.03 | H91: 4382.03 | I91: 4405.02 | J91: 4441.03 | K91: 4369 | L91: 4310 | M91: 2.97438
A92: 82 | B92: MAPMYINDIA | C92: 1027.9 | D92: 1036.75 | E92: 1014.15 | F92: 1000.40 | G92: 977.80 | H92: 1050.50 | I92: 1073.10 | J92: 1086.85 | K92: 1059.35 | L92: 1023 | M92: 1.07242
A93: 83 | B93: CCL | C93: 518.05 | D93: 525.02 | E93: 508.03 | F93: 498.02 | G93: 481.03 | H93: 535.03 | I93: 552.02 | J93: 562.03 | K93: 542 | L93: 515 | M93: 1.3845
A94: 84 | B94: CESC | C94: 75.85 | D94: 76.37 | E94: 75.08 | F94: 74.32 | G94: 73.03 | H94: 77.13 | I94: 78.42 | J94: 79.18 | K94: 77.65 | L94: 75.6 | M94: 18.96076
A95: 85 | B95: CGPOWER | C95: 270 | D95: 269.47 | E95: 267.73 | F95: 265.47 | G95: 263.73 | H95: 271.73 | I95: 273.47 | J95: 275.73 | K95: 271.2 | L95: 267.2 | M95: 7.2193
A96: 86 | B96: CRISIL | C96: 2941.2 | D96: 2937.08 | E96: 2914.17 | F96: 2887.13 | G96: 2864.22 | H96: 2964.12 | I96: 2987.03 | J96: 3014.07 | K96: 2960 | L96: 2910.05 | M96: 0.07537
A97: 87 | B97: CSBBANK | C97: 243.85 | D97: 245.95 | E97: 239.90 | F97: 235.95 | G97: 229.90 | H97: 249.90 | I97: 255.95 | J97: 259.90 | K97: 252 | L97: 242 | M97: 5.89232
A98: 88 | B98: CAMPUS | C98: 386.95 | D98: 389.82 | E98: 382.13 | F98: 377.32 | G98: 369.63 | H98: 394.63 | I98: 402.32 | J98: 407.13 | K98: 397.5 | L98: 385 | M98: 2.47909
A99: 89 | B99: CANFINHOME | C99: 543.4 | D99: 542.53 | E99: 536.27 | F99: 529.13 | G99: 522.87 | H99: 549.67 | I99: 555.93 | J99: 563.07 | K99: 548.8 | L99: 535.4 | M99: 6.5032
A100: 90 | B100: CANBK | C100: 320.45 | D100: 322.20 | E100: 315.75 | F100: 311.05 | G100: 304.60 | H100: 326.90 | I100: 333.35 | J100: 338.05 | K100: 328.65 | L100: 317.5 | M100: 88.93004
A101: 91 | B101: CAPLIPOINT | C101: 726.4 | D101: 730.27 | E101: 717.63 | F101: 708.87 | G101: 696.23 | H101: 739.03 | I101: 751.67 | J101: 760.43 | K101: 742.9 | L101: 721.5 | M101: 0.24054
A102: 92 | B102: CGCL | C102: 751.2 | D102: 752.33 | E102: 749.22 | F102: 747.23 | G102: 744.12 | H102: 754.32 | I102: 757.43 | J102: 759.42 | K102: 755.45 | L102: 750.35 | M102: 0.96729
A103: 93 | B103: CARBORUNIV | C103: 897.3 | D103: 905.23 | E103: 881.07 | F103: 864.83 | G103: 840.67 | H103: 921.47 | I103: 945.63 | J103: 961.87 | K103: 929.4 | L103: 889 | M103: 2.31306
A104: 94 | B104: CASTROLIND | C104: 125.6 | D104: 126.72 | E104: 123.88 | F104: 122.17 | G104: 119.33 | H104: 128.43 | I104: 131.27 | J104: 132.98 | K104: 129.55 | L104: 125 | M104: 8.02721
A105: 95 | B105: CEATLTD | C105: 1740.5 | D105: 1719.98 | E105: 1674.97 | F105: 1609.43 | G105: 1564.42 | H105: 1785.52 | I105: 1830.53 | J105: 1896.07 | K105: 1765 | L105: 1654.45 | M105: 6.42943
A106: 96 | B106: CENTRALBK | C106: 31.45 | D106: 31.67 | E106: 30.98 | F106: 30.52 | G106: 29.83 | H106: 32.13 | I106: 32.82 | J106: 33.28 | K106: 32.35 | L106: 31.2 | M106: 78.21547
A107: 97 | B107: CDSL | C107: 1117.3 | D107: 1121.70 | E107: 1110.60 | F107: 1103.90 | G107: 1092.80 | H107: 1128.40 | I107: 1139.50 | J107: 1146.20 | K107: 1132.8 | L107: 1115 | M107: 1.38798
A108: 98 | B108: CENTURYPLY | C108: 517.6 | D108: 515.15 | E108: 509.50 | F108: 501.40 | G108: 495.75 | H108: 523.25 | I108: 528.90 | J108: 537.00 | K108: 520.8 | L108: 507.05 | M108: 1.53812
A109: 99 | B109: CENTURYTEX | C109: 709.75 | D109: 711.88 | E109: 703.87 | F109: 697.98 | G109: 689.97 | H109: 717.77 | I109: 725.78 | J109: 731.67 | K109: 719.9 | L109: 706 | M109: 0.43673
A110: 100 | B110: CERA | C110: 5295.95 | D110: 5294.32 | E110: 5207.63 | F110: 5119.32 | G110: 5032.63 | H110: 5382.63 | I110: 5469.32 | J110: 5557.63 | K110: 5381 | L110: 5206 | M110: 0.07457
A111: 101 | B111: CHALET | C111: 334.05 | D111: 333.80 | E111: 329.20 | F111: 324.35 | G111: 319.75 | H111: 338.65 | I111: 343.25 | J111: 348.10 | K111: 338.4 | L111: 328.95 | M111: 0.77443
A112: 102 | B112: CHAMBLFERT | C112: 313.3 | D112: 314.87 | E112: 309.08 | F112: 304.87 | G112: 299.08 | H112: 319.08 | I112: 324.87 | J112: 329.08 | K112: 320.65 | L112: 310.65 | M112: 18.85803
A113: 103 | B113: CHEMPLASTS | C113: 449.8 | D113: 455.07 | E113: 442.33 | F113: 434.87 | G113: 422.13 | H113: 462.53 | I113: 475.27 | J113: 482.73 | K113: 467.8 | L113: 447.6 | M113: 1.30419
A114: 104 | B114: CHOLAHLDNG | C114: 559.7 | D114: 559.47 | E114: 554.58 | F114: 549.47 | G114: 544.58 | H114: 564.58 | I114: 569.47 | J114: 574.58 | K114: 564.35 | L114: 554.35 | M114: 0.28098
A115: 105 | B115: CHOLAFIN | C115: 667.9 | D115: 673.25 | E115: 652.65 | F115: 637.40 | G115: 616.80 | H115: 688.50 | I115: 709.10 | J115: 724.35 | K115: 693.85 | L115: 658 | M115: 42.78558
A116: 106 | B116: CIPLA | C116: 1076.35 | D116: 1080.98 | E116: 1068.87 | F116: 1061.38 | G116: 1049.27 | H116: 1088.47 | I116: 1100.58 | J116: 1108.07 | K116: 1093.1 | L116: 1073.5 | M116: 8.24772
A117: 107 | B117: CUB | C117: 175.4 | D117: 176.02 | E117: 172.83 | F117: 170.27 | G117: 167.08 | H117: 178.58 | I117: 181.77 | J117: 184.33 | K117: 179.2 | L117: 173.45 | M117: 16.85832
A118: 108 | B118: CLEAN | C118: 1458.2 | D118: 1462.38 | E118: 1446.32 | F118: 1434.43 | G118: 1418.37 | H118: 1474.27 | I118: 1490.33 | J118: 1502.22 | K118: 1478.45 | L118: 1450.5 | M118: 0.20738
A119: 109 | B119: COALINDIA | C119: 214.25 | D119: 215.38 | E119: 210.87 | F119: 207.48 | G119: 202.97 | H119: 218.77 | I119: 223.28 | J119: 226.67 | K119: 219.9 | L119: 212 | M119: 122.37065
A120: 110 | B120: COCHINSHIP | C120: 501.55 | D120: 506.88 | E120: 491.67 | F120: 481.78 | G120: 466.57 | H120: 516.77 | I120: 531.98 | J120: 541.87 | K120: 522.1 | L120: 497 | M120: 9.00765
A121: 111 | B121: COFORGE | C121: 3901 | D121: 3910.02 | E121: 3871.03 | F121: 3841.07 | G121: 3802.08 | H121: 3939.98 | I121: 3978.97 | J121: 4008.93 | K121: 3949 | L121: 3880.05 | M121: 1.63783
A122: 112 | B122: COLPAL | C122: 1516.7 | D122: 1521.58 | E122: 1508.12 | F122: 1499.53 | G122: 1486.07 | H122: 1530.17 | I122: 1543.63 | J122: 1552.22 | K122: 1535.05 | L122: 1513 | M122: 1.74194
A123: 113 | B123: CAMS | C123: 2220.75 | D123: 2222.22 | E123: 2212.53 | F123: 2204.32 | G123: 2194.63 | H123: 2230.43 | I123: 2240.12 | J123: 2248.33 | K123: 2231.9 | L123: 2214 | M123: 0.27983
A124: 114 | B124: CONCOR | C124: 736.45 | D124: 737.58 | E124: 728.17 | F124: 719.88 | G124: 710.47 | H124: 745.87 | I124: 755.28 | J124: 763.57 | K124: 747 | L124: 729.3 | M124: 9.61838
A125: 115 | B125: COROMANDEL | C125: 901.75 | D125: 901.85 | E125: 894.70 | F125: 887.65 | G125: 880.50 | H125: 908.90 | I125: 916.05 | J125: 923.10 | K125: 909 | L125: 894.8 | M125: 3.95416
A126: 116 | B126: CREDITACC | C126: 871.5 | D126: 868.23 | E126: 858.47 | F126: 845.43 | G126: 835.67 | H126: 881.27 | I126: 891.03 | J126: 904.07 | K126: 878 | L126: 855.2 | M126: 1.09354
A127: 117 | B127: CROMPTON | C127: 337.65 | D127: 338.07 | E127: 333.88 | F127: 330.12 | G127: 325.93 | H127: 341.83 | I127: 346.02 | J127: 349.78 | K127: 342.25 | L127: 334.3 | M127: 11.42463
A128: 118 | B128: CUMMINSIND | C128: 1431.35 | D128: 1425.87 | E128: 1417.33 | F128: 1403.32 | G128: 1394.78 | H128: 1439.88 | I128: 1448.42 | J128: 1462.43 | K128: 1434.4 | L128: 1411.85 | M128: 3.92767
A129: 119 | B129: CYIENT | C129: 812.55 | D129: 812.30 | E129: 803.60 | F129: 794.65 | G129: 785.95 | H129: 821.25 | I129: 829.95 | J129: 838.90 | K129: 821 | L129: 803.35 | M129: 1.06386
A130: 120 | B130: DCMSHRIRAM | C130: 886.35 | D130: 884.47 | E130: 877.93 | F130: 869.52 | G130: 862.98 | H130: 892.88 | I130: 899.42 | J130: 907.83 | K130: 891 | L130: 876.05 | M130: 0.2003
A131: 121 | B131: DLF | C131: 369.75 | D131: 370.53 | E131: 366.77 | F131: 363.78 | G131: 360.02 | H131: 373.52 | I131: 377.28 | J131: 380.27 | K131: 374.3 | L131: 367.55 | M131: 26.03968
A132: 122 | B132: DABUR | C132: 552.85 | D132: 558.43 | E132: 542.92 | F132: 532.98 | G132: 517.47 | H132: 568.37 | I132: 583.88 | J132: 593.82 | K132: 573.95 | L132: 548.5 | M132: 27.89534
A133: 123 | B133: DALBHARAT | C133: 1875.45 | D133: 1886.33 | E133: 1855.12 | F133: 1834.78 | G133: 1803.57 | H133: 1906.67 | I133: 1937.88 | J133: 1958.22 | K133: 1917.55 | L133: 1866 | M133: 2.14277
A134: 124 | B134: DEEPAKFERT | C134: 698 | D134: 699.93 | E134: 693.07 | F134: 688.13 | G134: 681.27 | H134: 704.87 | I134: 711.73 | J134: 716.67 | K134: 706.8 | L134: 695 | M134: 1.90898
A135: 125 | B135: DEEPAKNTR | C135: 1936.55 | D135: 1945.12 | E135: 1921.43 | F135: 1906.32 | G135: 1882.63 | H135: 1960.23 | I135: 1983.92 | J135: 1999.03 | K135: 1968.8 | L135: 1930 | M135: 1.83624
A136: 126 | B136: DELHIVERY | C136: 320.8 | D136: 321.93 | E136: 317.87 | F136: 314.93 | G136: 310.87 | H136: 324.87 | I136: 328.93 | J136: 331.87 | K136: 326 | L136: 319 | M136: 12.76326
A137: 127 | B137: DELTACORP | C137: 210.25 | D137: 211.17 | E137: 207.43 | F137: 204.62 | G137: 200.88 | H137: 213.98 | I137: 217.72 | J137: 220.53 | K137: 214.9 | L137: 208.35 | M137: 14.30687
A138: 128 | B138: DEVYANI | C138: 171.4 | D138: 171.83 | E138: 169.27 | F138: 167.13 | G138: 164.57 | H138: 173.97 | I138: 176.53 | J138: 178.67 | K138: 174.4 | L138: 169.7 | M138: 9.28905
A139: 129 | B139: DHANI | C139: 38.85 | D139: 38.95 | E139: 38.45 | F139: 38.05 | G139: 37.55 | H139: 39.35 | I139: 39.85 | J139: 40.25 | K139: 39.45 | L139: 38.55 | M139: 10.88455
A140: 130 | B140: DBL | C140: 217.95 | D140: 218.78 | E140: 215.67 | F140: 213.38 | G140: 210.27 | H140: 221.07 | I140: 224.18 | J140: 226.47 | K140: 221.9 | L140: 216.5 | M140: 2.03409
A141: 131 | B141: DIVISLAB | C141: 3434.9 | D141: 3445.03 | E141: 3404.87 | F141: 3374.83 | G141: 3334.67 | H141: 3475.07 | I141: 3515.23 | J141: 3545.27 | K141: 3485.2 | L141: 3415 | M141: 3.53616
A142: 132 | B142: DIXON | C142: 3817.45 | D142: 3815.35 | E142: 3787.15 | F142: 3756.85 | G142: 3728.65 | H142: 3845.65 | I142: 3873.85 | J142: 3904.15 | K142: 3843.55 | L142: 3785.05 | M142: 0.90644
A143: 133 | B143: LALPATHLAB | C143: 2225 | D143: 2239.72 | E143: 2205.18 | F143: 2185.37 | G143: 2150.83 | H143: 2259.53 | I143: 2294.07 | J143: 2313.88 | K143: 2274.25 | L143: 2219.9 | M143: 1.56273
A144: 134 | B144: DRREDDY | C144: 4271.75 | D144: 4283.38 | E144: 4247.47 | F144: 4223.18 | G144: 4187.27 | H144: 4307.67 | I144: 4343.58 | J144: 4367.87 | K144: 4319.3 | L144: 4259.1 | M144: 1.26136
A145: 135 | B145: EIDPARRY | C145: 554.7 | D145: 553.78 | E145: 549.52 | F145: 544.33 | G145: 540.07 | H145: 558.97 | I145: 563.23 | J145: 568.42 | K145: 558.05 | L145: 548.6 | M145: 1.06199
A146: 136 | B146: EIHOTEL | C146: 176.95 | D146: 176.03 | E146: 174.17 | F146: 171.38 | G146: 169.52 | H146: 178.82 | I146: 180.68 | J146: 183.47 | K146: 177.9 | L146: 173.25 | M146: 2.08634
A147: 137 | B147: EPL | C147: 167.45 | D147: 167.20 | E147: 166.45 | F147: 165.45 | G147: 164.70 | H147: 168.20 | I147: 168.95 | J147: 169.95 | K147: 167.95 | L147: 166.2 | M147: 1.05295
A148: 138 | B148: EASEMYTRIP | C148: 52.45 | D148: 52.23 | E148: 51.67 | F148: 50.88 | G148: 50.32 | H148: 53.02 | I148: 53.58 | J148: 54.37 | K148: 52.8 | L148: 51.45 | M148: 30.57399
A149: 139 | B149: EDELWEISS | C149: 63.3 | D149: 63.83 | E149: 62.07 | F149: 60.83 | G149: 59.07 | H149: 65.07 | I149: 66.83 | J149: 68.07 | K149: 65.6 | L149: 62.6 | M149: 10.99673
A150: 140 | B150: EICHERMOT | C150: 3250.6 | D150: 3255.50 | E150: 3232.15 | F150: 3213.70 | G150: 3190.35 | H150: 3273.95 | I150: 3297.30 | J150: 3315.75 | K150: 3278.85 | L150: 3237.05 | M150: 2.42107
A151: 141 | B151: ELGIEQUIP | C151: 410.45 | D151: 410.53 | E151: 406.32 | F151: 402.18 | G151: 397.97 | H151: 414.67 | I151: 418.88 | J151: 423.02 | K151: 414.75 | L151: 406.4 | M151: 1.48131
A152: 142 | B152: EMAMILTD | C152: 420.35 | D152: 421.08 | E152: 417.27 | F152: 414.18 | G152: 410.37 | H152: 424.17 | I152: 427.98 | J152: 431.07 | K152: 424.9 | L152: 418 | M152: 0.70383
A153: 143 | B153: ENDURANCE | C153: 1400.05 | D153: 1398.75 | E153: 1385.05 | F153: 1370.05 | G153: 1356.35 | H153: 1413.75 | I153: 1427.45 | J153: 1442.45 | K153: 1412.45 | L153: 1383.75 | M153: 0.15574
A154: 144 | B154: ENGINERSIN | C154: 83.9 | D154: 84.57 | E154: 82.23 | F154: 80.57 | G154: 78.23 | H154: 86.23 | I154: 88.57 | J154: 90.23 | K154: 86.9 | L154: 82.9 | M154: 92.72124
A155: 145 | B155: EQUITASBNK | C155: 58.7 | D155: 58.87 | E155: 57.83 | F155: 56.97 | G155: 55.93 | H155: 59.73 | I155: 60.77 | J155: 61.63 | K155: 59.9 | L155: 58 | M155: 29.38774
A156: 146 | B156: ESCORTS | C156: 2164.9 | D156: 2158.62 | E156: 2141.28 | F156: 2117.67 | G156: 2100.33 | H156: 2182.23 | I156: 2199.57 | J156: 2223.18 | K156: 2175.95 | L156: 2135 | M156: 1.3413
A157: 147 | B157: EXIDEIND | C157: 178.4 | D157: 179.25 | E157: 176.90 | F157: 175.40 | G157: 173.05 | H157: 180.75 | I157: 183.10 | J157: 184.60 | K157: 181.6 | L157: 177.75 | M157: 14.53876
A158: 148 | B158: FDC | C158: 272.55 | D158: 271.13 | E158: 265.12 | F158: 257.68 | G158: 251.67 | H158: 278.57 | I158: 284.58 | J158: 292.02 | K158: 277.15 | L158: 263.7 | M158: 0.85637
A159: 149 | B159: NYKAA | C159: 153.25 | D159: 153.42 | E159: 152.33 | F159: 151.42 | G159: 150.33 | H159: 154.33 | I159: 155.42 | J159: 156.33 | K159: 154.5 | L159: 152.5 | M159: 28.96094
A160: 150 | B160: FEDERALBNK | C160: 134.6 | D160: 135.13 | E160: 132.82 | F160: 131.03 | G160: 128.72 | H160: 136.92 | I160: 139.23 | J160: 141.02 | K160: 137.45 | L160: 133.35 | M160: 113.98532
A161: 151 | B161: FACT | C161: 352.95 | D161: 363.30 | E161: 342.60 | F161: 332.25 | G161: 311.55 | H161: 373.65 | I161: 394.35 | J161: 404.70 | K161: 384 | L161: 352.95 | M161: 28.11044
A162: 152 | B162: FINEORG | C162: 5576.65 | D162: 5570.27 | E162: 5529.38 | F162: 5482.12 | G162: 5441.23 | H162: 5617.53 | I162: 5658.42 | J162: 5705.68 | K162: 5611.15 | L162: 5523 | M162: 0.12376
A163: 153 | B163: FINCABLES | C163: 542.95 | D163: 542.52 | E163: 532.58 | F163: 522.22 | G163: 512.28 | H163: 552.88 | I163: 562.82 | J163: 573.18 | K163: 552.45 | L163: 532.15 | M163: 1.88278
A164: 154 | B164: FINPIPE | C164: 178.6 | D164: 180.27 | E164: 175.03 | F164: 171.47 | G164: 166.23 | H164: 183.83 | I164: 189.07 | J164: 192.63 | K164: 185.5 | L164: 176.7 | M164: 8.69003
A165: 155 | B165: FSL | C165: 101.25 | D165: 101.62 | E165: 100.38 | F165: 99.52 | G165: 98.28 | H165: 102.48 | I165: 103.72 | J165: 104.58 | K165: 102.85 | L165: 100.75 | M165: 10.54404
A166: 156 | B166: FORTIS | C166: 284.85 | D166: 285.18 | E166: 282.37 | F166: 279.88 | G166: 277.07 | H166: 287.67 | I166: 290.48 | J166: 292.97 | K166: 288 | L166: 282.7 | M166: 11.42991
A167: 157 | B167: GRINFRA | C167: 1161.7 | D167: 1166.73 | E167: 1144.97 | F167: 1128.23 | G167: 1106.47 | H167: 1183.47 | I167: 1205.23 | J167: 1221.97 | K167: 1188.5 | L167: 1150 | M167: 0.09487
A168: 158 | B168: GAIL | C168: 97.25 | D168: 97.62 | E168: 96.48 | F168: 95.72 | G168: 94.58 | H168: 98.38 | I168: 99.52 | J168: 100.28 | K168: 98.75 | L168: 96.85 | M168: 140.32853
A169: 159 | B169: GMMPFAUDLR | C169: 1632.55 | D169: 1621.13 | E169: 1587.27 | F169: 1541.98 | G169: 1508.12 | H169: 1666.42 | I169: 1700.28 | J169: 1745.57 | K169: 1655 | L169: 1575.85 | M169: 2.05003
A170: 160 | B170: GMRINFRA | C170: 40.15 | D170: 40.22 | E170: 39.78 | F170: 39.42 | G170: 38.98 | H170: 40.58 | I170: 41.02 | J170: 41.38 | K170: 40.65 | L170: 39.85 | M170: 126.96901
A171: 161 | B171: GALAXYSURF | C171: 2436.95 | D171: 2443.10 | E171: 2413.75 | F171: 2390.55 | G171: 2361.20 | H171: 2466.30 | I171: 2495.65 | J171: 2518.85 | K171: 2472.45 | L171: 2419.9 | M171: 0.11225
A172: 162 | B172: GARFIBRES | C172: 3072.2 | D172: 3084.90 | E172: 3029.80 | F172: 2987.40 | G172: 2932.30 | H172: 3127.30 | I172: 3182.40 | J172: 3224.80 | K172: 3140 | L172: 3042.5 | M172: 0.11042
A173: 163 | B173: GICRE | C173: 180.75 | D173: 184.63 | E173: 174.97 | F173: 169.18 | G173: 159.52 | H173: 190.42 | I173: 200.08 | J173: 205.87 | K173: 194.3 | L173: 178.85 | M173: 63.06695
A174: 164 | B174: GLAND | C174: 1565.15 | D174: 1570.18 | E174: 1556.42 | F174: 1547.68 | G174: 1533.92 | H174: 1578.92 | I174: 1592.68 | J174: 1601.42 | K174: 1583.95 | L174: 1561.45 | M174: 1.99299
A175: 165 | B175: GLAXO | C175: 1300.85 | D175: 1301.38 | E175: 1297.47 | F175: 1294.08 | G175: 1290.17 | H175: 1304.77 | I175: 1308.68 | J175: 1312.07 | K175: 1305.3 | L175: 1298 | M175: 0.14938
A176: 166 | B176: GLENMARK | C176: 423 | D176: 427.38 | E176: 414.62 | F176: 406.23 | G176: 393.47 | H176: 435.77 | I176: 448.53 | J176: 456.92 | K176: 440.15 | L176: 419 | M176: 14.33352
A177: 167 | B177: GOCOLORS | C177: 1169.85 | D177: 1167.62 | E177: 1158.23 | F177: 1146.62 | G177: 1137.23 | H177: 1179.23 | I177: 1188.62 | J177: 1200.23 | K177: 1177 | L177: 1156 | M177: 0.1821
A178: 168 | B178: GODFRYPHLP | C178: 1997.4 | D178: 1988.72 | E178: 1941.63 | F178: 1885.87 | G178: 1838.78 | H178: 2044.48 | I178: 2091.57 | J178: 2147.33 | K178: 2035.8 | L178: 1932.95 | M178: 2.68038
A179: 169 | B179: GODREJAGRO | C179: 466.6 | D179: 469.53 | E179: 462.07 | F179: 457.53 | G179: 450.07 | H179: 474.07 | I179: 481.53 | J179: 486.07 | K179: 477 | L179: 465 | M179: 0.8351
A180: 170 | B180: GODREJCP | C180: 917.45 | D180: 920.73 | E180: 910.47 | F180: 903.48 | G180: 893.22 | H180: 927.72 | I180: 937.98 | J180: 944.97 | K180: 931 | L180: 913.75 | M180: 23.10792
A181: 171 | B181: GODREJIND | C181: 451.3 | D181: 448.52 | E181: 435.88 | F181: 420.47 | G181: 407.83 | H181: 463.93 | I181: 476.57 | J181: 491.98 | K181: 461.15 | L181: 433.1 | M181: 28.22476
A182: 172 | B182: GODREJPROP | C182: 1199.85 | D182: 1203.90 | E182: 1186.10 | F182: 1172.35 | G182: 1154.55 | H182: 1217.65 | I182: 1235.45 | J182: 1249.20 | K182: 1221.7 | L182: 1190.15 | M182: 3.02266
A183: 173 | B183: GRANULES | C183: 319.6 | D183: 321.42 | E183: 314.83 | F183: 310.07 | G183: 303.48 | H183: 326.18 | I183: 332.77 | J183: 337.53 | K183: 328 | L183: 316.65 | M183: 4.7389
A184: 174 | B184: GRAPHITE | C184: 377.55 | D184: 379.53 | E184: 373.22 | F184: 368.88 | G184: 362.57 | H184: 383.87 | I184: 390.18 | J184: 394.52 | K184: 385.85 | L184: 375.2 | M184: 3.48802
A185: 175 | B185: GRASIM | C185: 1680.6 | D185: 1681.75 | E185: 1663.85 | F185: 1647.10 | G185: 1629.20 | H185: 1698.50 | I185: 1716.40 | J185: 1733.15 | K185: 1699.65 | L185: 1665 | M185: 5.84894
A186: 176 | B186: GESHIP | C186: 647.9 | D186: 647.95 | E186: 640.45 | F186: 633.00 | G186: 625.50 | H186: 655.40 | I186: 662.90 | J186: 670.35 | K186: 655.45 | L186: 640.5 | M186: 1.45356
A187: 177 | B187: GREENPANEL | C187: 322 | D187: 323.05 | E187: 316.95 | F187: 311.90 | G187: 305.80 | H187: 328.10 | I187: 334.20 | J187: 339.25 | K187: 329.15 | L187: 318 | M187: 2.01334
A188: 178 | B188: GRINDWELL | C188: 1936.15 | D188: 1927.97 | E188: 1914.58 | F188: 1893.02 | G188: 1879.63 | H188: 1949.53 | I188: 1962.92 | J188: 1984.48 | K188: 1941.35 | L188: 1906.4 | M188: 0.76393
A189: 179 | B189: GUJALKALI | C189: 750.8 | D189: 754.22 | E189: 741.93 | F189: 733.07 | G189: 720.78 | H189: 763.08 | I189: 775.37 | J189: 784.23 | K189: 766.5 | L189: 745.35 | M189: 0.67036
A190: 180 | B190: GAEL | C190: 241.75 | D190: 243.52 | E190: 239.23 | F190: 236.72 | G190: 232.43 | H190: 246.03 | I190: 250.32 | J190: 252.83 | K190: 247.8 | L190: 241 | M190: 1.9523
A191: 181 | B191: FLUOROCHEM | C191: 2930.85 | D191: 2952.87 | E191: 2888.98 | F191: 2847.12 | G191: 2783.23 | H191: 2994.73 | I191: 3058.62 | J191: 3100.48 | K191: 3016.75 | L191: 2911 | M191: 0.42889
A192: 182 | B192: GUJGASLTD | C192: 481.05 | D192: 483.88 | E192: 475.17 | F192: 469.28 | G192: 460.57 | H192: 489.77 | I192: 498.48 | J192: 504.37 | K192: 492.6 | L192: 478 | M192: 7.76107
A193: 183 | B193: GNFC | C193: 587.6 | D193: 582.65 | E193: 574.95 | F193: 562.30 | G193: 554.60 | H193: 595.30 | I193: 603.00 | J193: 615.65 | K193: 590.35 | L193: 570 | M193: 23.18389
A194: 184 | B194: GPPL | C194: 96.1 | D194: 97.10 | E194: 94.40 | F194: 92.70 | G194: 90.00 | H194: 98.80 | I194: 101.50 | J194: 103.20 | K194: 99.8 | L194: 95.4 | M194: 23.20891
A195: 185 | B195: GSFC | C195: 145.15 | D195: 142.87 | E195: 139.28 | F195: 133.42 | G195: 129.83 | H195: 148.73 | I195: 152.32 | J195: 158.18 | K195: 146.45 | L195: 137 | M195: 109.9193
A196: 186 | B196: GSPL | C196: 275.55 | D196: 274.98 | E196: 272.97 | F196: 270.38 | G196: 268.37 | H196: 277.57 | I196: 279.58 | J196: 282.17 | K196: 277 | L196: 272.4 | M196: 4.14509
A197: 187 | B197: HEG | C197: 1054.8 | D197: 1064.00 | E197: 1038.65 | F197: 1022.50 | G197: 997.15 | H197: 1080.15 | I197: 1105.50 | J197: 1121.65 | K197: 1089.35 | L197: 1047.85 | M197: 2.71041
A198: 188 | B198: HCLTECH | C198: 1032.8 | D198: 1035.32 | E198: 1022.73 | F198: 1012.67 | G198: 1000.08 | H198: 1045.38 | I198: 1057.97 | J198: 1068.03 | K198: 1047.9 | L198: 1025.25 | M198: 18.87689
A199: 189 | B199: HDFCAMC | C199: 2135.4 | D199: 2166.05 | E199: 2097.10 | F199: 2058.80 | G199: 1989.85 | H199: 2204.35 | I199: 2273.30 | J199: 2311.60 | K199: 2235 | L199: 2127.75 | M199: 2.77442
A200: 190 | B200: HDFCBANK | C200: 1594.4 | D200: 1593.90 | E200: 1578.70 | F200: 1563.00 | G200: 1547.80 | H200: 1609.60 | I200: 1624.80 | J200: 1640.50 | K200: 1609.1 | L200: 1578.2 | M200: 45.46231
A201: 191 | B201: HDFCLIFE | C201: 611.65 | D201: 612.63 | E201: 604.67 | F201: 597.68 | G201: 589.72 | H201: 619.62 | I201: 627.58 | J201: 634.57 | K201: 620.6 | L201: 605.65 | M201: 54.15866
A202: 192 | B202: HFCL | C202: 72.75 | D202: 73.13 | E202: 71.52 | F202: 70.28 | G202: 68.67 | H202: 74.37 | I202: 75.98 | J202: 77.22 | K202: 74.75 | L202: 71.9 | M202: 61.11673
A203: 193 | B203: HLEGLAS | C203: 641.8 | D203: 644.27 | E203: 636.58 | F203: 631.37 | G203: 623.68 | H203: 649.48 | I203: 657.17 | J203: 662.38 | K203: 651.95 | L203: 639.05 | M203: 0.37057
A204: 194 | B204: HAPPSTMNDS | C204: 873.45 | D204: 875.95 | E204: 867.50 | F204: 861.55 | G204: 853.10 | H204: 881.90 | I204: 890.35 | J204: 896.30 | K204: 884.4 | L204: 870 | M204: 0.95628
A205: 195 | B205: HATSUN | C205: 897.4 | D205: 899.68 | E205: 885.22 | F205: 873.03 | G205: 858.57 | H205: 911.87 | I205: 926.33 | J205: 938.52 | K205: 914.15 | L205: 887.5 | M205: 0.46626
A206: 196 | B206: HAVELLS | C206: 1192.5 | D206: 1185.82 | E206: 1173.78 | F206: 1155.07 | G206: 1143.03 | H206: 1204.53 | I206: 1216.57 | J206: 1235.28 | K206: 1197.85 | L206: 1167.1 | M206: 11.98621
... 320 more rows

Sheet Bulk Deals
E6: Back To Main Page
A7: Subject : | B7: BULK DEAL | D7: =Main!B10 -> 2023-01-09
A9: Date | B9: Scrip code | C9: Scrip Name | D9: Client Name | E9: Buy / Sell | F9: Quantity Traded | G9: Trade Price / Wt.Avg.trade price | H9: Exchange
A10: 2023-01-06 | B10: 539506 | C10: ADCON | D10: TANGO COMMOSALES LLP | E10: BUY | F10: 417,377 | G10: 3.43 | H10: BSE
A11: 2023-01-06 | B11: 539277 | C11: ALSTONE | D11: ROHIT MANOT (HUF) . | E11: SELL | F11: 800,000 | G11: 2.32 | H11: BSE
A12: 2023-01-06 | B12: 539277 | C12: ALSTONE | D12: EPITOME TRADING AND INVESTMENTS | E12: SELL | F12: 766,225 | G12: 2.48 | H12: BSE
A13: 2023-01-06 | B13: 539277 | C13: ALSTONE | D13: EPITOME TRADING AND INVESTMENTS | E13: BUY | F13: 766,225 | G13: 2.52 | H13: BSE
A14: 2023-01-06 | B14: 539277 | C14: ALSTONE | D14: MULTIPLIER SHARE & STOCK ADVISORS PRIVATE LIMITED | E14: SELL | F14: 4,145,105 | G14: 2.55 | H14: BSE
A15: 2023-01-06 | B15: 539277 | C15: ALSTONE | D15: MULTIPLIER SHARE & STOCK ADVISORS PRIVATE LIMITED | E15: BUY | F15: 4,595,105 | G15: 2.32 | H15: BSE
A16: 2023-01-06 | B16: 543678 | C16: AMBOAGRI | D16: SWARANDEEP SINGH | E16: BUY | F16: 48,000 | G16: 37.9 | H16: BSE
A17: 2023-01-06 | B17: 513401 | C17: ASHIS | D17: SANJAY GARG | E17: SELL | F17: 44,066 | G17: 45.9 | H17: BSE
A18: 2023-01-06 | B18: 501425 | C18: BBTC | D18: MACROFIL INVESTMENTS LIMITED | E18: BUY | F18: 1,300,000 | G18: 928 | H18: BSE
A19: 2023-01-06 | B19: 501425 | C19: BBTC | D19: THE BOMBAY DYEING AND MANUFACTURING COMPANY LIMITED | E19: SELL | F19: 1,300,000 | G19: 928 | H19: BSE
A20: 2023-01-06 | B20: 524606 | C20: BERLDRG | D20: ASHOK KUMAR JAIN | E20: BUY | F20: 30,000 | G20: 14.98 | H20: BSE
A21: 2023-01-06 | B21: 539559 | C21: DDIL | D21: SHAIBAL GHOSH | E21: SELL | F21: 16,260 | G21: 136.56 | H21: BSE
A22: 2023-01-06 | B22: 539190 | C22: DFL | D22: MANISH MISHRA | E22: BUY | F22: 19,194 | G22: 66.93 | H22: BSE
A23: 2023-01-06 | B23: 543475 | C23: EKENNIS | D23: NIKHIL R JAIN | E23: BUY | F23: 11,200 | G23: 170 | H23: BSE
A24: 2023-01-06 | B24: 543475 | C24: EKENNIS | D24: ANMOL SHARE BROKING PRIVATE LIMITED | E24: SELL | F24: 17,600 | G24: 170 | H24: BSE
A25: 2023-01-06 | B25: 504028 | C25: GEE | D25: SAGAR CONSOLIDATED HOLDINGS PRIVATE LIMITED | E25: SELL | F25: 462,649 | G25: 64.63 | H25: BSE
A26: 2023-01-06 | B26: 504028 | C26: GEE | D26: PRADIP BHAUMICK | E26: BUY | F26: 140,000 | G26: 63.86 | H26: BSE
A27: 2023-01-06 | B27: 540266 | C27: GLCL | D27: RAMA KRISHNA MITTINTI | E27: SELL | F27: 20,000 | G27: 31.35 | H27: BSE
A28: 2023-01-06 | B28: 524590 | C28: HEMORGANIC | D28: RITIKA RANI | E28: BUY | F28: 20,004 | G28: 8.07 | H28: BSE
A29: 2023-01-06 | B29: 524590 | C29: HEMORGANIC | D29: VINOD KUMAR ARORA | E29: BUY | F29: 25,000 | G29: 8.08 | H29: BSE
A30: 2023-01-06 | B30: 524590 | C30: HEMORGANIC | D30: VINOD KUMAR ARORA | E30: SELL | F30: 1 | G30: 8.07 | H30: BSE
A31: 2023-01-06 | B31: 524590 | C31: HEMORGANIC | D31: RITIKA RANI | E31: SELL | F31: 1,645 | G31: 8.07 | H31: BSE
A32: 2023-01-06 | B32: 524590 | C32: HEMORGANIC | D32: PATEL YOGESH SOMABHAI HUF | E32: BUY | F32: 91,187 | G32: 8.9 | H32: BSE
A33: 2023-01-06 | B33: 524590 | C33: HEMORGANIC | D33: JYOTIBEN SOMABHAI PATEL | E33: SELL | F33: 36,056 | G33: 8.88 | H33: BSE
A34: 2023-01-06 | B34: 524590 | C34: HEMORGANIC | D34: HETAL YOGESHKUMAR PATEL | E34: SELL | F34: 40,457 | G34: 8.13 | H34: BSE
A35: 2023-01-06 | B35: 524590 | C35: HEMORGANIC | D35: PATEL YOGESH SOMABHAI HUF | E35: SELL | F35: 78,109 | G35: 8.07 | H35: BSE
A36: 2023-01-06 | B36: 524590 | C36: HEMORGANIC | D36: BHAILAL DAHYABHAI PATEL | E36: SELL | F36: 81,600 | G36: 8.84 | H36: BSE
A37: 2023-01-06 | B37: 524590 | C37: HEMORGANIC | D37: ARHAM SHARE PRIVATE LIMITED | E37: BUY | F37: 35,000 | G37: 8.91 | H37: BSE
A38: 2023-01-06 | B38: 524590 | C38: HEMORGANIC | D38: ARHAM SHARE PRIVATE LIMITED | E38: SELL | F38: 35,000 | G38: 8.9 | H38: BSE
A39: 2023-01-06 | B39: 524590 | C39: HEMORGANIC | D39: HARSHA BANGALORE MALLIKARJUNA | E39: BUY | F39: 20,006 | G39: 8.49 | H39: BSE
A40: 2023-01-06 | B40: 524590 | C40: HEMORGANIC | D40: PRABHULAL LALLUBHAI PAREKH | E40: BUY | F40: 19,001 | G40: 8.91 | H40: BSE
A41: 2023-01-06 | B41: 524590 | C41: HEMORGANIC | D41: PRABHULAL LALLUBHAI PAREKH | E41: SELL | F41: 19,001 | G41: 8.9 | H41: BSE
A42: 2023-01-06 | B42: 539692 | C42: IFINSER | D42: DIMPLE PRADEEP PANDEY | E42: SELL | F42: 18,023 | G42: 11.08 | H42: BSE
A43: 2023-01-06 | B43: 524458 | C43: INDOEURO | D43: DINKAR SONU SONAR | E43: SELL | F43: 59,063 | G43: 21.52 | H43: BSE
A44: 2023-01-06 | B44: 542924 | C44: JANUSCORP | D44: AMAR CHANDRA BHATTACHARJI | E44: BUY | F44: 73,500 | G44: 4.75 | H44: BSE
A45: 2023-01-06 | B45: 542924 | C45: JANUSCORP | D45: NARENDRA KUMAR MAURYA | E45: SELL | F45: 87,500 | G45: 5.23 | H45: BSE
A46: 2023-01-06 | B46: 542924 | C46: JANUSCORP | D46: NAMAN SECURITIES & FINANCE PVT. LTD. | E46: BUY | F46: 91,000 | G46: 5.01 | H46: BSE
A47: 2023-01-06 | B47: 542924 | C47: JANUSCORP | D47: NAMAN SECURITIES & FINANCE PVT. LTD. | E47: SELL | F47: 77,000 | G47: 5.17 | H47: BSE
A48: 2023-01-06 | B48: 542924 | C48: JANUSCORP | D48: KRISHAN AVTAR | E48: SELL | F48: 98,000 | G48: 5.23 | H48: BSE
A49: 2023-01-06 | B49: 542924 | C49: JANUSCORP | D49: VIVEK KUMAR BHAUKA | E49: SELL | F49: 129,500 | G49: 4.75 | H49: BSE
A50: 2023-01-06 | B50: 542924 | C50: JANUSCORP | D50: SADIK DAWOOD PATEL | E50: SELL | F50: 73,500 | G50: 4.75 | H50: BSE
A51: 2023-01-06 | B51: 542924 | C51: JANUSCORP | D51: INDRACHAUHAN | E51: BUY | F51: 129,500 | G51: 5.22 | H51: BSE
A52: 2023-01-06 | B52: 524731 | C52: JENBURPH* | D52: JENBURKT PHARMACEUTICALS LTD | E52: BUY | F52: 47,037 | G52: 649.97 | H52: BSE
A53: 2023-01-06 | B53: 540360 | C53: LLFICL | D53: SKSE SECURITIES LIMITED CORP CM/TM PROP A/C | E53: SELL | F53: 292,985 | G53: 12.27 | H53: BSE
A54: 2023-01-06 | B54: 540360 | C54: LLFICL | D54: SKSE SECURITIES LIMITED CORP CM/TM PROP A/C | E54: BUY | F54: 292,985 | G54: 12.26 | H54: BSE
A55: 2023-01-06 | B55: 540360 | C55: LLFICL | D55: MULTIPLIER SHARE & STOCK ADVISORS PRIVATE LIMITED | E55: SELL | F55: 428,492 | G55: 12.27 | H55: BSE
A56: 2023-01-06 | B56: 540360 | C56: LLFICL | D56: MULTIPLIER SHARE & STOCK ADVISORS PRIVATE LIMITED | E56: BUY | F56: 428,492 | G56: 12.27 | H56: BSE
A57: 2023-01-06 | B57: 543624 | C57: MAAGHADV | D57: NNM SECURITIES PVT LTD | E57: SELL | F57: 4,000 | G57: 27.88 | H57: BSE
A58: 2023-01-06 | B58: 543624 | C58: MAAGHADV | D58: NNM SECURITIES PVT LTD | E58: BUY | F58: 58,000 | G58: 28.85 | H58: BSE
A59: 2023-01-06 | B59: 543624 | C59: MAAGHADV | D59: MAYUR RAJENDRABHAI PARIKH | E59: SELL | F59: 50,000 | G59: 29 | H59: BSE
A60: 2023-01-06 | B60: 505523 | C60: MAHACORP | D60: BHAVYA DHIMAN | E60: BUY | F60: 4,548,956 | G60: 2.22 | H60: BSE
A61: 2023-01-06 | B61: 505523 | C61: MAHACORP | D61: BONANZA PORTFOLIO LIMITED | E61: BUY | F61: 675,000 | G61: 2.22 | H61: BSE
A62: 2023-01-06 | B62: 505523 | C62: MAHACORP | D62: BONANZA PORTFOLIO LIMITED | E62: SELL | F62: 912,815 | G62: 2.22 | H62: BSE
A63: 2023-01-06 | B63: 505523 | C63: MAHACORP | D63: PARESH DHIRAJLAL SHAH | E63: SELL | F63: 750,001 | G63: 2.22 | H63: BSE
A64: 2023-01-06 | B64: 505523 | C64: MAHACORP | D64: MULTIPLIER SHARE & STOCK ADVISORS PRIVATE LIMITED | E64: SELL | F64: 1,700,000 | G64: 2.22 | H64: BSE
A65: 2023-01-06 | B65: 541337 | C65: MILEFUR | D65: SUBROTO MUKHERJEE | E65: SELL | F65: 66,000 | G65: 5.4 | H65: BSE
A66: 2023-01-06 | B66: 541337 | C66: MILEFUR | D66: MULTIPLIER SHARE & STOCK ADVISORS PRIVATE LIMITED | E66: BUY | F66: 81,000 | G66: 5.4 | H66: BSE
A67: 2023-01-06 | B67: 500298 | C67: NATPEROX | D67: BAYMANCO INVESTMENTS LIMITED | E67: BUY | F67: 860,000 | G67: 1417 | H67: BSE
A68: 2023-01-06 | B68: 500298 | C68: NATPEROX | D68: MACROFIL INVESTMENTS LIMITED | E68: SELL | F68: 860,000 | G68: 1417 | H68: BSE
A69: 2023-01-06 | B69: 543351 | C69: NBL | D69: BEELINE BROKING LIMITED | E69: BUY | F69: 1,600 | G69: 62.3 | H69: BSE
A70: 2023-01-06 | B70: 543351 | C70: NBL | D70: BEELINE BROKING LIMITED | E70: SELL | F70: 9,600 | G70: 61.75 | H70: BSE
A71: 2023-01-06 | B71: 517554 | C71: NHCFOODS | D71: SUMAN CHUNDURI | E71: BUY | F71: 96,100 | G71: 32.05 | H71: BSE
A72: 2023-01-06 | B72: 517554 | C72: NHCFOODS | D72: ARAVIND REDDY ADMALA | E72: SELL | F72: 91,990 | G72: 32.05 | H72: BSE
A73: 2023-01-06 | B73: 523260 | C73: PEARLPOLY | D73: CHANDRIKA CHIRAJILAL DAMANI | E73: BUY | F73: 122,658 | G73: 32.64 | H73: BSE
A74: 2023-01-06 | B74: 519191 | C74: RGRL | D74: KANTA DEVI SAMDARIA | E74: BUY | F74: 45,978 | G74: 10.2 | H74: BSE
A75: 2023-01-06 | B75: 539124 | C75: SARVOTTAM | D75: SPEXTRA MULTIBIZ PRIVATE LIMITED | E75: SELL | F75: 48,448 | G75: 53.55 | H75: BSE
A76: 2023-01-06 | B76: 539124 | C76: SARVOTTAM | D76: SPEXTRA MULTIBIZ PRIVATE LIMITED | E76: BUY | F76: 50,075 | G76: 53.46 | H76: BSE
A77: 2023-01-06 | B77: 530419 | C77: SUMEDHA | D77: DEEPAK KUMAR JAIN | E77: BUY | F77: 40,000 | G77: 88.8 | H77: BSE
A78: 2023-01-06 | B78: 530419 | C78: SUMEDHA | D78: JIMMY RAJDEO SAH | E78: BUY | F78: 40,000 | G78: 88.8 | H78: BSE
A79: 2023-01-06 | B79: 530419 | C79: SUMEDHA | D79: SUMEET SINGHVI | E79: BUY | F79: 40,000 | G79: 88.8 | H79: BSE
A80: 2023-01-06 | B80: 530419 | C80: SUMEDHA | D80: REKHA BHANDARI | E80: SELL | F80: 58,638 | G80: 88.77 | H80: BSE
A81: 2023-01-06 | B81: 537392 | C81: TAAZAINT | D81: ANUPAMA BOTTA | E81: SELL | F81: 1 | G81: 20.1 | H81: BSE
A82: 2023-01-06 | B82: 537392 | C82: TAAZAINT | D82: ANUPAMA BOTTA | E82: BUY | F82: 50,938 | G82: 18.99 | H82: BSE
A83: 2023-01-06 | B83: 537392 | C83: TAAZAINT | D83: SARATH KUMAR CHENNUPATI | E83: SELL | F83: 50,000 | G83: 19 | H83: BSE
A84: 2023-01-06 | B84: 543656 | C84: TECHNOPACK | D84: NIKHIL JAIN | E84: BUY | F84: 28,000 | G84: 95.93 | H84: BSE
A85: 2023-01-06 | B85: 539428 | C85: TEJNAKSH | D85: NAV CAPITAL VCC - NAV CAPITAL EMERGING STAR FUND | E85: BUY | F85: 58,958 | G85: 115.02 | H85: BSE
A86: 2023-01-06 | B86: 506808 | C86: TUTIALKA | D86: MERCANTILE VENTURES LIMITED | E86: BUY | F86: 2,593,128 | G86: 66 | H86: BSE
A87: 2023-01-06 | B87: 506808 | C87: TUTIALKA | D87: POLUS GLOBAL FUND | E87: SELL | F87: 2,593,128 | G87: 66 | H87: BSE
A88: 2023-01-06 | B88: 538706 | C88: ULTRACAB | D88: RIYA ALPESH SHAH | E88: BUY | F88: 504,000 | G88: 27 | H88: BSE
A89: 2023-01-06 | B89: 543545 | C89: VEERKRUPA | D89: AKSHAY RAJENDRABHAI OSWAL | E89: SELL | F89: 54,000 | G89: 95 | H89: BSE
A90: 2023-01-06 | B90: 543545 | C90: VEERKRUPA | D90: DIPAK MATHURBHAI SALVI | E90: SELL | F90: 48,000 | G90: 95 | H90: BSE
A91: 2023-01-06 | B91: 542655 | C91: VIKASLIFE | D91: SAWARNBHUMI VANIJYA PRIVATE LIMITED | E91: SELL | F91: 8,500,000 | G91: 4.56 | H91: BSE
A92: 2023-01-06 | B92: ACCURACY | C92: Accuracy Shipping Limited | D92: ANTARA INDIA EVERGREEN FUND LTD | E92: BUY | F92: 515,000 | G92: 161.62 | H92: NSE
A93: 2023-01-06 | B93: ATALREAL | C93: Atal Realtech Limited | D93: KAUSHIK MAHESH WAGHELA | E93: BUY | F93: 153,600 | G93: 65.21 | H93: NSE
A94: 2023-01-06 | B94: ATALREAL | C94: Atal Realtech Limited | D94: RAVI GOYAL (HUF) | E94: BUY | F94: 96,000 | G94: 73.98 | H94: NSE
A95: 2023-01-06 | B95: BTML | C95: Bodhi Tree Multimedia Ltd | D95: ACHINTYA SECURITIES PRIVATE LIMITED | E95: BUY | F95: 72,000 | G95: 145.35 | H95: NSE
A96: 2023-01-06 | B96: BTML | C96: Bodhi Tree Multimedia Ltd | D96: MANSI SHARES & STOCK ADVISORS PVT LTD | E96: BUY | F96: 48,000 | G96: 143.09 | H96: NSE
A97: 2023-01-06 | B97: DONEAR | C97: Donear Industries Limited | D97: XTX MARKETS LLP | E97: BUY | F97: 271,805 | G97: 101.68 | H97: NSE
A98: 2023-01-06 | B98: DONEAR | C98: Donear Industries Limited | D98: GRAVITON RESEARCH CAPITAL LLP | E98: BUY | F98: 390,835 | G98: 101.59 | H98: NSE
A99: 2023-01-06 | B99: HECPROJECT | C99: HEC Infra Projects Ltd | D99: MULTIPLIER SHARE & STOCK ADVISORS PRIVATE LIMITED | E99: BUY | F99: 47,816 | G99: 49.3 | H99: NSE
A100: 2023-01-06 | B100: HOMESFY | C100: Homesfy Realty Limited | D100: BABULAL BADRIPRASAD AGRAWAL | E100: BUY | F100: 19,200 | G100: 300.55 | H100: NSE
A101: 2023-01-06 | B101: HOMESFY | C101: Homesfy Realty Limited | D101: NEMINATH PORTFOLIO MANAGEMENT SERVICES PRIVATE LIM | E101: BUY | F101: 16,200 | G101: 300.55 | H101: NSE
A102: 2023-01-06 | B102: KSHITIJPOL | C102: Kshitij Polyline Limited | D102: ZENAB AIYUB YACOOBALI | E102: BUY | F102: 568,504 | G102: 28.14 | H102: NSE
A103: 2023-01-06 | B103: KSHITIJPOL | C103: Kshitij Polyline Limited | D103: PREETI JAIN | E103: BUY | F103: 35,210 | G103: 28.87 | H103: NSE
A104: 2023-01-06 | B104: LAMBODHARA | C104: Lambodhara Textiles Ltd. | D104: GRAVITON RESEARCH CAPITAL LLP | E104: BUY | F104: 113,630 | G104: 140.23 | H104: NSE
A105: 2023-01-06 | B105: LANDMARK | C105: Landmark Cars Limited | D105: GIRIK WEALTH ADVISORS PRIVATE LTD PMS | E105: BUY | F105: 436,875 | G105: 563.74 | H105: NSE
A106: 2023-01-06 | B106: LLOYDS | C106: Lloyds Luxuries Limited | D106: PUNE IT SPACE SOLUTIONS PRIVATE LIMITED | E106: BUY | F106: 234,000 | G106: 41.75 | H106: NSE
A107: 2023-01-06 | B107: MPTODAY | C107: M P Today Media Limited | D107: ANANT AGGARWAL | E107: BUY | F107: 32,000 | G107: 55.77 | H107: NSE
A108: 2023-01-06 | B108: PEARLPOLY | C108: Pearl Polymers Ltd | D108: DIPAN MEHTA COMMODITIES PRIVATE LIMITED | E108: BUY | F108: 106,204 | G108: 32 | H108: NSE
A109: 2023-01-06 | B109: PEARLPOLY | C109: Pearl Polymers Ltd | D109: NK SECURITIES RESEARCH PRIVATE LIMITED | E109: BUY | F109: 108,897 | G109: 31.26 | H109: NSE
A110: 2023-01-06 | B110: POKARNA | C110: Pokarna Limited | D110: GRAVITON RESEARCH CAPITAL LLP | E110: BUY | F110: 195,002 | G110: 445.41 | H110: NSE
A111: 2023-01-06 | B111: RITEZONE | C111: Rite Zone Chemcon Ind Ltd | D111: VIKAS KUMAR VERMA HUF | E111: BUY | F111: 48,000 | G111: 76.15 | H111: NSE
A112: 2023-01-06 | B112: RITEZONE | C112: Rite Zone Chemcon Ind Ltd | D112: VARUN KRISHNAVTAR KABRA | E112: BUY | F112: 78,400 | G112: 80.66 | H112: NSE
A113: 2023-01-06 | B113: RITEZONE | C113: Rite Zone Chemcon Ind Ltd | D113: AVIRAT ENTERPRISE | E113: BUY | F113: 24,000 | G113: 76.25 | H113: NSE
A114: 2023-01-06 | B114: SABAR | C114: Sabar Flex India Limited | D114: ANMOL SHARE BROKING PRIVATE LIMITED | E114: BUY | F114: 90,000 | G114: 14.5 | H114: NSE
A115: 2023-01-06 | B115: SALZERELEC | C115: Salzer Electronics Ltd. | D115: GRAVITON RESEARCH CAPITAL LLP | E115: BUY | F115: 234,538 | G115: 297.34 | H115: NSE
A116: 2023-01-06 | B116: SALZERELEC | C116: Salzer Electronics Ltd. | D116: QE SECURITIES | E116: BUY | F116: 91,175 | G116: 297.28 | H116: NSE
A117: 2023-01-06 | B117: SALZERELEC | C117: Salzer Electronics Ltd. | D117: BHADHA HUTOXY KERSI | E117: BUY | F117: 80,000 | G117: 298.15 | H117: NSE
A118: 2023-01-06 | B118: SALZERELEC | C118: Salzer Electronics Ltd. | D118: XTX MARKETS LLP | E118: BUY | F118: 186,595 | G118: 296.98 | H118: NSE
A119: 2023-01-06 | B119: SCAPDVR | C119: Stampede Capital Limited | D119: L7 HITECH PRIVATE LIMITED | E119: BUY | F119: 710,000 | G119: 12.75 | H119: NSE
A120: 2023-01-06 | B120: SECURCRED | C120: SecUR Credentials Limited | D120: NAKSHATRA GARMENTS PRIVATE LIMITED | E120: BUY | F120: 40,345 | G120: 34.33 | H120: NSE
A121: 2023-01-06 | B121: SIGACHI | C121: Sigachi Industries Ltd | D121: QE SECURITIES | E121: BUY | F121: 159,538 | G121: 315.18 | H121: NSE
A122: 2023-01-06 | B122: SIGACHI | C122: Sigachi Industries Ltd | D122: GRAVITON RESEARCH CAPITAL LLP | E122: BUY | F122: 212,285 | G122: 305.8 | H122: NSE
A123: 2023-01-06 | B123: SIGACHI | C123: Sigachi Industries Ltd | D123: XTX MARKETS LLP | E123: BUY | F123: 163,680 | G123: 311.12 | H123: NSE
A124: 2023-01-06 | B124: SPECIALITY | C124: Speciality Rest Ltd | D124: GRAVITON RESEARCH CAPITAL LLP | E124: BUY | F124: 327,119 | G124: 259.34 | H124: NSE
A125: 2023-01-06 | B125: TAINWALCHM | C125: Tainwala Chem & Plastics | D125: GRAVITON RESEARCH CAPITAL LLP | E125: BUY | F125: 103,466 | G125: 143.41 | H125: NSE
A126: 2023-01-06 | B126: TNPETRO | C126: Tamilnadu Petro Prod Ltd | D126: OLYMPIA TECH PARK CHENNAI PRIVATE LIMITED | E126: BUY | F126: 854,030 | G126: 90 | H126: NSE
A127: 2023-01-06 | B127: TVSELECT | C127: TVS Electronics Limited | D127: QE SECURITIES | E127: BUY | F127: 266,512 | G127: 398.19 | H127: NSE
A128: 2023-01-06 | B128: TVSELECT | C128: TVS Electronics Limited | D128: MUDUPULAVEMULA SURENDRANADHA REDDY | E128: BUY | F128: 97,386 | G128: 401.03 | H128: NSE
A129: 2023-01-06 | B129: TVSELECT | C129: TVS Electronics Limited | D129: XTX MARKETS LLP | E129: BUY | F129: 451,455 | G129: 395.95 | H129: NSE
A130: 2023-01-06 | B130: TVSELECT | C130: TVS Electronics Limited | D130: GRAVITON RESEARCH CAPITAL LLP | E130: BUY | F130: 641,899 | G130: 396.31 | H130: NSE
A131: 2023-01-06 | B131: TVSELECT | C131: TVS Electronics Limited | D131: NK SECURITIES RESEARCH PRIVATE LIMITED | E131: BUY | F131: 313,561 | G131: 395.48 | H131: NSE
A132: 2023-01-06 | B132: TVSELECT | C132: TVS Electronics Limited | D132: ELIXIR WEALTH MANAGEMENT PRIVATE LIMITED | E132: BUY | F132: 229,354 | G132: 399.9 | H132: NSE
A133: 2023-01-06 | B133: ACCURACY | C133: Accuracy Shipping Limited | D133: RAJY ADVISORY SERVICES PRIVATE LIMITED | E133: SELL | F133: 413,223 | G133: 161.83 | H133: NSE
A134: 2023-01-06 | B134: ATALREAL | C134: Atal Realtech Limited | D134: BHAVESH KIRTI MATHURIA | E134: SELL | F134: 331,200 | G134: 65.45 | H134: NSE
A135: 2023-01-06 | B135: ATALREAL | C135: Atal Realtech Limited | D135: OPTUME INVESTMENTS | E135: SELL | F135: 76,800 | G135: 70.91 | H135: NSE
A136: 2023-01-06 | B136: BTML | C136: Bodhi Tree Multimedia Ltd | D136: KAILASHBEN ASHOKKUMAR PATEL | E136: SELL | F136: 90,000 | G136: 145.57 | H136: NSE
A137: 2023-01-06 | B137: BTML | C137: Bodhi Tree Multimedia Ltd | D137: ACHINTYA SECURITIES PRIVATE LIMITED | E137: SELL | F137: 42,000 | G137: 140.16 | H137: NSE
A138: 2023-01-06 | B138: BTML | C138: Bodhi Tree Multimedia Ltd | D138: MANSI SHARES & STOCK ADVISORS PVT LTD | E138: SELL | F138: 66,000 | G138: 147.95 | H138: NSE
A139: 2023-01-06 | B139: CORDSCABLE | C139: Cords Cable Industries Li | D139: LOK PRAKASHAN LTD | E139: SELL | F139: 90,971 | G139: 82.26 | H139: NSE
A140: 2023-01-06 | B140: DONEAR | C140: Donear Industries Limited | D140: XTX MARKETS LLP | E140: SELL | F140: 262,430 | G140: 101.82 | H140: NSE
A141: 2023-01-06 | B141: DONEAR | C141: Donear Industries Limited | D141: GRAVITON RESEARCH CAPITAL LLP | E141: SELL | F141: 390,835 | G141: 101.33 | H141: NSE
A142: 2023-01-06 | B142: FELIX | C142: Felix Industries Ltd. | D142: AYSHWARYA SYNDICATE | E142: SELL | F142: 96,000 | G142: 75.16 | H142: NSE
A143: 2023-01-06 | B143: GAL-RE | C143: Gyscoal Alloys Ltd | D143: TIRTH SAMIRBHAI PATEL | E143: SELL | F143: 1,540,000 | G143: 0.15 | H143: NSE
A144: 2023-01-06 | B144: HECPROJECT | C144: HEC Infra Projects Ltd | D144: MULTIPLIER SHARE & STOCK ADVISORS PRIVATE LIMITED | E144: SELL | F144: 59,119 | G144: 49.43 | H144: NSE
A145: 2023-01-06 | B145: HOMESFY | C145: Homesfy Realty Limited | D145: ANANT AGGARWAL | E145: SELL | F145: 48,600 | G145: 300.55 | H145: NSE
A146: 2023-01-06 | B146: KSHITIJPOL | C146: Kshitij Polyline Limited | D146: PREETI JAIN | E146: SELL | F146: 482,743 | G146: 28.17 | H146: NSE
A147: 2023-01-06 | B147: LAMBODHARA | C147: Lambodhara Textiles Ltd. | D147: GRAVITON RESEARCH CAPITAL LLP | E147: SELL | F147: 113,630 | G147: 140.71 | H147: NSE
A148: 2023-01-06 | B148: LANDMARK | C148: Landmark Cars Limited | D148: BOFA SECURITIES EUROPE SA | E148: SELL | F148: 250,218 | G148: 576.04 | H148: NSE
A149: 2023-01-06 | B149: PEARLPOLY | C149: Pearl Polymers Ltd | D149: NK SECURITIES RESEARCH PRIVATE LIMITED | E149: SELL | F149: 108,897 | G149: 31.31 | H149: NSE
A150: 2023-01-06 | B150: PEARLPOLY | C150: Pearl Polymers Ltd | D150: DIPAN MEHTA COMMODITIES PRIVATE LIMITED | E150: SELL | F150: 88,821 | G150: 31.38 | H150: NSE
A151: 2023-01-06 | B151: PERFECT | C151: Perfect Infraengineer Ltd | D151: ANSHULGUPTA | E151: SELL | F151: 78,000 | G151: 15.3 | H151: NSE
A152: 2023-01-06 | B152: POKARNA | C152: Pokarna Limited | D152: GRAVITON RESEARCH CAPITAL LLP | E152: SELL | F152: 195,002 | G152: 445.52 | H152: NSE
A153: 2023-01-06 | B153: RITEZONE | C153: Rite Zone Chemcon Ind Ltd | D153: VARUN KRISHNAVTAR KABRA | E153: SELL | F153: 78,400 | G153: 76.37 | H153: NSE
A154: 2023-01-06 | B154: RITEZONE | C154: Rite Zone Chemcon Ind Ltd | D154: VIKAS KUMAR VERMA HUF | E154: SELL | F154: 8,000 | G154: 81.01 | H154: NSE
A155: 2023-01-06 | B155: RITEZONE | C155: Rite Zone Chemcon Ind Ltd | D155: RIKHAV SECURITIES LIMITED | E155: SELL | F155: 65,600 | G155: 77.11 | H155: NSE
A156: 2023-01-06 | B156: RITEZONE | C156: Rite Zone Chemcon Ind Ltd | D156: AVIRAT ENTERPRISE | E156: SELL | F156: 24,000 | G156: 80.5 | H156: NSE
A157: 2023-01-06 | B157: SABAR | C157: Sabar Flex India Limited | D157: MYANMOL FINANCIAL SERVICES LLP | E157: SELL | F157: 90,000 | G157: 14.5 | H157: NSE
A158: 2023-01-06 | B158: SALZERELEC | C158: Salzer Electronics Ltd. | D158: XTX MARKETS LLP | E158: SELL | F158: 184,335 | G158: 297.73 | H158: NSE
A159: 2023-01-06 | B159: SALZERELEC | C159: Salzer Electronics Ltd. | D159: GRAVITON RESEARCH CAPITAL LLP | E159: SELL | F159: 234,538 | G159: 297.69 | H159: NSE
A160: 2023-01-06 | B160: SALZERELEC | C160: Salzer Electronics Ltd. | D160: QE SECURITIES | E160: SELL | F160: 100,668 | G160: 297.96 | H160: NSE
A161: 2023-01-06 | B161: SCAPDVR | C161: Stampede Capital Limited | D161: L7 HITECH PRIVATE LIMITED | E161: SELL | F161: 194,104 | G161: 12.9 | H161: NSE
A162: 2023-01-06 | B162: SECURCRED | C162: SecUR Credentials Limited | D162: NAKSHATRA GARMENTS PRIVATE LIMITED | E162: SELL | F162: 96,283 | G162: 32.83 | H162: NSE
A163: 2023-01-06 | B163: SIGACHI | C163: Sigachi Industries Ltd | D163: XTX MARKETS LLP | E163: SELL | F163: 164,064 | G163: 311.82 | H163: NSE
A164: 2023-01-06 | B164: SIGACHI | C164: Sigachi Industries Ltd | D164: GRAVITON RESEARCH CAPITAL LLP | E164: SELL | F164: 212,285 | G164: 305.91 | H164: NSE
A165: 2023-01-06 | B165: SIGACHI | C165: Sigachi Industries Ltd | D165: QE SECURITIES | E165: SELL | F165: 180,417 | G165: 314.16 | H165: NSE
A166: 2023-01-06 | B166: SIGACHI | C166: Sigachi Industries Ltd | D166: DHARM PRAKASH TRIPATHI | E166: SELL | F166: 154,800 | G166: 316.87 | H166: NSE
A167: 2023-01-06 | B167: SPECIALITY | C167: Speciality Rest Ltd | D167: GRAVITON RESEARCH CAPITAL LLP | E167: SELL | F167: 327,119 | G167: 258.85 | H167: NSE
A168: 2023-01-06 | B168: SUPERSPIN | C168: Super Spinning Mills Ltd | D168: ATUL NAGINDAS SANGHVI | E168: SELL | F168: 301,991 | G168: 8.49 | H168: NSE
A169: 2023-01-06 | B169: TAINWALCHM | C169: Tainwala Chem & Plastics | D169: GRAVITON RESEARCH CAPITAL LLP | E169: SELL | F169: 103,466 | G169: 143.4 | H169: NSE
A170: 2023-01-06 | B170: TVSELECT | C170: TVS Electronics Limited | D170: GRAVITON RESEARCH CAPITAL LLP | E170: SELL | F170: 641,899 | G170: 396.69 | H170: NSE
A171: 2023-01-06 | B171: TVSELECT | C171: TVS Electronics Limited | D171: MUDUPULAVEMULA SURENDRANADHA REDDY | E171: SELL | F171: 97,386 | G171: 401.58 | H171: NSE
A172: 2023-01-06 | B172: TVSELECT | C172: TVS Electronics Limited | D172: XTX MARKETS LLP | E172: SELL | F172: 451,455 | G172: 396.4 | H172: NSE
A173: 2023-01-06 | B173: TVSELECT | C173: TVS Electronics Limited | D173: ELIXIR WEALTH MANAGEMENT PRIVATE LIMITED | E173: SELL | F173: 229,354 | G173: 400.2 | H173: NSE
A174: 2023-01-06 | B174: TVSELECT | C174: TVS Electronics Limited | D174: NK SECURITIES RESEARCH PRIVATE LIMITED | E174: SELL | F174: 313,561 | G174: 395.68 | H174: NSE
A175: 2023-01-06 | B175: TVSELECT | C175: TVS Electronics Limited | D175: QE SECURITIES | E175: SELL | F175: 262,453 | G175: 398.15 | H175: NSE

Sheet Call Tracker (Equity & F&O)
M5: Back To Main Page
A6: Retail Research Technical Calls & Fundamental Performance Report for the month of Jan-2022
M7: =Main!B10 -> 2023-01-09
B8: Positional Call
A9: Sr.no | B9: Date | D9: Company | E9: Rec | F9: Rec Price | G9: Stop Loss*** | H9: Call Closed At | I9: Target | J9: Remark | K9: Profit / Loss per Share | L9: All charges | M9: Net Gain / Loss % | N9: Status | O9: Closed Date | P9: Market Closing Price
A10: 1 | B10: 2022-10-27 | D10: ASHOKLEY | E10: Buy | F10: 147 | G10: 137 | H10: 154 | I10: 160-170 | J10: Part profit of Rs.7/- | K10: =H10-F10 -> 7 | L10: =(F10*-0.7)/100 -> -1.03 | M10: =(K10+L10)/F10 -> 4.06% | N10: Successful | O10: 2022-11-01 | R10: N
A11: 2 | B11: 2022-11-11 | D11: ULTRACEMCO | E11: Buy | F11: 6800 | G11: 6340 | H11: 7160 | I11: 7400-8000 | J11: Part profit of Rs.360/- | K11: =H11-F11 -> 360 | L11: =(F11*-0.7)/100 -> -47.60 | M11: =(K11+L11)/F11 -> 4.59% | N11: Successful | O11: 2022-12-01 | R11: H
A12: 3 | B12: 2022-11-25 | D12: SANOFI | E12: Buy | F12: 5670 | G12: 5250 | H12: 5905 | I12: 6200-6500 | J12: Part profit of Rs.235/- | K12: =H12-F12 -> 235 | L12: =(F12*-0.7)/100 -> -39.69 | M12: =(K12+L12)/F12 -> 3.44% | N12: Successful | O12: 2022-12-28 | R12: H
A13: 4 | B13: 2022-12-01 | D13: TCS | E13: Buy | F13: 3430-3480 | G13: 3140 | I13: 3800-4000 | J13: Open | R13: H
A14: 5 | B14: 2022-12-27 | D14: GSPL | E14: Buy | F14: 262.5 | G14: 246 | H14: 276.5 | I14: 290-300 | J14: Part profit of Rs.14/- | K14: =H14-F14 -> 14 | L14: =(F14*-0.7)/100 -> -1.84 | M14: =(K14+L14)/F14 -> 4.63% | N14: Successful | O14: 2023-01-04 | R14: N
A15: 6 | B15: 2023-01-04 | D15: BEL | E15: Buy | F15: 97-99 | G15: 89 | I15: 110-115 | J15: Open | R15: H
A16: 7 | B16: 2023-01-04 | D16: APOLLOHOSP | E16: Buy | F16: 4400-4450 | G16: 4180 | I16: 4700-4900 | J16: Open | R16: H
A17: 8 | B17: 2023-01-05 | D17: MARUTI | E17: Buy | F17: 8400-8460 | G17: 7900 | I17: 9200-9500 | J17: Open | R17: N
A22: CLBS = Closing Basis ***
A23: Dividend adjusted <> | F23: Reinitiated $
A24: Part book {} | D24: s | F24: Revised stoploss #
B26: Momentum Call
A27: Sr.no | B27: Date | D27: Company | E27: Rec | F27: Rec Price | G27: Stop Loss | H27: Call Closed At | I27: Target | J27: Remark | K27: Profit / Loss per Share/Lot | L27: All charges | M27: Net Gain / Loss % | N27: Status | O27: Closed Date
A28: 1 | B28: 2022-12-26 | D28: M&M | E28: Buy | F28: 1239.5 | G28: 1200 | H28: 1273.5 | I28: 1280-1310 | J28: Profit of Rs.34/- | K28: =H28-F28 -> 34 | L28: =(F28*-0.7)/100 -> -8.68 | M28: =(K28+L28)/F28 -> 2.04% | N28: Successful | O28: 2023-01-06 | R28: N
A29: 2 | B29: 2022-12-28 | D29: VARROC | E29: Buy | F29: 304.5 | G29: 295 | H29: 295 | I29: 315-325 | J29: Loss of Rs.9.5/- | K29: =H29-F29 -> -9.5 | L29: =(F29*-0.7)/100 -> -2.13 | M29: =(K29+L29)/F29 -> -3.82% | N29: Unsuccessful | O29: 2023-01-05 | R29: N
A30: 3 | B30: 2023-12-02 | D30: ADANIPORTS | E30: Buy | F30: 816-822 | G30: 795 | I30: 850-860 | J30: Open | R30: H
A31: 4 | B31: 2023-12-02 | D31: COFORGE | E31: Buy | F31: 3915 | G31: 3780 | H31: 4025 | I31: 4050-4150 | J31: Profit of Rs.110/- | K31: =H31-F31 -> 110 | L31: =(F31*-0.7)/100 -> -27.41 | M31: =(K31+L31)/F31 -> 2.11% | N31: Successful | O31: 2023-01-03 | R31: H
A32: 5 | B32: 2023-01-04 | D32: TATACONSUM | E32: Buy | F32: 762-764 | G32: 744 | I32: 790-800 | J32: Open | R32: H
A33: 6 | B33: 2023-01-04 | D33: TATAPOWER | E33: Buy | F33: 208-209 | G33: 202 | I33: 218-222 | J33: Open | R33: N
A34: 7 | B34: 2023-01-05 | D34: COFORGE | E34: Buy | F34: 3900-3930 | G34: 3780 | I34: 4050-4150 | J34: Open | R34: H
A37: CLBS = Closing Basis *** | H37: *
A38: Dividend adjusted <> | F38: Reinitiated $
F39: Revised stoploss #
A41: Master Trade High Risk
A42: Sr.no | B42: Date | D42: Company | E42: Rec | F42: Rec Price | G42: Stop Loss | H42: Call Closed At | I42: Target | J42: Remark | K42: Profit / Loss per share | L42: All charges | M42: Gain / Loss per Lot | N42: Lot | O42: Status | P42: Closed Date
A43: 1 | B43: 2022-12-27 | D43: BHARTIARTL JAN FUT | E43: Buy | F43: 819 | G43: 805 | H43: 805 | I43: 835-845 | J43: Loss of Rs.14/- | K43: =H43-F43 -> -14 | L43: =(H43*N43)*0.07% -> 535.33 | M43: =(K43*N43)-L43 -> -13835.3 | N43: 950 | O43: Unsuccessful | P43: 2022-01-05 | R43: N
A44: 2 | B44: 2023-12-30 | D44: ICICIBANK JAN FUT | E44: Buy | F44: 908 | G44: 890 | H44: 890 | I44: 935-945 | J44: Loss of Rs.18/- | K44: =H44-F44 -> -18 | L44: =(H44*N44)*0.07% -> 436.10 | M44: =(K44*N44)-L44 -> -13036.1 | N44: 700 | O44: Unsuccessful | P44: 2022-01-05 | R44: N
A45: 3 | B45: 2023-01-02 | D45: SIEMENS JAN FUT | E45: Buy | F45: 2852.5 | G45: 2805 | H45: 2885 | I45: 2920-2950 | J45: Profit of Rs.32.5/- | K45: 32.5 | L45: 555.36 | M45: 8382.1 | N45: 275 | O45: Successful | P45: 2022-01-05 | R45: N
A46: 4 | B46: 2023-01-03 | D46: APOLLOHOSP JAN FUT | E46: Buy | F46: 4460 | G46: 4360 | H46: 4525 | I46: 4600-4700 | J46: Profit of Rs.65/- | K46: =H46-F46 -> 65 | L46: =(H46*N46)*0.07% -> 395.94 | M46: =(K46*N46)-L46 -> 7729.1 | N46: 125 | O46: Successful | P46: 2022-01-03 | R46: H
A47: 5 | B47: 2023-01-03 | D47: ASIANPAINT JAN FUT | E47: Buy | F47: 3055 | G47: 2990 | H47: 2990 | I47: 3150-3200 | J47: Loss of Rs.65/- | K47: -65 | L47: 418.60 | M47: -13418.6 | N47: 200 | O47: Unsuccessful | P47: 2022-01-06 | R47: H
A48: 6 | B48: 2023-01-04 | D48: APOLLOHOSP JAN FUT | E48: Buy | F48: 4470-4480 | G48: 4370 | I48: 4600-4700 | J48: Open | R48: H
A49: 7 | B49: 2023-01-04 | D49: UPL JAN FUT | E49: Buy | F49: 717 | G49: 707 | H49: 724.5 | I49: 730-735 | J49: Profit of Rs.7.5/- | K49: =H49-F49 -> 7.5 | L49: =(H49*N49)*0.07% -> 659.30 | M49: =(K49*N49)-L49 -> 9090.7 | N49: 1300 | O49: Successful | P49: 2022-01-05 | R49: H
A50: 8 | B50: 2023-01-05 | D50: M&M JAN FUT | E50: Buy | F50: 1251 | G50: 1233 | H50: 1263.5 | I50: 1275-1295 | J50: Profit of Rs.7.5/- | K50: =H50-F50 -> 12.5 | L50: =(H50*N50)*0.07% -> 619.12 | M50: =(K50*N50)-L50 -> 8130.9 | N50: 700 | O50: Successful | P50: 2022-01-06 | R50: H
A56: Master Trade Medium Risk
A57: Sr.no | B57: Date | D57: Company | E57: Rec | F57: Rec Price | G57: Stop Loss | H57: Call Closed At | I57: Target | J57: Remark | K57: Profit/ Loss per lot | L57: All charges | M57: Gain / Loss per Lot | N57: Lot | O57: Status | P57: Closed Date
A58: 1 | B58: 2022-12-29 | D58: HINDUNILVR 2580 CE JAN | E58: Buy | F58: 54 | G58: 36 | H58: 36 | I58: 75-90 | J58: Loss of Rs.18/- | K58: =H58-F58 -> -18 | L58: 100.00 | M58: =(K58*N58)-L58 -> -5500.0 | N58: 300 | O58: Unsuccessful | P58: 2023-01-03 | R58: N
A59: 2 | B59: 2023-12-30 | D59: LT 2140 CE JAN | E59: Buy | F59: 42 | G59: 25 | H59: 27 | I59: 60-70 | J59: Loss of Rs.15/- | K59: =H59-F59 -> -15 | L59: 100.00 | M59: =(K59*N59)-L59 -> -4600.0 | N59: 300 | O59: Unsuccessful | P59: 2023-01-02 | R59: N
A60: 3 | B60: 2023-01-02 | D60: RELIANCE 2580 CE JAN | E60: Buy | F60: 56 | G60: 35 | H60: 35 | I60: 80-90 | J60: Loss of Rs.21/- | K60: =H60-F60 -> -21 | L60: 100.00 | M60: =(K60*N60)-L60 -> -5350.0 | N60: 250 | O60: Unsuccessful | P60: 2023-01-04 | R60: H
A61: 4 | B61: 2023-01-03 | D61: INFY 1540 CE JAN | E61: Buy | F61: 32 | G61: 19.5 | H61: 19.5 | I61: 45-55 | J61: Loss of Rs.12.5/- | K61: =H61-F61 -> -12.5 | L61: 100.00 | M61: =(K61*N61)-L61 -> -5100.0 | N61: 400 | O61: Unsuccessful | P61: 2023-01-05 | R61: H
A62: 5 | B62: 2023-01-03 | D62: CIPLA 1080 CE JAN | E62: Buy | F62: 25.5 | G62: 18 | H62: 29.5 | I62: 35-40 | J62: Profit of Rs.4/- | K62: =H62-F62 -> 4 | L62: 100.00 | M62: =(K62*N62)-L62 -> 2500.0 | N62: 650 | O62: Successful | P62: 2023-01-05 | R62: H
A63: 6 | B63: 2023-01-03 | D63: TATACONSUM 780 CE JAN | E63: Buy | F63: 9.5 | G63: 4.5 | H63: 11.5 | I63: 15-20 | J63: Profit of Rs.2/- | K63: =H63-F63 -> 2 | L63: 100.00 | M63: =(K63*N63)-L63 -> 1700.0 | N63: 900 | O63: Successful | P63: 2023-01-05 | R63: H
A64: 7 | B64: 2023-01-04 | D64: TCS 3360 CE JAN | E64: Buy | F64: 48 | G64: 19 | H64: 58 | I64: 80-100 | J64: Profit of Rs.10/- | K64: =H64-F64 -> 10 | L64: 100.00 | M64: =(K64*N64)-L64 -> 1650.0 | N64: 175 | O64: Successful | P64: 2023-01-05 | R64: H
A65: 8 | B65: 2023-01-04 | D65: NIFTY 18100 CE 5-JAN | E65: Buy | F65: 51.5 | G65: 19 | H65: 71.5 | I65: 90-110 | J65: Profit of Rs.20/- | K65: =H65-F65 -> 20 | L65: 100.00 | M65: =(K65*N65)-L65 -> 900.0 | N65: 50 | O65: Successful | P65: 2023-01-04 | R65: H
A66: 9 | B66: 2023-01-05 | D66: TATACONSUM 780 CE JAN | E66: Buy | F66: 9-9.5 | G66: 4.5 | I66: 15-17 | J66: Open | R66: H
A67: 10 | B67: 2023-01-06 | D67: LT 2100 CE JAN | E67: Buy | F67: 41-43 | G67: 27 | I67: 65-80 | J67: Open | R67: N
A71: Techno -Funda (positional)
A72: Sr.no | B72: Date | D72: Company | E72: Rec | F72: Rec Price | G72: Stop Loss*** | H72: Call Closed At | I72: Target | J72: Remark | K72: Profit / Loss per Share/Lot | L72: All charges | M72: Net Gain / Loss % | N72: Status | O72: Closed Date | P72: Market Closing Price
A73: 1 | B73: 2022-10-06 | D73: HDFCBANK | E73: Buy | F73: 1405 | G73: 1240 | H73: 1625 | I73: 1700-1800 | J73: Part profit of Rs.220/- | K73: =H73-F73 -> 220 | L73: =(F73*-0.7)/100 -> -9.84 | M73: =(K73+L73)/F73 -> 14.96% | N73: Successful | O73: 2022-11-14 | R73: H
A74: 2 | B74: 2022-10-06 | D74: AMBIKCO | E74: Buy | F74: 1420-1620 | G74: 1220 | I74: 2000-2300 | J74: Open | R74: H
A76: CLBS = Closing Basis *** | F76: Reinitiated $
A77: Dividend adjusted <> | F77: Revised stoploss # | H77: .................
B81: Investment Idea
A82: Sr.no | B82: Date | D82: Company | E82: Rec | F82: Rec Price | G82: Point of Review | H82: Close Rate | I82: Target | J82: Remark | K82: Profit / Loss per Share | L82: Gain / Loss % | M82: Status | N82: Closed Date
A83: 1 | B83: 2013-11-01 | D83: L&T Finance Holding | E83: Accu | F83: 82.00 | G83: - | H83: 100 | I83: 100.00 | J83: Target Achieved | K83: =H83-F83 -> 18.00 | L83: =K83/F83 -> 21.95% | M83: Successful | N83: 2016-10-14
A84: 2 | B84: 2014-06-04 | D84: Finolex Inds | E84: Buy | F84: 257.00 | G84: - | H84: 300 | I84: 300.00 | J84: Target Achieved | K84: 43.00 | L84: 16.73% | M84: Successful | N84: 2014-07-02
A85: 3 | B85: 2014-07-08 | D85: JK Cement | E85: Buy | F85: 393.00 | G85: - | H85: 468 | I85: 468.00 | J85: Target Achieved | K85: 75.00 | L85: 19.08% | M85: Successful | N85: 2014-08-12
A86: 4 | B86: 2014-08-06 | D86: Finolex Cables | E86: Buy | F86: 205.00 | G86: - | H86: 275 | I86: 250.00 | J86: Target Achieved | K86: 70.00 | L86: 34.15% | M86: Successful | N86: 2014-11-19
A87: 5 | B87: 2014-09-04 | D87: Exide Inds | E87: Buy | F87: 162.00 | G87: - | H87: 190 | I87: 190.00 | J87: Target Achieved | K87: 28.00 | L87: 17.28% | M87: Successful | N87: 2015-01-02
A88: 6 | B88: 2014-09-04 | D88: Deepak Nitrite | E88: Buy | F88: 75.00 | G88: - | H88: 91.5 | I88: 95-100 | J88: Profit of Rs.16.50/- | K88: 16.50 | L88: 22.00% | M88: Successful | N88: 2014-11-11
A89: 7 | B89: 2014-10-01 | D89: Mercks | E89: Buy | F89: 850.00 | G89: - | H89: 982.5 | I89: 1050.00 | J89: Profit of Rs.132.50/- | K89: 132.50 | L89: 15.59% | M89: Successful | N89: 2015-02-04
A90: 8 | B90: 2014-10-01 | D90: Grindwell Norton | E90: Buy | F90: 475.00 | G90: - | H90: 515 | I90: 600.00 | J90: Profit of Rs.40/- | K90: 40.00 | L90: 8.42% | M90: Successful | N90: 2014-10-27
A91: 9 | B91: 2014-10-01 | D91: Snowman Logistics | E91: Buy | F91: 86.00 | G91: - | H91: 99 | I91: 140.00 | J91: Profit of Rs.13.00/- | K91: 13.00 | L91: 15.12% | M91: Successful | N91: 2014-10-27
A92: 10 | B92: 2014-10-14 | D92: Birla Corp | E92: Buy | F92: 496.60 | G92: - | H92: 621 | I92: 580.00 | J92: Target Achieved | K92: 124.40 | L92: 25.05% | M92: Successful | N92: 2016-08-23
A93: 11 | B93: 2014-10-14 | D93: Ultratech Cem | E93: Buy | F93: 2481.90 | G93: - | H93: 2840 | I93: 2870.00 | J93: Profit of Rs.358.10/- | K93: 358.10 | L93: 14.43% | M93: Successful | N93: 2015-01-13
A94: 12 | B94: 2014-10-16 | D94: Sintex Inds | E94: Buy | F94: 84.50 | G94: - | H94: 93 | I94: 110.00 | J94: Profit of Rs.8.50/- | K94: 8.50 | L94: 10.06% | M94: Successful | N94: 2014-10-27
A95: 13 | B95: 2014-10-16 | D95: HSIL | E95: Buy | F95: 401.00 | G95: - | H95: 428 | I95: 450.00 | J95: Profit of Rs.27.00/- | K95: 27.00 | L95: 6.73% | M95: Successful | N95: 2015-01-16
A96: 14 | B96: 2014-10-16 | D96: Eveready Inds | E96: Buy | F96: 101.00 | G96: - | H96: 112 | I96: 120.00 | J96: Profit of Rs.11.00/- | K96: 11.00 | L96: 10.89% | M96: Successful | N96: 2014-10-27
A97: 15 | B97: 2014-11-11 | D97: Pennar Inds | E97: Buy | F97: 59.00 | G97: - | H97: 76 | I97: 76.00 | J97: Target Achieved | K97: 17.00 | L97: 28.81% | M97: Successful | N97: 2017-10-24
A98: 16 | B98: 2014-11-11 | D98: Snowman Logistics | E98: Buy | F98: 99.00 | G98: - | H98: 120 | I98: 120.00 | J98: Profit of Rs.21/- | K98: 21.00 | L98: 21.21% | M98: Successful | N98: 2014-11-17
A99: 17 | B99: 2014-11-13 | D99: Dharamsi Morarji Chem | E99: Buy | F99: 22.00 | G99: - | H99: 33.55 | I99: 32.00 | J99: Profit of Rs 11.55/- | K99: 11.55 | L99: 52.50% | M99: Successful | N99: 2015-07-03
A100: 18 | B100: 2014-12-03 | D100: Tatachem | E100: Buy | F100: 440.00 | G100: - | H100: 520 | I100: 520.00 | J100: Profit of Rs 80.00/- | K100: 80.00 | L100: 18.18% | M100: Successful | N100: 2015-07-23
A101: 19 | B101: 2014-12-03 | D101: Advanta | E101: Buy | F101: 360.00 | G101: - | H101: 427 | I101: 425.00 | J101: Profit of Rs.67.00/- | K101: 67.00 | L101: 18.61% | M101: Successful | N101: 2015-02-23
A102: 20 | B102: 2015-01-08 | D102: GDL | E102: Buy | F102: 360.00 | G102: - | H102: 455 | I102: 420.00 | J102: Profit of Rs.95.00/- | K102: 95.00 | L102: 26.39% | M102: Successful | N102: 2015-01-20
A103: 21 | B103: 2015-01-08 | D103: NRB Bearing | E103: Buy | F103: 130.00 | H103: 175.5 | I103: 165.00 | J103: Profit of Rs 45.50/- | K103: 45.50 | L103: 35.00% | M103: Successful | N103: 2017-12-19
A104: 22 | B104: 2015-02-05 | D104: GSFC | E104: Accu | F104: 98.00 | H104: 120 | I104: 120.00 | J104: Target Achieved | K104: 22.00 | L104: 22.45% | M104: Successful | N104: 2017-01-18
A105: 23 | B105: 2015-02-05 | D105: Sundrmfast | E105: Accu | F105: 196.00 | H105: 262 | I105: 255.00 | J105: Target Achieved | K105: 66.00 | L105: 33.67% | M105: Successful | N105: 2016-08-17
A106: 24 | B106: 2015-03-04 | D106: GPPL | E106: Accu | F106: 235 | H106: 77.00 | I106: 280-285 | J106: Loss of Rs.158/- | K106: -158.00 | L106: -67.23% | M106: Unsuccessful | N106: 2019-02-26
A107: 25 | B107: 2015-03-04 | D107: ORIENTCEM | E107: Accu | F107: 185.00 | H107: 224 | I107: 220-225 | J107: Target Achieved | K107: 39.00 | L107: 21.08% | M107: Successful | N107: 2016-10-04
A108: 26 | B108: 2015-03-27 | D108: PFS | E108: Accu | F108: 49.5 | H108: 15.85 | I108: 67.00 | J108: Loss of Rs.33.65/- | K108: -33.65 | L108: -68% | M108: Unsuccessful | N108: 2019-06-11
A109: 27 | B109: 2015-03-30 | D109: Walchandnagar Ind Ltd | E109: Accu | F109: 183.50 | H109: 219 | I109: 218.00 | J109: Profit of Rs.35.50/- | K109: 35.50 | L109: 19.35% | M109: Successful | N109: 2015-04-09
A110: 28 | B110: 2015-04-20 | D110: Kalpataru Power Transmission Ltd | E110: Accu | F110: =(227+237)/2 -> 232.00 | H110: 298 | I110: 298.00 | J110: Target Achieved | K110: 66.00 | L110: 28.45% | M110: Successful | N110: 2017-03-29
A111: 29 | B111: 2015-05-04 | D111: Mastek Ltd | E111: Buy | F111: 385.00 | H111: =212.5+331 -> 543.5 | I111: 510.00 | J111: Profit of Rs 158.50/- | K111: 158.50 | L111: 41.17% | M111: Successful | N111: 2015-08-19
A112: 30 | B112: 2015-05-04 | D112: Suprajit Eng | E112: Buy | F112: 115.50 | H112: 146 | I112: 142.00 | J112: Profit of Rs 30.50/- | K112: 30.50 | L112: 26.41% | M112: Successful | N112: 2015-07-17
A113: 31 | B113: 2015-05-27 | D113: TCI | E113: Buy | F113: 237.50 | H113: 279.5 | I113: 278.00 | J113: Target Achieved | K113: 42.00 | L113: 17.68% | M113: Successful | N113: 2015-08-06
A114: 32 | B114: 2015-06-19 | D114: HSIL | E114: Accu | F114: 340.00 | H114: 448 | I114: 448.00 | J114: Target Achieved | K114: 108.00 | L114: 31.76% | M114: Successful | N114: 2017-10-10
A115: 33 | B115: 2015-07-06 | D115: Capital First | E115: Accu | F115: 390.00 | H115: 460 | I115: 460.00 | J115: Target Achieved | K115: 70.00 | L115: 17.95% | M115: Successful | N115: 2016-04-18
A116: 34 | B116: 2015-07-10 | D116: Dolphin OffShore | E116: Accu | F116: 122.5 | H116: 61.00 | I116: 172.00 | J116: Loss of Rs.61.50/- | K116: -61.50 | L116: -50.20% | M116: Unsuccessful | N116: 2018-08-21
A117: 35 | B117: 2015-08-03 | D117: Allcargo logistics | E117: Accu | F117: 297.50 | H117: 350 | I117: 360.00 | J117: Profit of Rs 52.50/- | K117: 52.50 | L117: 17.65% | M117: Successful | N117: 2015-08-16
A118: 36 | B118: 2015-08-03 | D118: Camline Fine | E118: Accu | F118: 115.50 | H118: 149 | I118: 140.00 | J118: Profit of Rs 33.50/- | K118: 33.50 | L118: 29.00% | M118: Successful | N118: 2017-01-05
A119: 37 | B119: 2015-09-04 | D119: TCI | E119: Accu | F119: 226.00 | H119: 292 | I119: 292.00 | J119: Target Achieved | K119: 66.00 | L119: 29.20% | M119: Successful | N119: 2015-10-09
A120: 38 | B120: 2015-09-07 | D120: Kalpataru Power Transmission Ltd | E120: Accu | F120: 232.50 | H120: 312.5 | I120: 310.00 | J120: Target Achieved | K120: 80.00 | L120: 34.41% | M120: Successful | N120: 2017-03-29
A121: 39 | B121: 2015-09-21 | D121: LLOYD ELECTRIC & ENG LTD | E121: Accu | F121: 196.50 | H121: 238 | I121: 238.00 | J121: Target Achieved | K121: 41.50 | L121: 21.12% | M121: Successful | N121: 2015-10-14
A122: 40 | B122: 2015-09-24 | D122: L&T Finance Holding | E122: Accu | F122: 65.00 | H122: 82 | I122: 82.00 | J122: Target Achieved | K122: 17.00 | L122: 26.15% | M122: Successful | N122: 2016-07-27
A123: 41 | B123: 2015-10-14 | D123: KEC International ltd | E123: Accu | F123: 144.00 | H123: 182.5 | I123: 181.00 | J123: Target Achieved | K123: 38.50 | L123: 26.74% | M123: Successful | N123: 2017-03-23
A124: 42 | B124: 2015-10-14 | D124: Gruh Finance | E124: Accu | F124: 264.00 | H124: 311 | I124: 311.00 | J124: Target Achieved | K124: 47.00 | L124: 17.80% | M124: Successful | N124: 2016-08-22
A125: 43 | B125: 2015-11-10 | D125: Pidilitind | E125: Buy | F125: 549.50 | H125: 630 | I125: 630.00 | J125: Target Achieved | K125: 80.50 | L125: 14.65% | M125: Successful | N125: 2016-02-19
A126: 44 | B126: 2015-12-04 | D126: Zensar Technology | E126: Accu | F126: 1027.50 | H126: 1315 | I126: 1250.00 | J126: Target Achieved | K126: 287.50 | L126: 27.98% | M126: Successful | N126: 2018-05-24
A127: 45 | B127: 2015-12-29 | D127: Vinati Organics Ltd | E127: Accu | F127: 465.00 | H127: 540 | I127: 540.00 | J127: Target Achieved | K127: 75.00 | L127: 16.13% | M127: Successful | N127: 2016-06-09
A128: 46 | B128: 2016-01-11 | D128: GSFC | E128: Buy | F128: 81.00 | H128: 110 | I128: 110.00 | J128: Target Achieved | K128: 29.00 | L128: 35.80% | M128: Successful | N128: 2017-01-10
A129: 47 | B129: 2016-01-13 | D129: SSWL | E129: Buy | F129: 417.50 | H129: 547 | I129: 535.00 | J129: Target Achieved | K129: 129.50 | L129: 31.02% | M129: Successful | N129: 2016-07-27
A130: 48 | B130: 2016-02-08 | D130: Persistent System Ltd | E130: Accu | F130: 650.00 | H130: 800 | I130: 800.00 | J130: Target Achieved | K130: 150.00 | L130: 23.08% | M130: Successful | N130: 2018-02-23
A131: 49 | B131: 2016-03-04 | D131: UPL | E131: Accu | F131: 437.50 | H131: 504.5 | I131: 522.00 | J131: Profit of Rs.67/- | K131: 67.00 | L131: 15.31% | M131: Successful | N131: 2016-04-20
A132: 50 | B132: 2016-03-09 | D132: Ashoka Buildcon Ltd | E132: Accu | F132: 189.50 | H132: 218 | I132: 218.00 | J132: Target Achieved | K132: 28.50 | L132: 15.04% | M132: Successful | N132: 2017-10-26
A133: 51 | B133: 2016-04-11 | D133: PTC INDIA FIN SERV LTD | E133: Accu | F133: 36.5 | H133: 15.85 | I133: 60.00 | J133: Loss of Rs.20.65/- | K133: -20.65 | L133: -56.58% | M133: Unsuccessful | N133: 2019-06-11
A134: 52 | B134: 2016-04-12 | D134: CAMLINFINE $ | E134: Accu | F134: 93.00 | H134: 149 | I134: 140.00 | J134: Profit of Rs 56/- | K134: 56.00 | L134: 60.22% | M134: Successful | N134: 2017-01-05
A135: 53 | B135: 2016-04-12 | D135: Greaves Cotton Ltd. | E135: Accu | F135: 130.00 | H135: 150 | I135: 150-155 | J135: Target Achieved | K135: 20.00 | L135: 15.38% | M135: Successful | N135: 2016-07-13
A136: 54 | B136: 2016-04-13 | D136: DHFL | E136: Accu | F136: 196.00 | H136: 299 | I136: 299.00 | J136: Target Achieved | K136: 103.00 | L136: 52.55% | M136: Successful | N136: 2016-09-07
A137: 55 | B137: 2016-04-13 | D137: Magma | E137: Accu | F137: 88.00 | H137: 103 | I137: 103.00 | J137: Target Achieved | K137: 15.00 | L137: 17.05% | M137: Successful | N137: 2016-06-09
A138: 56 | B138: 2016-05-02 | D138: KEC International ltd $ | E138: Accu | F138: 127.50 | H138: 148 | I138: 148-150 | J138: Target Achieved | K138: =H138-F138 -> 20.50 | L138: =K138/F138 -> 16.08% | M138: Successful | N138: 2016-07-13
A139: 57 | B139: 2016-05-03 | D139: Mindtree | E139: Accu | F139: 675.00 | H139: 815 | I139: 790-800 | J139: Target Achieved | K139: =H139-F139 -> 140.00 | L139: =K139/F139 -> 20.74% | M139: Successful | N139: 2018-02-23
A140: 58 | B140: 2016-06-01 | D140: Atulauto | E140: Accu | F140: 500 | H140: 232.50 | I140: 565-570 | J140: Loss of Rs.267.50 /- | K140: =H140-F140 -> -267.50 | L140: =K140/F140 -> -53.50% | M140: Unsuccessful | N140: 2019-09-27
A141: 59 | B141: 2016-06-06 | D141: TRITURBINE | E141: Accu | F141: 110.00 | H141: 126.5 | I141: 125.00 | J141: Profit of Rs.16.50/- | K141: =H141-F141 -> 16.50 | L141: =K141/F141 -> 15.00% | M141: Successful | N141: 2016-07-01
A142: 60 | B142: 2016-06-17 | D142: Pennar Industries Ltd | E142: Accu | F142: 44.00 | H142: 69.5 | I142: 69.50 | J142: Profit of Rs.25.50/- | K142: =H142-F142 -> 25.50 | L142: =K142/F142 -> 57.95% | M142: Successful | N142: 2017-08-30
A143: 61 | B143: 2016-06-28 | D143: EVEREADY | E143: Accu | F143: 262.50 | H143: 340 | I143: 333.00 | J143: Profit of Rs.77.50/- | K143: 77.50 | L143: 29.52% | M143: Successful | N143: 2017-10-09
A144: 62 | B144: 2016-06-28 | D144: FIEMIND | E144: Accu | F144: 840.00 | H144: 1230 | I144: 1230.00 | J144: Target Achieved | K144: 390.00 | L144: 46.43% | M144: Successful | N144: 2016-10-06
A145: 63 | B145: 2016-07-05 | D145: Bajaj Corp Ltd | E145: Accu | F145: 395 | H145: =(468.5+342.5)/2 -> 405.50 | I145: 510.00 | J145: Profit of Rs.10.50/- | K145: =H145-F145 -> 10.50 | L145: =K145/F145 -> 3% | M145: Neutral | N145: 2019-05-21
A146: 64 | B146: 2016-08-02 | D146: GPPL $ | E146: Buy | F146: =169.5-12.8 -> 156.7 | H146: 77.00 | I146: 198-200 | J146: Loss of Rs.79.7/- | K146: -79.70 | L146: -50.86% | M146: Unsuccessful | N146: 2019-02-26
A147: 65 | B147: 2016-08-04 | D147: WONDERLA HOLIDAYS LTD | E147: Accu | F147: 400 | H147: 305.00 | I147: 475.00 | J147: Loss of Rs.95/- | K147: -95.00 | L147: -23.75% | M147: Unsuccessful | N147: 2019-05-21
A148: 66 | B148: 2016-08-11 | D148: CAMLINFINE | E148: Accu | F148: 86.50 | H148: 130 | I148: 130.00 | J148: Profit of Rs.43.50/- | K148: 43.50 | L148: 50.29% | M148: Successful | N148: 2017-12-22
A149: 67 | B149: 2016-08-18 | D149: GRANULES | E149: Accu | F149: 133.5 | H149: 126.50 | I149: 178.00 | J149: Exit | K149: -7.00 | L149: -5.24% | M149: Unsuccessful | N149: 2016-09-02
A150: 68 | B150: 2016-08-31 | D150: VA TECH WABAG | E150: Accu | F150: 560.00 | H150: 725 | I150: 725.00 | J150: Target Achieved | K150: 165.00 | L150: 29.46% | M150: Successful | N150: 2016-03-27
A151: 69 | B151: 2016-09-01 | D151: SKIPPER LIMITED | E151: Accu | F151: 160.50 | H151: 210 | I151: 210.00 | J151: Target Achieved | K151: 49.50 | L151: 30.84% | M151: Successful | N151: 2017-05-16
A152: 70 | B152: 2016-10-03 | D152: IFBIND | E152: Accu | F152: 430.00 | H152: 596 | I152: 575.00 | J152: Profit of Rs.166/- | K152: 166.00 | L152: 38.60% | M152: Successful | N152: 2017-02-03
A153: 71 | B153: 2016-10-14 | D153: ASIANTILES | E153: Accu | F153: 280.00 | H153: 345 | I153: 345.00 | J153: Target Achieved | K153: =H153-F153 -> 65.00 | L153: =K153/F153 -> 23.21% | M153: Successful | N153: 2017-03-20
A154: 72 | B154: 2016-10-14 | D154: DEEPIND | E154: Accu | F154: 245.00 | H154: 325.5 | I154: 330.00 | J154: Profit of Rs.80.5/- | K154: 80.50 | L154: =K154/F154 -> 32.86% | M154: Successful | N154: 2017-02-03
A155: 73 | B155: 2016-10-17 | D155: DCBBANK | E155: Accu | F155: 125.00 | H155: 160 | I155: 160.00 | J155: Target Achieved | K155: 35.00 | L155: 28.00% | M155: Successful | N155: 2017-03-09
A156: 74 | B156: 2016-10-17 | D156: ORIENTREF | E156: Accu | F156: 114.00 | H156: 145 | I156: 145.00 | J156: Target Achieved | K156: 31.00 | L156: =K156/F156 -> 27.19% | M156: Successful | N156: 2017-05-04
A157: 75 | B157: 2016-10-17 | D157: GANECOS | E157: Accu | F157: 212.00 | H157: 280 | I157: 276.00 | J157: Profit of Rs.68/- | K157: 68.00 | L157: =K157/F157 -> 32.08% | M157: Successful | N157: 2017-05-03
A158: 76 | B158: 2016-11-04 | D158: NBCC | E158: Accu | F158: 155.00 | H158: 210 | I158: 210.00 | J158: Profit of Rs.55/- | K158: 55.00 | L158: =K158/F158 -> 35.48% | M158: Successful | N158: 2017-07-28
A159: 77 | B159: 2016-12-06 | D159: PRECAM | E159: Accu | F159: 150.5 | H159: 72.50 | I159: 174.00 | J159: Loss of Rs.78/- | K159: -78.00 | L159: -51.83% | M159: Unsuccessful | N159: 2018-08-21
A160: 78 | B160: 2016-12-08 | D160: INFRATEL | E160: Accu | F160: 380.00 | H160: 478 | I160: 468.00 | J160: Target Achieved | K160: =H160-F160 -> 98.00 | L160: =K160/F160 -> 25.79% | M160: Successful | N160: 2017-10-17
A161: 79 | B161: 2016-12-30 | D161: GODREJPROP | E161: Accu | F161: 305.00 | H161: 375 | I161: 375.00 | J161: Target Achieved | K161: =H161-F161 -> 70.00 | L161: =K161/F161 -> 22.95% | M161: Successful | N161: 2017-02-02
A162: 80 | B162: 2017-01-04 | D162: DEEPAKNTR | E162: Accu | F162: 99.50 | H162: 158 | I162: 158.00 | J162: Target Achieved | K162: =H162-F162 -> 58.50 | L162: =K162/F162 -> 58.79% | M162: Successful | N162: 2017-06-12
A163: 81 | B163: 2017-01-04 | D163: DEEPAKNTR | E163: Accu | F163: 99.50 | H163: 158 | I163: 158.00 | J163: Target Achieved | K163: 58.50 | L163: 58.79% | M163: Successful | N163: 2017-06-12
A164: 82 | B164: 2017-02-20 | D164: RECLTD | E164: Accu | F164: 140.50 | H164: 220 | I164: 220.00 | J164: Target Achieved | K164: =H164-F164 -> 79.50 | L164: =K164/F164 -> 56.58% | M164: Successful | N164: 2017-05-09
A165: 83 | B165: 2017-02-20 | D165: SUBROS | E165: Accu | F165: 202.50 | H165: 234 | I165: 234.00 | J165: Target Achieved | K165: 31.50 | L165: 15.56% | M165: Successful | N165: 2017-04-11
A166: 84 | B166: 2017-03-24 | D166: VRLLOG | E166: Accu | F166: 300.50 | H166: 417.5 | I166: 420.00 | J166: Profit of Rs.117/- | K166: =H166-F166 -> 117.00 | L166: =K166/F166 -> 38.94% | M166: Successful | N166: 2017-12-01
A167: 85 | B167: 2017-03-24 | D167: FIEMIND | E167: Accu | F167: 850.00 | H167: 1042.5 | I167: 1023.00 | J167: Profit of Rs 192.50/- | K167: 192.50 | L167: 22.65% | M167: Successful | N167: 2017-04-05
A168: 86 | B168: 2017-04-05 | D168: RATNAMANI | E168: Accu | F168: 785.00 | H168: 930 | I168: 920.00 | J168: Profit of Rs.145/- | K168: =H168-F168 -> 145.00 | L168: =K168/F168 -> 18.47% | M168: Successful | N168: 2017-08-29
A169: 87 | B169: 2017-04-06 | D169: ZEEMEDIA | E169: Accu | F169: 40 | H169: 13.10 | I169: 60.00 | J169: Loss of Rs.26.9/- | K169: -26.90 | L169: -67.25% | M169: Unsuccessful | N169: 2018-02-07
A170: 88 | B170: 2017-04-12 | D170: DABUR | E170: Accu | F170: 289.50 | H170: 354 | I170: 360.00 | J170: Profit of Rs.64.5/- | K170: =H170-F170 -> 64.50 | L170: =K170/F170 -> 22.28% | M170: Successful | N170: 2017-11-01
A171: 89 | B171: 2017-04-20 | D171: KPRMILL | E171: Accu | F171: 700.00 | H171: 840 | I171: 840.00 | J171: Profit of Rs.140/- | K171: 140.00 | L171: 20.00% | M171: Successful | N171: 2017-06-07
A172: 90 | B172: 2017-06-01 | D172: ESSELPACK | E172: Accu | F172: 130.00 | H172: 144.25 | I172: 170.00 | J172: Profit of Rs.14.25/- | K172: 14.25 | L172: 10.96% | M172: Successful | N172: 2019-07-29
A173: 91 | B173: 2017-06-15 | D173: KEI | E173: Accu | F173: 214.50 | H173: 262 | I173: 262.00 | J173: Profit of Rs.47.5/- | K173: 47.50 | L173: 22.14% | M173: Successful | N173: 2017-08-30
A174: 92 | B174: 2017-07-17 | D174: MAYURUNIQ | E174: Accu | F174: 370.00 | H174: 447.5 | I174: 450.00 | J174: Target Achieved | K174: 77.50 | L174: 20.95% | M174: Successful | N174: 2017-10-27
A175: 93 | B175: 2017-07-27 | D175: RAMCOCEM | E175: Accu | F175: 657.50 | H175: 825 | I175: 820.00 | J175: Target Achieved | K175: 167.50 | L175: 25.48% | M175: Successful | N175: 2017-12-21
A176: 94 | B176: 2017-08-17 | D176: FINPIPE | E176: Accu | F176: 605.00 | H176: 750 | I176: 750.00 | J176: Profit of Rs.145/- | K176: 145.00 | L176: 23.97% | M176: Successful | N176: 2017-10-19
A177: 95 | B177: 2017-09-01 | D177: SHK | E177: Accu | F177: 255 | H177: 217.25 | I177: 320.00 | J177: Loss of Rs.37.75/- | K177: -37.75 | L177: -15% | M177: Unsuccessful | N177: 2019-07-15
A178: 96 | B178: 2017-09-19 | D178: SKIPPER | E178: Accu | F178: 215.00 | H178: 258 | I178: 258.00 | J178: Target Achieved | K178: 43.00 | L178: 20.00% | M178: Successful | N178: 2017-11-01
A179: 97 | B179: 2017-09-19 | D179: SKIPPER | E179: Accu | F179: 215.00 | H179: 258 | I179: 258.00 | J179: Target Achieved | K179: 43.00 | L179: 20.00% | M179: Successful | N179: 2017-11-01
A180: 98 | B180: 2017-09-20 | D180: CAMLINFINE$ | E180: Accu | F180: 75.00 | H180: 90 | I180: 90.00 | J180: Profit of Rs.15.00/- | K180: =H180-F180 -> 15.00 | L180: =K180/F180 -> 20.00% | M180: Successful | N180: 2017-10-11
A181: 99 | B181: 2017-10-03 | D181: GNA | E181: Accu | F181: 315.00 | H181: 392 | I181: 384.00 | J181: Profit of Rs.77/- | K181: 77.00 | L181: 24.44% | M181: Successful | N181: 2017-10-09
A182: 100 | B182: 2017-10-05 | D182: NOCIL | E182: Accu | F182: 145.00 | H182: 179 | I182: 180.00 | J182: Profit of Rs.34/- | K182: 34.00 | L182: 23.45% | M182: Successful | N182: 2017-10-17
A183: 101 | B183: 2017-10-06 | D183: CENTURYPLY | E183: Accu | F183: 256.00 | H183: 323 | I183: 320.00 | J183: Target Achieved | K183: 67.00 | L183: 26.17% | M183: Successful | N183: 2017-11-28
A184: 102 | B184: 2017-10-09 | D184: EIHOTEL | E184: Accu | F184: 137.50 | H184: 184 | I184: 183.00 | J184: Profit of Rs.46.5/- | K184: 46.50 | L184: 33.82% | M184: Successful | N184: 2018-01-08
A185: 103 | B185: 2017-10-10 | D185: NRBBEARING | E185: Accu | F185: 125.50 | H185: 158 | I185: 155.00 | J185: Profit of Rs.32.5/- | K185: 32.50 | L185: 25.90% | M185: Successful | N185: 2017-11-28
A186: 104 | B186: 2017-10-10 | D186: BOROSIL | E186: Accu | F186: 895.00 | H186: 1122.5 | I186: 1078.00 | J186: Profit of Rs.227.5/- | K186: 227.50 | L186: 25.42% | M186: Successful | N186: 2018-01-17
A187: 105 | B187: 2017-10-12 | D187: CYIENT | E187: Accu | F187: 525.00 | H187: 629 | I187: 629.00 | J187: Target Achieved | K187: 104.00 | L187: 19.81% | M187: Successful | N187: 2018-01-19
A188: 106 | B188: 2017-11-07 | D188: HATSUN | E188: Accu | F188: 740.00 | H188: 892.5 | I188: 900.00 | J188: Profit of Rs.152.5/- | K188: =H188-F188 -> 152.50 | L188: =K188/F188 -> 20.61% | M188: Successful | N188: 2017-11-13
A189: 107 | B189: 2017-12-04 | D189: SANGHIIND | E189: Accu | F189: 118.50 | H189: 143.5 | I189: 145.00 | J189: Profit of Rs.25/- | K189: =H189-F189 -> 25.00 | L189: =K189/F189 -> 21.10% | M189: Successful | N189: 2017-12-28
A190: 108 | B190: 2017-12-21 | D190: KAJARIACER | E190: Accu | F190: 715 | H190: 500.00 | I190: 872.00 | J190: Loss of Rs.215/- | K190: =H190-F190 -> -215.00 | L190: =K190/F190 -> -30.07% | M190: Unsuccessful | N190: 2019-07-24
A191: 109 | B191: 2017-12-29 | D191: GNA | E191: Accu | F191: 435.00 | H191: 542.5 | I191: 539.00 | J191: Target Achieved | K191: 107.50 | L191: 24.71% | M191: Successful | N191: 2018-04-16
A192: 110 | B192: 2017-12-29 | D192: ZENSARTECH | E192: Accu | F192: 885.00 | H192: 1090 | I192: 1084.00 | J192: Target Achieved | K192: 205.00 | L192: 23.16% | M192: Successful | N192: 2018-04-23
A193: 111 | B193: 2018-04-02 | D193: EVERESTIND | E193: Accu | F193: 478.50 | H193: 442 | I193: 613.00 | J193: Loss of Rs.36.50 /- | K193: =H193-F193 -> -36.50 | L193: =K193/F193 -> -7.63% | M193: Unsuccessful | N193: 2019-10-24
A194: 112 | B194: 2018-04-04 | D194: GPPL$ | E194: Accu | F194: =141.5-7.3 -> 134.2 | H194: 77.00 | I194: 180.00 | J194: Loss of Rs.57.2/- | K194: =H194-F194 -> -57.20 | L194: =K194/F194 -> -42.62% | M194: Unsuccessful | N194: 2019-02-26
A195: 113 | B195: 2018-04-19 | D195: MANPASAND | E195: Accu | F195: 430 | H195: 220.00 | I195: 537.00 | J195: Loss of Rs.210/- | K195: =H195-F195 -> -210.00 | L195: =K195/F195 -> -48.84% | M195: Unsuccessful | N195: 2018-06-01
A196: 114 | B196: 2018-04-30 | D196: HEIDELBERG | E196: Accu | F196: 153.5 | H196: 196 | I196: 196.00 | J196: Profit of Rs.42.50/- | K196: =H196-F196 -> 42.50 | L196: =K196/F196 -> 27.69% | M196: Successful | N196: 2019-05-20
A197: 115 | B197: 2018-07-25 | D197: ZEEMEDIA | E197: Accu | F197: 27.5 | H197: 13.10 | I197: 60.00 | J197: Loss of Rs.14.40/- | K197: -14.40 | L197: -52.36% | M197: Unsuccessful | N197: 2018-02-07
A198: 116 | B198: 2018-08-06 | D198: GABRIEL | E198: Accu | F198: 148.5 | H198: 102 | I198: 182.00 | J198: Loss of Rs.46.50/- | K198: =H198-F198 -> -46.50 | L198: =K198/F198 -> -31.31% | M198: Unsuccessful | N198: 2019-07-15
A199: 117 | B199: 2018-08-23 | D199: INDIANHUME | E199: Accu | F199: 285 | H199: 355 | I199: 364.00 | J199: Profit of Rs.70/- | K199: 70.00 | L199: 24.56% | M199: Successful | N199: 2018-12-21
A200: 118 | B200: 2018-08-29 | D200: GRINDWELL | E200: Accu | F200: 525 | H200: 585 | I200: 635.00 | J200: Profit of Rs.60- | K200: =H200-F200 -> 60.00 | L200: =K200/F200 -> 11.43% | M200: Successful | N200: 2019-07-16
A201: 119 | B201: 2018-10-22 | D201: FINPIPE | E201: Accu | F201: 475 | H201: 574 | I201: 570.00 | J201: Target Achieved | K201: 99.00 | L201: 20.84% | M201: Successful | N201: 2018-10-30
A202: 120 | B202: 2018-10-24 | D202: GULFOILLUB | E202: Accu | F202: 707.5 | H202: 872 | I202: 872.00 | J202: Target Achieved | K202: 164.50 | L202: 23.25% | M202: Successful | N202: 2019-01-17
A203: 121 | B203: 2018-10-25 | D203: DBCORP | E203: Accu | F203: 162 | H203: 204 | I203: 209.00 | J203: Profit of Rs.42/- | K203: 42.00 | L203: 25.93% | M203: Successful | N203: 2019-03-15
A204: 122 | B204: 2018-10-26 | D204: RITES | E204: Accu | F204: 240 | H204: 297 | I204: 297.00 | J204: Target Achieved | K204: 57.00 | L204: 23.75% | M204: Successful | N204: 2018-11-13
A205: 123 | B205: 2018-12-05 | D205: BRIGADE | E205: Accu | F205: 202.5 | H205: 255 | I205: 252.00 | J205: Target Achieved | K205: 52.50 | L205: 25.93% | M205: Successful | N205: 2019-03-18 | R205: V
A206: 124 | B206: 2018-12-31 | D206: JKCEMENT | E206: Accu | F206: 710 | H206: 866 | I206: 866.00 | J206: Target Achieved | K206: 156.00 | L206: 21.97% | M206: Successful | N206: 2019-03-29 | R206: V
A207: 125 | B207: 2019-02-26 | D207: MARICO | E207: Accu | F207: 337.25 | H207: 398.5 | I207: 411.00 | J207: Profit of Rs.61.25/- | K207: 61.25 | L207: 18.16% | M207: Successful | N207: 2019-10-22 | R207: V
A208: 126 | B208: 2019-04-04 | D208: ITDCEM | E208: Accu | F208: 130 | H208: 65 | I208: 158.00 | J208: Loss of Rs.65 /- | K208: -65.00 | L208: -50.00% | M208: Unsuccessful | N208: 2019-09-18 | R208: K
A209: 127 | B209: 2017-10-09 | D209: RECLTD | E209: Accu | F209: 141.5 | H209: 183.5 | I209: 210.00 | J209: Profit of Rs.42/- | K209: 42.00 | L209: 29.68% | M209: Successful | N209: 2017-11-03 | R209: K
A210: 128 | B210: 2017-12-05 | D210: ALLCARGO | E210: Accu | F210: 172.00 | H210: 155.25 | I210: 230.00 | J210: Loss of Rs.16.75/- | K210: -16.75 | L210: -9.74% | M210: Unsuccessful | N210: 2019-11-18 | R210: K
A211: 129 | B211: 2018-10-25 | D211: GODREJCP | E211: Accu | F211: 698.5 | H211: 890 | I211: 890.00 | J211: Profit of Rs.191.50/- | K211: 191.50 | L211: 27.42% | M211: Successful | N211: 2021-05-12 | R211: V
A212: 130 | B212: 2017-05-22 | D212: GREAVESCOT | E212: Accu | F212: 127.6 | H212: 138 | I212: 190.00 | J212: Profit of Rs.10.40 | K212: 10.40 | L212: 8.15% | M212: Successful | N212: 2019-11-05 | R212: K
A213: 131 | B213: 2018-02-27 | D213: MOLDTKPAC | E213: Accu | F213: 317 | H213: 382.5 | I213: 398.00 | J213: Profit of Rs.65.5 | K213: 65.50 | L213: 20.66% | M213: Successful | N213: 2021-02-11 | R213: K
A214: 132 | B214: 2018-03-05 | D214: LICHSGFIN | E214: Accu | F214: =510-14.4 -> 495.60 | H214: 350 | I214: 672.00 | J214: Loss of Rs.145.60/- | K214: -145.60 | L214: -29.38% | M214: Unsuccessful | N214: 2020-02-26 | R214: V
A215: 133 | B215: 2018-05-17 | D215: PHILIPCARB | E215: Accu | F215: 230.30 | H215: 102.5 | I215: 348.00 | J215: Loss of Rs.127.80/- | K215: -127.80 | L215: -55.49% | M215: Unsuccessful | N215: 2020-03-06 | R215: V
A216: 134 | B216: 2018-06-07 | D216: KEC | E216: Accu | F216: =342.5-5.1 -> 337.4 | H216: 412.5 | I216: 439.00 | J216: Profit of Rs.75.10 | K216: 75.10 | L216: 22.26% | M216: Successful | N216: 2021-02-03 | R216: K
A217: 135 | B217: 2018-07-04 | D217: ASHOKLEY | E217: Accu | F217: =127.5-5.53 -> 121.97 | H217: 122.50 | I217: 170.00 | J217: Profit of Rs.0.53/- | K217: 0.53 | L217: 0% | M217: Neutral | N217: 2021-08-23 | R217: V
A218: 136 | B218: 2018-07-13 | D218: FCONSUMER | E218: Accu | F218: 46.50 | H218: 17 | I218: 59.00 | J218: Loss of Rs.29.50/- | K218: =H218-F218 -> -29.50 | L218: =K218/F218 -> -63.44% | M218: Unsuccessful | N218: 2020-02-26 | R218: V
A219: 137 | B219: 2018-10-23 | D219: JKPAPER | E219: Accu | F219: 156.5 | H219: 207.5 | I219: 191.00 | J219: Target Achieved | K219: 51.00 | L219: 32.59% | M219: Successful | N219: 2021-06-22 | R219: V
A220: 138 | B220: 2018-12-05 | D220: CCL | E220: Accu | F220: 259.5 | H220: 320 | I220: 320.00 | J220: Target Achieved | K220: 60.50 | L220: 23.31% | M220: Successful | N220: 2021-05-07 | R220: V
A221: 139 | B221: 2018-12-05 | D221: VARROC | E221: Accu | F221: 715 | H221: 445 | I221: 840.00 | J221: Loss of Rs.270/- | K221: -270.00 | L221: -37.76% | M221: Unsuccessful | N221: 2019-12-01 | R221: V
A222: 140 | B222: 2019-01-04 | D222: MGL | E222: Accu | F222: 875 | H222: 1165 | I222: 1185.00 | J222: Profit of Rs.290/- | K222: 290.00 | L222: 33.14% | M222: Successful | N222: 2020-01-17 | R222: V
A223: 141 | B223: 2019-04-04 | D223: COCHINSHIP | E223: Accu | F223: =387-14.63 -> 372.37 | H223: 490 | I223: 490.00 | J223: Target Achieved | K223: 117.63 | L223: 31.59% | M223: Successful | N223: 2020-01-20 | R223: V
A224: 142 | B224: 2019-04-23 | D224: MAHINDCIE | E224: Buy | F224: 220 | H224: 127.5 | I224: 284.00 | J224: Loss of Rs.92.50/- | K224: -92.50 | L224: -42.05% | M224: Unsuccessful | N224: 2020-03-06 | R224: V
... 40 more rows
